Workbook

Sheet ZŠ_pouze_1.stupeň
A1: Porovnání výše prostředků přidělených prostřednictvím oborového normativu a doplňkové částky s výší prostředků přidělovaných podle krajských normativů 2012 pro ZŠ s pouze 1. stupněm | S1: oborový normativ | U1: 23800 | Y1: Krok 1: vepiš novou hodnotu ON nebo doplňkové částky
S2: doplňková částka | U2: 550000
Y3: Krok 2:klikni na tlačítko
Q4: celkem | R4: =SUM(R7:R1539) -> 2422999476 | U4: =SUM(U7:U1539) -> 2572278000 | V4: =SUM(V7:V1539) -> 149278523.6 | W4: =V4/U4 -> 0.05803358874
A5: Škola | I5: Žáci, třídy | Q5: Krajské normativy 2012 | S5: Nový systém (vč.odvodů) | V5: Porovnání
I6: počet žáků | K6: počet žáků - postižení | O6: počet tříd
A7: ZRIZ | B7: NVUSC | C7: kraj | D7: IZO | E7: RED IZO | F7: Název zřizovatele | G7: škola | H7: stupeň | I7: celkem | J7: z toho ve spec.třídách | K7: těžké postižení | L7: z toho ve spec.třídách | M7: lehké a střední postižení | N7: z toho ve spec.třídách | O7: celkem | P7: spec. třídy | Q7: MP pedagogové | R7: Celkem na IZO (vč.odvodů) | S7: Oborový normativ | T7: Doplňková částka | U7: Celkem oborový normativ a doplňková částka na IZO | V7: Rozdíl na IZO | W7: Rozdíl na IZO v % | Y7: Počty škol podle změny v novém systému financování vůči financování prostřednictvím krajských normativů 2012 | Z7: počet škol, odloučených pracovišť | AA7: v %
A8: 2 | B8: CZ032 | C8: Plzeňský | D8: 102328081 | E8: 600071197 | F8: Obec Líšťany | G8: ZŠ 1.st | H8: 1.st | I8: 5 | J8: 0 | K8: 0 | L8: 0 | M8: 0 | N8: 0 | O8: 1 | P8: 0 | Q8: 42690 | R8: 288157.5 | S8: 23800 | T8: 275000 | U8: 394000 | V8: 105842.5 | W8: 26.86357868 | Y8: nárůst o 15% a více | Z8: =COUNTIFS( $W$8:$W$1539,">=15" ) -> 429 | AA8: =100*Z8/1532 -> 28.00261097
A9: 7 | B9: CZ032 | C9: Plzeňský | D9: 151022356 | E9: 600022765 | F9: Plzeňský kraj | G9: ZŠ 1.st | H9: 1.st | I9: 5 | J9: 5 | K9: 0 | L9: 0 | M9: 5 | N9: 5 | O9: 1 | P9: 1 | Q9: 42690 | R9: 288157.5 | S9: 23800 | T9: 275000 | U9: 394000 | V9: 105842.5 | W9: 26.86357868 | Y9: nárůst o 10 až 14,99% | Z9: =COUNTIFS( $W$8:$W$1539,">=10",$W$8:$W$1539,"<15") -> 195 | AA9: =100*Z9/1532 -> 12.72845953
A10: 2 | B10: CZ020 | C10: Středočeský | D10: 108032922 | E10: 600046532 | F10: Obec Vlastějovice | G10: ZŠ 1.st | H10: 1.st | I10: 6 | J10: 0 | K10: 0 | L10: 0 | M10: 0 | N10: 0 | O10: 1 | P10: 0 | Q10: 43619.62961 | R10: 353318.9998 | S10: 23800 | T10: 330000 | U10: 472800 | V10: 119481.0002 | W10: 25.27093913 | Y10: nárůst o 5 až 9,99% | Z10: =COUNTIFS( $W$8:$W$1539,">=5",$W$8:$W$1539,"<10") -> 273 | AA10: 17.81984334
A11: 2 | B11: CZ031 | C11: Jihočeský | D11: 181035693 | E11: 691004056 | F11: Městys Stádlec | G11: ZŠ 1.st | H11: 1.st | I11: 6 | J11: 0 | K11: 0 | L11: 0 | M11: 0 | N11: 0 | O11: 1 | P11: 0 | Q11: 42279 | R11: 342459.9 | S11: 23800 | T11: 330000 | U11: 472800 | V11: 130340.1 | W11: 27.56770305 | Y11: nárůst o 3 až 4,99% | Z11: =COUNTIFS( $W$8:$W$1539,">=3",$W$8:$W$1539,"<5") -> 112 | AA11: 7.310704961
A12: 2 | B12: CZ051 | C12: Liberecký | D12: 102229180 | E12: 600080081 | F12: Obec Krásný Les | G12: ZŠ 1.st | H12: 1.st | I12: 6 | J12: 0 | K12: 0 | L12: 0 | M12: 0 | N12: 0 | O12: 2 | P12: 0 | Q12: 51760.36364 | R12: 419258.9455 | S12: 23800 | T12: 330000 | U12: 472800 | V12: 53541.05455 | W12: 11.32425012 | Y12: nárůst o 1 až 2,99% | Z12: =COUNTIFS( $W$8:$W$1539,">=1",$W$8:$W$1539,"<3") -> 116 | AA12: 7.571801567
A13: 2 | B13: CZ052 | C13: Královéhradecký | D13: 108026426 | E13: 600102459 | F13: Obec Malá Úpa | G13: ZŠ 1.st | H13: 1.st | I13: 6 | J13: 0 | K13: 0 | L13: 0 | M13: 0 | N13: 0 | O13: 1 | P13: 0 | Q13: 42224 | R13: 342014.4 | S13: 23800 | T13: 330000 | U13: 472800 | V13: 130785.6 | W13: 27.66192893 | Y13: nárůst o 0,99% nebo pokles o 1% | Z13: =COUNTIFS( $W$8:$W$1539,">=-1",$W$8:$W$1539,"<1") -> 105 | AA13: 6.853785901
A14: 2 | B14: CZ064 | C14: Jihomoravský | D14: 108045331 | E14: 600125963 | F14: Obec Račice - Pístovice | G14: ZŠ 1.st | H14: 1.st | I14: 6 | J14: 0 | K14: 0 | L14: 0 | M14: 0 | N14: 0 | O14: 1 | P14: 0 | Q14: 43084 | R14: 348980.4 | S14: 23800 | T14: 330000 | U14: 472800 | V14: 123819.6 | W14: 26.18857868 | Y14: pokles o 1,01 až 3% | Z14: =COUNTIFS( $W$8:$W$1539,">=-3",$W$8:$W$1539,"<-1") -> 148 | AA14: 9.660574413
A15: 2 | B15: CZ053 | C15: Pardubický | D15: 002506238 | E15: 650045670 | F15: Obec Javorník | G15: ZŠ 1.st | H15: 1.st | I15: 7 | J15: 0 | K15: 0 | L15: 0 | M15: 0 | N15: 0 | O15: 1 | P15: 0 | Q15: 42294 | R15: 399678.3 | S15: 23800 | T15: 385000 | U15: 551600 | V15: 151921.7 | W15: 27.54200508 | Y15: pokles o 3,01 až 5% | Z15: =COUNTIFS( $W$8:$W$1539,">=-5",$W$8:$W$1539,"<-3") -> 138 | AA15: 9.007832898
A16: 2 | B16: CZ064 | C16: Jihomoravský | D16: 108012034 | E16: 600127826 | F16: Město Znojmo | G16: ZŠ 1.st | H16: 1.st | I16: 7 | J16: 0 | K16: 0 | L16: 0 | M16: 0 | N16: 0 | O16: 1 | P16: 0 | Q16: 43084 | R16: 407143.8 | S16: 23800 | T16: 385000 | U16: 551600 | V16: 144456.2 | W16: 26.18857868 | Y16: pokles o 5,01 až 10% | Z16: =COUNTIFS( $W$8:$W$1539,">=-10",$W$8:$W$1539,"<-5") -> 11 | AA16: 0.7180156658
A17: 2 | B17: CZ064 | C17: Jihomoravský | D17: 181024209 | E17: 600112471 | F17: Město Pohořelice | G17: ZŠ 1.st | H17: 1.st | I17: 7 | J17: 0 | K17: 0 | L17: 0 | M17: 0 | N17: 0 | O17: 1 | P17: 0 | Q17: 43084 | R17: 407143.8 | S17: 23800 | T17: 385000 | U17: 551600 | V17: 144456.2 | W17: 26.18857868 | Y17: pokles o 10,01 až 15% | Z17: =COUNTIFS( $W$8:$W$1539,">=-15",$W$8:$W$1539,"<-10") -> 2 | AA17: 0.1305483029
A18: 2 | B18: CZ080 | C18: Moravskoslezský | D18: 130005789 | E18: 600136299 | F18: Obec Stonava | G18: ZŠ 1.st | H18: 1.st | I18: 7 | J18: 0 | K18: 0 | L18: 0 | M18: 0 | N18: 0 | O18: 2 | P18: 0 | Q18: 43450 | R18: 410602.5 | S18: 23800 | T18: 385000 | U18: 551600 | V18: 140997.5 | W18: 25.56154822 | Y18: pokles o více než 15% | Z18: =COUNTIFS( $W$8:$W$1539,"<-15") -> 3 | AA18: 0.1958224543
A19: 2 | B19: CZ031 | C19: Jihočeský | D19: 181026970 | E19: 650030168 | F19: Město Hluboká nad Vltavou | G19: ZŠ 1.st | H19: 1.st | I19: 8 | J19: 0 | K19: 0 | L19: 0 | M19: 0 | N19: 0 | O19: 1 | P19: 0 | Q19: 42279 | R19: 456613.2 | S19: 23800 | T19: 440000 | U19: 630400 | V19: 173786.8 | W19: 27.56770305 | Y19: celkem škol, odloučených pracovišť | Z19: =SUM(Z8:Z18) -> 1532 | AA19: 100
A20: 2 | B20: CZ032 | C20: Plzeňský | D20: 102164096 | E20: 650032314 | F20: Městys Čachrov | G20: ZŠ 1.st | H20: 1.st | I20: 8 | J20: 0 | K20: 0 | L20: 0 | M20: 1 | N20: 0 | O20: 1 | P20: 0 | Q20: 42690 | R20: 461052 | S20: 23800 | T20: 440000 | U20: 630400 | V20: 169348 | W20: 26.86357868
A21: 2 | B21: CZ051 | C21: Liberecký | D21: 102165807 | E21: 600078311 | F21: Obec Nová Ves nad Nisou | G21: ZŠ 1.st | H21: 1.st | I21: 8 | J21: 0 | K21: 0 | L21: 0 | M21: 0 | N21: 0 | O21: 1 | P21: 0 | Q21: 51760.36364 | R21: 559011.9273 | S21: 23800 | T21: 440000 | U21: 630400 | V21: 71388.07273 | W21: 11.32425012 | Y21: Počty škol podle počtu žáků | Z21: počet škol, odloučených pracovišť | AA21: v %
A22: 2 | B22: CZ051 | C22: Liberecký | D22: 116401940 | E22: 650025873 | F22: Obec Svijanský Újezd | G22: ZŠ 1.st | H22: 1.st | I22: 8 | J22: 0 | K22: 0 | L22: 0 | M22: 0 | N22: 0 | O22: 1 | P22: 0 | Q22: 51760.36364 | R22: 559011.9273 | S22: 23800 | T22: 440000 | U22: 630400 | V22: 71388.07273 | W22: 11.32425012
A23: 2 | B23: CZ052 | C23: Královéhradecký | D23: 102066469 | E23: 650057104 | F23: Obec Boharyně | G23: ZŠ 1.st | H23: 1.st | I23: 8 | J23: 0 | K23: 0 | L23: 0 | M23: 0 | N23: 0 | O23: 1 | P23: 0 | Q23: 42224 | R23: 456019.2 | S23: 23800 | T23: 440000 | U23: 630400 | V23: 174380.8 | W23: 27.66192893
A24: 2 | B24: CZ052 | C24: Královéhradecký | D24: 102190780 | E24: 600092216 | F24: Obec Jičíněves | G24: ZŠ 1.st | H24: 1.st | I24: 8 | J24: 0 | K24: 0 | L24: 0 | M24: 0 | N24: 0 | O24: 1 | P24: 0 | Q24: 42224 | R24: 456019.2 | S24: 23800 | T24: 440000 | U24: 630400 | V24: 174380.8 | W24: 27.66192893
A25: 2 | B25: CZ053 | C25: Pardubický | D25: 108040011 | E25: 600100189 | F25: Obec Pustá Kamenice | G25: ZŠ 1.st | H25: 1.st | I25: 8 | J25: 0 | K25: 0 | L25: 0 | M25: 0 | N25: 0 | O25: 1 | P25: 0 | Q25: 42294 | R25: 456775.2 | S25: 23800 | T25: 440000 | U25: 630400 | V25: 173624.8 | W25: 27.54200508
A26: 2 | B26: CZ063 | C26: Vysočina | D26: 102443556 | E26: 600116964 | F26: Obec Růžená | G26: ZŠ 1.st | H26: 1.st | I26: 8 | J26: 0 | K26: 0 | L26: 0 | M26: 2 | N26: 0 | O26: 1 | P26: 0 | Q26: 39416 | R26: 425692.8 | S26: 23800 | T26: 440000 | U26: 630400 | V26: 204707.2 | W26: 32.47258883 | Y26: do 9 žáků | Z26: =COUNTIFS( $I$8:$I$1539,"<=9" ) -> 28 | AA26: =100*Z26/1539 -> 1.819363223
A27: 2 | B27: CZ063 | C27: Vysočina | D27: 108021211 | E27: 600117251 | F27: Obec Cejle | G27: ZŠ 1.st | H27: 1.st | I27: 8 | J27: 0 | K27: 0 | L27: 0 | M27: 0 | N27: 0 | O27: 1 | P27: 0 | Q27: 39416 | R27: 425692.8 | S27: 23800 | T27: 440000 | U27: 630400 | V27: 204707.2 | W27: 32.47258883 | Y27: 10 až 34 žáků | Z27: =COUNTIFS( $I$8:$I$1539,">=10",$I$8:$I$1539,"<=34") -> 756 | AA27: =100*Z27/1539 -> 49.12280702
A28: 2 | B28: CZ064 | C28: Jihomoravský | D28: 151011150 | E28: 600112331 | F28: Obec Dolní Dunajovice | G28: ZŠ 1.st | H28: 1.st | I28: 8 | J28: 0 | K28: 0 | L28: 0 | M28: 0 | N28: 0 | O28: 1 | P28: 0 | Q28: 42678 | R28: 460922.4 | S28: 23800 | T28: 440000 | U28: 630400 | V28: 169477.6 | W28: 26.88413706 | Y28: 35 až 60 žáků | Z28: =COUNTIFS( $I$8:$I$1539,">=35",$I$8:$I$1539,"<=60") -> 440 | AA28: 28.5899935
A29: 2 | B29: CZ020 | C29: Středočeský | D29: 102086826 | E29: 600044211 | F29: Obec Černuc | G29: ZŠ 1.st | H29: 1.st | I29: 9 | J29: 0 | K29: 1 | L29: 0 | M29: 3 | N29: 0 | O29: 1 | P29: 0 | Q29: 43619.62961 | R29: 529978.4997 | S29: 23800 | T29: 495000 | U29: 709200 | V29: 179221.5003 | W29: 25.27093913 | Y29: 61 až 84 žáků | Z29: =COUNTIFS( $I$8:$I$1539,">=61",$I$8:$I$1539,"<=84") -> 119 | AA29: 7.732293697
A30: 2 | B30: CZ032 | C30: Plzeňský | D30: 102464022 | E30: 600073955 | F30: Obec Hošťka | G30: ZŠ 1.st | H30: 1.st | I30: 9 | J30: 0 | K30: 0 | L30: 0 | M30: 0 | N30: 0 | O30: 1 | P30: 0 | Q30: 42690 | R30: 518683.5 | S30: 23800 | T30: 495000 | U30: 709200 | V30: 190516.5 | W30: 26.86357868 | Y30: 85 až 170 žáků | Z30: =COUNTIFS( $I$8:$I$1539,">=85",$I$8:$I$1539,"<=170") -> 147 | AA30: 9.55165692
A31: 2 | B31: CZ051 | C31: Liberecký | D31: 102442649 | E31: 600099024 | F31: Obec Nová Ves nad Popelkou | G31: ZŠ 1.st | H31: 1.st | I31: 9 | J31: 0 | K31: 0 | L31: 0 | M31: 1 | N31: 0 | O31: 1 | P31: 0 | Q31: 51760.36364 | R31: 628888.4182 | S31: 23800 | T31: 495000 | U31: 709200 | V31: 80311.58182 | W31: 11.32425012 | Y31: 171 až 255 žáků | Z31: =COUNTIFS( $I$8:$I$1539,">=171",$I$8:$I$1539,"<=255") -> 30 | AA31: 1.949317739
A32: 2 | B32: CZ063 | C32: Vysočina | D32: 102109214 | E32: 600087018 | F32: Obec Věžnice | G32: ZŠ 1.st | H32: 1.st | I32: 9 | J32: 0 | K32: 0 | L32: 0 | M32: 0 | N32: 0 | O32: 1 | P32: 0 | Q32: 39416 | R32: 478904.4 | S32: 23800 | T32: 495000 | U32: 709200 | V32: 230295.6 | W32: 32.47258883 | Y32: 256 až 340 žáků | Z32: =COUNTIFS( $I$8:$I$1539,">=256",$I$8:$I$1539,"<=340") -> 6 | AA32: 0.3898635478
A33: 2 | B33: CZ071 | C33: Olomoucký | D33: 102308535 | E33: 600140512 | F33: Obec Krčmaň | G33: ZŠ 1.st | H33: 1.st | I33: 9 | J33: 0 | K33: 0 | L33: 0 | M33: 0 | N33: 0 | O33: 1 | P33: 0 | Q33: 48532 | R33: 589663.8 | S33: 23800 | T33: 495000 | U33: 709200 | V33: 119536.2 | W33: 16.85507614 | Y33: 341 až 480 žáků | Z33: =COUNTIFS( $I$8:$I$1539,">=341",$I$8:$I$1539,"<=480") -> 6 | AA33: 0.3898635478
A34: 2 | B34: CZ080 | C34: Moravskoslezský | D34: 102068704 | E34: 600133711 | F34: Obec Dolní Tošanovice | G34: ZŠ 1.st | H34: 1.st | I34: 9 | J34: 0 | K34: 0 | L34: 0 | M34: 0 | N34: 0 | O34: 1 | P34: 0 | Q34: 43450 | R34: 527917.5 | S34: 23800 | T34: 495000 | U34: 709200 | V34: 181282.5 | W34: 25.56154822 | Y34: celkem škol, odloučených pracovišť | Z34: =SUM(Z26:Z33) -> 1532 | AA34: =SUM(AA26:AA33) -> 99.54515919
A35: 2 | B35: CZ080 | C35: Moravskoslezský | D35: 102232415 | E35: 600138313 | F35: Obec Bílov | G35: ZŠ 1.st | H35: 1.st | I35: 9 | J35: 0 | K35: 0 | L35: 0 | M35: 0 | N35: 0 | O35: 1 | P35: 0 | Q35: 43450 | R35: 527917.5 | S35: 23800 | T35: 495000 | U35: 709200 | V35: 181282.5 | W35: 25.56154822
A36: 2 | B36: CZ031 | C36: Jihočeský | D36: 002164710 | E36: 600063682 | F36: Obec Novosedly | G36: ZŠ 1.st | H36: 1.st | I36: 10 | J36: 0 | K36: 0 | L36: 0 | M36: 0 | N36: 0 | O36: 1 | P36: 0 | Q36: 40531 | R36: 547168.5 | S36: 23800 | T36: 550000 | U36: 788000 | V36: 240831.5 | W36: 30.5623731
A37: 2 | B37: CZ031 | C37: Jihočeský | D37: 102003441 | E37: 600060217 | F37: Obec Lužnice | G37: ZŠ 1.st | H37: 1.st | I37: 10 | J37: 0 | K37: 0 | L37: 0 | M37: 0 | N37: 0 | O37: 4 | P37: 0 | Q37: 40531 | R37: 547168.5 | S37: 23800 | T37: 550000 | U37: 788000 | V37: 240831.5 | W37: 30.5623731
A38: 2 | B38: CZ051 | C38: Liberecký | D38: 102005117 | E38: 600074676 | F38: Obec Stružnice | G38: ZŠ 1.st | H38: 1.st | I38: 10 | J38: 0 | K38: 0 | L38: 0 | M38: 0 | N38: 0 | O38: 2 | P38: 0 | Q38: 51760.36364 | R38: 698764.9091 | S38: 23800 | T38: 550000 | U38: 788000 | V38: 89235.09091 | W38: 11.32425012 | Y38: =MAX(I8:I1539) -> 478
A39: 2 | B39: CZ052 | C39: Královéhradecký | D39: 103378626 | E39: 600092488 | F39: Obec Vidochov | G39: ZŠ 1.st | H39: 1.st | I39: 10 | J39: 0 | K39: 0 | L39: 0 | M39: 0 | N39: 0 | O39: 1 | P39: 0 | Q39: 42224 | R39: 570024 | S39: 23800 | T39: 550000 | U39: 788000 | V39: 217976 | W39: 27.66192893
A40: 2 | B40: CZ053 | C40: Pardubický | D40: 102642222 | E40: 650046587 | F40: Obec Mladkov | G40: ZŠ 1.st | H40: 1.st | I40: 10 | J40: 0 | K40: 0 | L40: 0 | M40: 0 | N40: 0 | O40: 1 | P40: 0 | Q40: 42294 | R40: 570969 | S40: 23800 | T40: 550000 | U40: 788000 | V40: 217031 | W40: 27.54200508
A41: 2 | B41: CZ063 | C41: Vysočina | D41: 102006105 | E41: 600086534 | F41: Obec Krásná Hora | G41: ZŠ 1.st | H41: 1.st | I41: 10 | J41: 0 | K41: 0 | L41: 0 | M41: 1 | N41: 0 | O41: 1 | P41: 0 | Q41: 39416 | R41: 532116 | S41: 23800 | T41: 550000 | U41: 788000 | V41: 255884 | W41: 32.47258883
A42: 2 | B42: CZ063 | C42: Vysočina | D42: 108026019 | E42: 600122271 | F42: Obec Lipník | G42: ZŠ 1.st | H42: 1.st | I42: 10 | J42: 0 | K42: 0 | L42: 0 | M42: 0 | N42: 0 | O42: 1 | P42: 0 | Q42: 39416 | R42: 532116 | S42: 23800 | T42: 550000 | U42: 788000 | V42: 255884 | W42: 32.47258883
A43: 2 | B43: CZ063 | C43: Vysočina | D43: 119400553 | E43: 600130711 | F43: Obec Dobrá Voda | G43: ZŠ 1.st | H43: 1.st | I43: 10 | J43: 0 | K43: 0 | L43: 0 | M43: 1 | N43: 0 | O43: 1 | P43: 0 | Q43: 39416 | R43: 532116 | S43: 23800 | T43: 550000 | U43: 788000 | V43: 255884 | W43: 32.47258883
A44: 2 | B44: CZ064 | C44: Jihomoravský | D44: 102179557 | E44: 600110656 | F44: Obec Tetčice | G44: ZŠ 1.st | H44: 1.st | I44: 10 | J44: 0 | K44: 0 | L44: 0 | M44: 0 | N44: 0 | O44: 2 | P44: 0 | Q44: 39987 | R44: 539824.5 | S44: 23800 | T44: 550000 | U44: 788000 | V44: 248175.5 | W44: 31.49435279
A45: 2 | B45: CZ064 | C45: Jihomoravský | D45: 108049256 | E45: 600110753 | F45: Obec Sentice | G45: ZŠ 1.st | H45: 1.st | I45: 10 | J45: 0 | K45: 0 | L45: 0 | M45: 0 | N45: 0 | O45: 1 | P45: 0 | Q45: 39987 | R45: 539824.5 | S45: 23800 | T45: 550000 | U45: 788000 | V45: 248175.5 | W45: 31.49435279
A46: 2 | B46: CZ020 | C46: Středočeský | D46: 102226288 | E46: 600046257 | F46: Obec Krchleby | G46: ZŠ 1.st | H46: 1.st | I46: 11 | J46: 0 | K46: 0 | L46: 0 | M46: 0 | N46: 0 | O46: 2 | P46: 0 | Q46: 39813.18659 | R46: 591225.8209 | S46: 23800 | T46: 550000 | U46: 811800 | V46: 220574.1791 | W46: 27.17100014
A47: 2 | B47: CZ020 | C47: Středočeský | D47: 102274649 | E47: 600047776 | F47: Obec Hostín u Vojkovic | G47: ZŠ 1.st | H47: 1.st | I47: 11 | J47: 0 | K47: 0 | L47: 0 | M47: 0 | N47: 0 | O47: 2 | P47: 0 | Q47: 39813.18659 | R47: 591225.8209 | S47: 23800 | T47: 550000 | U47: 811800 | V47: 220574.1791 | W47: 27.17100014
A48: 2 | B48: CZ020 | C48: Středočeský | D48: 102586870 | E48: 600055906 | F48: Obec Hředle | G48: ZŠ 1.st | H48: 1.st | I48: 11 | J48: 0 | K48: 0 | L48: 0 | M48: 0 | N48: 0 | O48: 1 | P48: 0 | Q48: 39813.18659 | R48: 591225.8209 | S48: 23800 | T48: 550000 | U48: 811800 | V48: 220574.1791 | W48: 27.17100014
A49: 2 | B49: CZ031 | C49: Jihočeský | D49: 102463000 | E49: 650053605 | F49: Obec Stožec | G49: ZŠ 1.st | H49: 1.st | I49: 11 | J49: 0 | K49: 0 | L49: 0 | M49: 0 | N49: 0 | O49: 1 | P49: 0 | Q49: 39036 | R49: 579684.6 | S49: 23800 | T49: 550000 | U49: 811800 | V49: 232115.4 | W49: 28.59268293
A50: 2 | B50: CZ031 | C50: Jihočeský | D50: 151001146 | E50: 650040546 | F50: Obec Rožmitál na Šumavě | G50: ZŠ 1.st | H50: 1.st | I50: 11 | J50: 0 | K50: 0 | L50: 0 | M50: 0 | N50: 0 | O50: 1 | P50: 0 | Q50: 39036 | R50: 579684.6 | S50: 23800 | T50: 550000 | U50: 811800 | V50: 232115.4 | W50: 28.59268293
A51: 2 | B51: CZ031 | C51: Jihočeský | D51: 181011719 | E51: 691000905 | F51: Obec Petříkov | G51: ZŠ 1.st | H51: 1.st | I51: 11 | J51: 0 | K51: 1 | L51: 0 | M51: 0 | N51: 0 | O51: 1 | P51: 0 | Q51: 39036 | R51: 579684.6 | S51: 23800 | T51: 550000 | U51: 811800 | V51: 232115.4 | W51: 28.59268293
A52: 2 | B52: CZ032 | C52: Plzeňský | D52: 102152985 | E52: 650058313 | F52: Obec Srní | G52: ZŠ 1.st | H52: 1.st | I52: 11 | J52: 0 | K52: 1 | L52: 0 | M52: 0 | N52: 0 | O52: 1 | P52: 0 | Q52: 39995 | R52: 593925.75 | S52: 23800 | T52: 550000 | U52: 811800 | V52: 217874.25 | W52: 26.83841463
A53: 2 | B53: CZ032 | C53: Plzeňský | D53: 102464103 | E53: 600073807 | F53: Obec Rozvadov | G53: ZŠ 1.st | H53: 1.st | I53: 11 | J53: 0 | K53: 0 | L53: 0 | M53: 0 | N53: 0 | O53: 2 | P53: 0 | Q53: 39995 | R53: 593925.75 | S53: 23800 | T53: 550000 | U53: 811800 | V53: 217874.25 | W53: 26.83841463
A54: 2 | B54: CZ051 | C54: Liberecký | D54: 102165823 | E54: 600078337 | F54: Obec Skuhrov | G54: ZŠ 1.st | H54: 1.st | I54: 11 | J54: 0 | K54: 0 | L54: 0 | M54: 0 | N54: 0 | O54: 1 | P54: 0 | Q54: 46171.10284 | R54: 685640.8772 | S54: 23800 | T54: 550000 | U54: 811800 | V54: 126159.1228 | W54: 15.54066554
A55: 2 | B55: CZ051 | C55: Liberecký | D55: 102165831 | E55: 600078604 | F55: Obec Zlatá Olešnice | G55: ZŠ 1.st | H55: 1.st | I55: 11 | J55: 0 | K55: 0 | L55: 0 | M55: 0 | N55: 0 | O55: 1 | P55: 0 | Q55: 46171.10284 | R55: 685640.8772 | S55: 23800 | T55: 550000 | U55: 811800 | V55: 126159.1228 | W55: 15.54066554
A56: 2 | B56: CZ051 | C56: Liberecký | D56: 102442843 | E56: 600099326 | F56: Obec Vítkovice | G56: ZŠ 1.st | H56: 1.st | I56: 11 | J56: 0 | K56: 1 | L56: 0 | M56: 2 | N56: 0 | O56: 1 | P56: 0 | Q56: 46171.10284 | R56: 685640.8772 | S56: 23800 | T56: 550000 | U56: 811800 | V56: 126159.1228 | W56: 15.54066554
A57: 2 | B57: CZ052 | C57: Královéhradecký | D57: 102254346 | E57: 600093905 | F57: Město Jaroměř | G57: ZŠ 1.st | H57: 1.st | I57: 11 | J57: 0 | K57: 0 | L57: 0 | M57: 1 | N57: 0 | O57: 1 | P57: 0 | Q57: 42224 | R57: 627026.4 | S57: 23800 | T57: 550000 | U57: 811800 | V57: 184773.6 | W57: 22.76097561
A58: 2 | B58: CZ053 | C58: Pardubický | D58: 102642061 | E58: 650025415 | F58: Obec Cotkytle | G58: ZŠ 1.st | H58: 1.st | I58: 11 | J58: 0 | K58: 0 | L58: 0 | M58: 1 | N58: 0 | O58: 1 | P58: 0 | Q58: 42294 | R58: 628065.9 | S58: 23800 | T58: 550000 | U58: 811800 | V58: 183734.1 | W58: 22.63292683
A59: 2 | B59: CZ053 | C59: Pardubický | D59: 117200883 | E59: 650045475 | F59: Obec Stolany | G59: ZŠ 1.st | H59: 1.st | I59: 11 | J59: 0 | K59: 0 | L59: 0 | M59: 0 | N59: 0 | O59: 1 | P59: 0 | Q59: 42294 | R59: 628065.9 | S59: 23800 | T59: 550000 | U59: 811800 | V59: 183734.1 | W59: 22.63292683
A60: 2 | B60: CZ063 | C60: Vysočina | D60: 102443581 | E60: 600116981 | F60: Obec Urbanov | G60: ZŠ 1.st | H60: 1.st | I60: 11 | J60: 0 | K60: 0 | L60: 0 | M60: 0 | N60: 0 | O60: 1 | P60: 0 | Q60: 37256 | R60: 553251.6 | S60: 23800 | T60: 550000 | U60: 811800 | V60: 258548.4 | W60: 31.84878049
A61: 2 | B61: CZ063 | C61: Vysočina | D61: 102655201 | E61: 600121909 | F61: Obec Kojetice | G61: ZŠ 1.st | H61: 1.st | I61: 11 | J61: 0 | K61: 1 | L61: 0 | M61: 0 | N61: 0 | O61: 1 | P61: 0 | Q61: 37256 | R61: 553251.6 | S61: 23800 | T61: 550000 | U61: 811800 | V61: 258548.4 | W61: 31.84878049
A62: 2 | B62: CZ063 | C62: Vysočina | D62: 102655324 | E62: 600121976 | F62: Obec Benetice | G62: ZŠ 1.st | H62: 1.st | I62: 11 | J62: 0 | K62: 0 | L62: 0 | M62: 1 | N62: 0 | O62: 1 | P62: 0 | Q62: 37256 | R62: 553251.6 | S62: 23800 | T62: 550000 | U62: 811800 | V62: 258548.4 | W62: 31.84878049
A63: 2 | B63: CZ063 | C63: Vysočina | D63: 102931631 | E63: 600130789 | F63: Obec Pavlínov | G63: ZŠ 1.st | H63: 1.st | I63: 11 | J63: 0 | K63: 0 | L63: 0 | M63: 0 | N63: 0 | O63: 2 | P63: 0 | Q63: 37256 | R63: 553251.6 | S63: 23800 | T63: 550000 | U63: 811800 | V63: 258548.4 | W63: 31.84878049
A64: 2 | B64: CZ063 | C64: Vysočina | D64: 108027228 | E64: 600130801 | F64: Obec Unčín | G64: ZŠ 1.st | H64: 1.st | I64: 11 | J64: 0 | K64: 0 | L64: 0 | M64: 0 | N64: 0 | O64: 1 | P64: 0 | Q64: 37256 | R64: 553251.6 | S64: 23800 | T64: 550000 | U64: 811800 | V64: 258548.4 | W64: 31.84878049
A65: 2 | B65: CZ064 | C65: Jihomoravský | D65: 102108072 | E65: 600106365 | F65: Obec Nýrov | G65: ZŠ 1.st | H65: 1.st | I65: 11 | J65: 0 | K65: 0 | L65: 0 | M65: 0 | N65: 0 | O65: 1 | P65: 0 | Q65: 38860 | R65: 577071 | S65: 23800 | T65: 550000 | U65: 811800 | V65: 234729 | W65: 28.91463415
A66: 2 | B66: CZ064 | C66: Jihomoravský | D66: 102791996 | E66: 600125548 | F66: Obec Hlubočany | G66: ZŠ 1.st | H66: 1.st | I66: 11 | J66: 0 | K66: 0 | L66: 0 | M66: 0 | N66: 0 | O66: 1 | P66: 0 | Q66: 38860 | R66: 577071 | S66: 23800 | T66: 550000 | U66: 811800 | V66: 234729 | W66: 28.91463415
A67: 2 | B67: CZ064 | C67: Jihomoravský | D67: 102807191 | E67: 600125696 | F67: Obec Rostěnice - Zvonovice | G67: ZŠ 1.st | H67: 1.st | I67: 11 | J67: 0 | K67: 0 | L67: 0 | M67: 1 | N67: 0 | O67: 2 | P67: 0 | Q67: 38860 | R67: 577071 | S67: 23800 | T67: 550000 | U67: 811800 | V67: 234729 | W67: 28.91463415
A68: 2 | B68: CZ071 | C68: Olomoucký | D68: 102592721 | E68: 650036921 | F68: Obec Olšovec | G68: ZŠ 1.st | H68: 1.st | I68: 11 | J68: 0 | K68: 0 | L68: 0 | M68: 0 | N68: 0 | O68: 1 | P68: 0 | Q68: 44421 | R68: 659651.85 | S68: 23800 | T68: 550000 | U68: 811800 | V68: 152148.15 | W68: 18.74207317
A69: 2 | B69: CZ080 | C69: Moravskoslezský | D69: 102113645 | E69: 600136361 | F69: Město Český Těšín | G69: ZŠ 1.st | H69: 1.st | I69: 11 | J69: 0 | K69: 0 | L69: 0 | M69: 1 | N69: 0 | O69: 1 | P69: 0 | Q69: 41242 | R69: 612443.7 | S69: 23800 | T69: 550000 | U69: 811800 | V69: 199356.3 | W69: 24.55731707
A70: 2 | B70: CZ020 | C70: Středočeský | D70: 002174162 | E70: 600045561 | F70: Obec Oleška | G70: ZŠ 1.st | H70: 1.st | I70: 12 | J70: 0 | K70: 0 | L70: 0 | M70: 0 | N70: 0 | O70: 2 | P70: 0 | Q70: 36285.7702 | R70: 587829.4773 | S70: 23800 | T70: 550000 | U70: 835600 | V70: 247770.5227 | W70: 29.6518098
A71: 2 | B71: CZ020 | C71: Středočeský | D71: 002174251 | E71: 600045676 | F71: Obec Vitice | G71: ZŠ 1.st | H71: 1.st | I71: 12 | J71: 0 | K71: 0 | L71: 0 | M71: 0 | N71: 0 | O71: 1 | P71: 0 | Q71: 36285.7702 | R71: 587829.4773 | S71: 23800 | T71: 550000 | U71: 835600 | V71: 247770.5227 | W71: 29.6518098
A72: 2 | B72: CZ020 | C72: Středočeský | D72: 102002126 | E72: 600041930 | F72: Městys Louňovice pod Blaníkem | G72: ZŠ 1.st | H72: 1.st | I72: 12 | J72: 0 | K72: 0 | L72: 0 | M72: 0 | N72: 0 | O72: 1 | P72: 0 | Q72: 36285.7702 | R72: 587829.4773 | S72: 23800 | T72: 550000 | U72: 835600 | V72: 247770.5227 | W72: 29.6518098
A73: 2 | B73: CZ031 | C73: Jihočeský | D73: 108053822 | E73: 600062104 | F73: Obec Orlík nad Vltavou | G73: ZŠ 1.st | H73: 1.st | I73: 12 | J73: 0 | K73: 0 | L73: 0 | M73: 0 | N73: 0 | O73: 2 | P73: 0 | Q73: 37660 | R73: 610092 | S73: 23800 | T73: 550000 | U73: 835600 | V73: 225508 | W73: 26.98755385
A74: 2 | B74: CZ041 | C74: Karlovarský | D74: 102088322 | E74: 600067378 | F74: Obec Štědrá | G74: ZŠ 1.st | H74: 1.st | I74: 12 | J74: 0 | K74: 0 | L74: 0 | M74: 1 | N74: 0 | O74: 1 | P74: 0 | Q74: 38301.04322 | R74: 620476.9001 | S74: 23800 | T74: 550000 | U74: 835600 | V74: 215123.0999 | W74: 25.74474627
A75: 2 | B75: CZ042 | C75: Ústecký | D75: 102053448 | E75: 600076067 | F75: Obec Heřmanov | G75: ZŠ 1.st | H75: 1.st | I75: 12 | J75: 0 | K75: 1 | L75: 0 | M75: 0 | N75: 0 | O75: 1 | P75: 0 | Q75: 39071 | R75: 632950.2 | S75: 23800 | T75: 550000 | U75: 835600 | V75: 202649.8 | W75: 24.25201053
A76: 2 | B76: CZ042 | C76: Ústecký | D76: 102305706 | E76: 600081575 | F76: Město Terezín | G76: ZŠ 1.st | H76: 1.st | I76: 12 | J76: 0 | K76: 0 | L76: 0 | M76: 0 | N76: 0 | O76: 1 | P76: 0 | Q76: 39071 | R76: 632950.2 | S76: 23800 | T76: 550000 | U76: 835600 | V76: 202649.8 | W76: 24.25201053
A77: 2 | B77: CZ042 | C77: Ústecký | D77: 102377243 | E77: 600082733 | F77: Obec Domoušice | G77: ZŠ 1.st | H77: 1.st | I77: 12 | J77: 0 | K77: 0 | L77: 0 | M77: 0 | N77: 0 | O77: 1 | P77: 0 | Q77: 39071 | R77: 632950.2 | S77: 23800 | T77: 550000 | U77: 835600 | V77: 202649.8 | W77: 24.25201053
A78: 2 | B78: CZ052 | C78: Královéhradecký | D78: 102390509 | E78: 650047087 | F78: Obec Deštné v Orlických horách | G78: ZŠ 1.st | H78: 1.st | I78: 12 | J78: 0 | K78: 0 | L78: 0 | M78: 1 | N78: 0 | O78: 1 | P78: 0 | Q78: 39984.85 | R78: 647754.57 | S78: 23800 | T78: 550000 | U78: 835600 | V78: 187845.43 | W78: 22.48030517
A79: 2 | B79: CZ052 | C79: Královéhradecký | D79: 108009297 | E79: 650060903 | F79: Obec Synkov - Slemeno | G79: ZŠ 1.st | H79: 1.st | I79: 12 | J79: 0 | K79: 0 | L79: 0 | M79: 0 | N79: 0 | O79: 1 | P79: 0 | Q79: 39984.85 | R79: 647754.57 | S79: 23800 | T79: 550000 | U79: 835600 | V79: 187845.43 | W79: 22.48030517
A80: 2 | B80: CZ052 | C80: Královéhradecký | D80: 151003637 | E80: 600094006 | F80: Město Police nad Metují | G80: ZŠ 1.st | H80: 1.st | I80: 12 | J80: 0 | K80: 0 | L80: 0 | M80: 1 | N80: 0 | O80: 1 | P80: 0 | Q80: 39984.85 | R80: 647754.57 | S80: 23800 | T80: 550000 | U80: 835600 | V80: 187845.43 | W80: 22.48030517
A81: 2 | B81: CZ063 | C81: Vysočina | D81: 103619461 | E81: 600117235 | F81: Obec Kozlov | G81: ZŠ 1.st | H81: 1.st | I81: 12 | J81: 0 | K81: 0 | L81: 0 | M81: 0 | N81: 0 | O81: 1 | P81: 0 | Q81: 35479 | R81: 574759.8 | S81: 23800 | T81: 550000 | U81: 835600 | V81: 260840.2 | W81: 31.21591671
A82: 2 | B82: CZ064 | C82: Jihomoravský | D82: 118100556 | E82: 600106411 | F82: Obec Voděrady | G82: ZŠ 1.st | H82: 1.st | I82: 12 | J82: 0 | K82: 0 | L82: 0 | M82: 0 | N82: 0 | O82: 1 | P82: 0 | Q82: 37795 | R82: 612279 | S82: 23800 | T82: 550000 | U82: 835600 | V82: 223321 | W82: 26.72582575
A83: 2 | B83: CZ064 | C83: Jihomoravský | D83: 150045042 | E83: 650045017 | F83: Obec Unkovice | G83: ZŠ 1.st | H83: 1.st | I83: 12 | J83: 0 | K83: 0 | L83: 0 | M83: 0 | N83: 0 | O83: 1 | P83: 0 | Q83: 37795 | R83: 612279 | S83: 23800 | T83: 550000 | U83: 835600 | V83: 223321 | W83: 26.72582575
A84: 2 | B84: CZ071 | C84: Olomoucký | D84: 102668744 | E84: 600148203 | F84: Obec Svébohov | G84: ZŠ 1.st | H84: 1.st | I84: 12 | J84: 0 | K84: 0 | L84: 0 | M84: 0 | N84: 0 | O84: 1 | P84: 0 | Q84: 42820 | R84: 693684 | S84: 23800 | T84: 550000 | U84: 835600 | V84: 141916 | W84: 16.98372427
A85: 2 | B85: CZ071 | C85: Olomoucký | D85: 150010125 | E85: 650010116 | F85: Obec Kobylá nad Vidnavkou | G85: ZŠ 1.st | H85: 1.st | I85: 12 | J85: 0 | K85: 0 | L85: 0 | M85: 0 | N85: 0 | O85: 1 | P85: 0 | Q85: 42820 | R85: 693684 | S85: 23800 | T85: 550000 | U85: 835600 | V85: 141916 | W85: 16.98372427
A86: 2 | B86: CZ072 | C86: Zlínský | D86: 102307903 | E86: 600114422 | F86: Obec Drnovice | G86: ZŠ 1.st | H86: 1.st | I86: 12 | J86: 0 | K86: 0 | L86: 0 | M86: 1 | N86: 0 | O86: 1 | P86: 0 | Q86: 42752.07906 | R86: 692583.6807 | S86: 23800 | T86: 550000 | U86: 835600 | V86: 143016.3193 | W86: 17.11540442
A87: 2 | B87: CZ072 | C87: Zlínský | D87: 151029750 | E87: 600114414 | F87: Obec Dolní Lhota | G87: ZŠ 1.st | H87: 1.st | I87: 12 | J87: 0 | K87: 0 | L87: 0 | M87: 0 | N87: 0 | O87: 1 | P87: 0 | Q87: 42752.07906 | R87: 692583.6807 | S87: 23800 | T87: 550000 | U87: 835600 | V87: 143016.3193 | W87: 17.11540442
A88: 2 | B88: CZ080 | C88: Moravskoslezský | D88: 102008159 | E88: 600132081 | F88: Obec Rudná pod Pradědem | G88: ZŠ 1.st | H88: 1.st | I88: 12 | J88: 0 | K88: 0 | L88: 0 | M88: 0 | N88: 0 | O88: 1 | P88: 0 | Q88: 39395 | R88: 638199 | S88: 23800 | T88: 550000 | U88: 835600 | V88: 197401 | W88: 23.62386309
A89: 2 | B89: CZ080 | C89: Moravskoslezský | D89: 102068798 | E89: 600134083 | F89: Obec Písek | G89: ZŠ 1.st | H89: 1.st | I89: 12 | J89: 0 | K89: 0 | L89: 0 | M89: 0 | N89: 0 | O89: 1 | P89: 0 | Q89: 39395 | R89: 638199 | S89: 23800 | T89: 550000 | U89: 835600 | V89: 197401 | W89: 23.62386309
A90: 2 | B90: CZ080 | C90: Moravskoslezský | D90: 102156263 | E90: 600135861 | F90: Obec Dolní Lutyně | G90: ZŠ 1.st | H90: 1.st | I90: 12 | J90: 0 | K90: 0 | L90: 0 | M90: 0 | N90: 0 | O90: 1 | P90: 0 | Q90: 39395 | R90: 638199 | S90: 23800 | T90: 550000 | U90: 835600 | V90: 197401 | W90: 23.62386309
A91: 2 | B91: CZ020 | C91: Středočeský | D91: 102374783 | E91: 600050980 | F91: Obec Kovanice | G91: ZŠ 1.st | H91: 1.st | I91: 13 | J91: 0 | K91: 0 | L91: 0 | M91: 0 | N91: 0 | O91: 1 | P91: 0 | Q91: 34191.1072 | R91: 600053.9313 | S91: 23800 | T91: 550000 | U91: 859400 | V91: 259346.0687 | W91: 30.17757374
A92: 2 | B92: CZ031 | C92: Jihočeský | D92: 102515506 | E92: 600063216 | F92: Obec Zbytiny | G92: ZŠ 1.st | H92: 1.st | I92: 13 | J92: 0 | K92: 1 | L92: 0 | M92: 1 | N92: 0 | O92: 2 | P92: 0 | Q92: 36390 | R92: 638644.5 | S92: 23800 | T92: 550000 | U92: 859400 | V92: 220755.5 | W92: 25.68716546
A93: 2 | B93: CZ031 | C93: Jihočeský | D93: 107720035 | E93: 650028899 | F93: Obec Doudleby | G93: ZŠ 1.st | H93: 1.st | I93: 13 | J93: 0 | K93: 0 | L93: 0 | M93: 0 | N93: 0 | O93: 1 | P93: 0 | Q93: 36390 | R93: 638644.5 | S93: 23800 | T93: 550000 | U93: 859400 | V93: 220755.5 | W93: 25.68716546
A94: 2 | B94: CZ031 | C94: Jihočeský | D94: 108023761 | E94: 650029526 | F94: Obec Všemyslice | G94: ZŠ 1.st | H94: 1.st | I94: 13 | J94: 0 | K94: 0 | L94: 0 | M94: 0 | N94: 0 | O94: 1 | P94: 0 | Q94: 36390 | R94: 638644.5 | S94: 23800 | T94: 550000 | U94: 859400 | V94: 220755.5 | W94: 25.68716546
A95: 2 | B95: CZ042 | C95: Ústecký | D95: 102377278 | E95: 600082776 | F95: Obec Koštice | G95: ZŠ 1.st | H95: 1.st | I95: 13 | J95: 0 | K95: 0 | L95: 0 | M95: 0 | N95: 0 | O95: 1 | P95: 0 | Q95: 38377 | R95: 673516.35 | S95: 23800 | T95: 550000 | U95: 859400 | V95: 185883.65 | W95: 21.62946823
A96: 2 | B96: CZ051 | C96: Liberecký | D96: 108029123 | E96: 600075001 | F96: Obec Okrouhlá | G96: ZŠ 1.st | H96: 1.st | I96: 13 | J96: 0 | K96: 1 | L96: 0 | M96: 0 | N96: 0 | O96: 1 | P96: 0 | Q96: 38823.1603 | R96: 681346.4633 | S96: 23800 | T96: 550000 | U96: 859400 | V96: 178053.5367 | W96: 20.71835428
A97: 2 | B97: CZ052 | C97: Královéhradecký | D97: 102190950 | E97: 650062671 | F97: Obec Podhorní Újezd a Vojice | G97: ZŠ 1.st | H97: 1.st | I97: 13 | J97: 0 | K97: 0 | L97: 0 | M97: 0 | N97: 0 | O97: 1 | P97: 0 | Q97: 38154.22 | R97: 669606.561 | S97: 23800 | T97: 550000 | U97: 859400 | V97: 189793.439 | W97: 22.08441226
A98: 2 | B98: CZ052 | C98: Královéhradecký | D98: 102390690 | E98: 650047087 | F98: Obec Deštné v Orlických horách | G98: ZŠ 1.st | H98: 1.st | I98: 13 | J98: 0 | K98: 0 | L98: 0 | M98: 2 | N98: 0 | O98: 2 | P98: 0 | Q98: 38154.22 | R98: 669606.561 | S98: 23800 | T98: 550000 | U98: 859400 | V98: 189793.439 | W98: 22.08441226
A99: 2 | B99: CZ052 | C99: Královéhradecký | D99: 102578265 | E99: 600102050 | F99: Město Dvůr Králové nad Labem | G99: ZŠ 1.st | H99: 1.st | I99: 13 | J99: 0 | K99: 0 | L99: 0 | M99: 0 | N99: 0 | O99: 3 | P99: 0 | Q99: 38154.22 | R99: 669606.561 | S99: 23800 | T99: 550000 | U99: 859400 | V99: 189793.439 | W99: 22.08441226
A100: 2 | B100: CZ052 | C100: Královéhradecký | D100: 103378618 | E100: 600092500 | F100: Obec Jeřice | G100: ZŠ 1.st | H100: 1.st | I100: 13 | J100: 0 | K100: 0 | L100: 0 | M100: 0 | N100: 0 | O100: 1 | P100: 0 | Q100: 38154.22 | R100: 669606.561 | S100: 23800 | T100: 550000 | U100: 859400 | V100: 189793.439 | W100: 22.08441226
A101: 2 | B101: CZ053 | C101: Pardubický | D101: 108040038 | E101: 650046293 | F101: Obec Květná | G101: ZŠ 1.st | H101: 1.st | I101: 13 | J101: 0 | K101: 0 | L101: 0 | M101: 0 | N101: 0 | O101: 1 | P101: 0 | Q101: 36420 | R101: 639171 | S101: 23800 | T101: 550000 | U101: 859400 | V101: 220229 | W101: 25.62590179
A102: 2 | B102: CZ063 | C102: Vysočina | D102: 102931470 | E102: 600130428 | F102: Obec Heřmanov | G102: ZŠ 1.st | H102: 1.st | I102: 13 | J102: 0 | K102: 0 | L102: 0 | M102: 0 | N102: 0 | O102: 1 | P102: 0 | Q102: 33990 | R102: 596524.5 | S102: 23800 | T102: 550000 | U102: 859400 | V102: 262875.5 | W102: 30.58825925
A103: 2 | B103: CZ063 | C103: Vysočina | D103: 108021238 | E103: 600117278 | F103: Obec Pavlov | G103: ZŠ 1.st | H103: 1.st | I103: 13 | J103: 0 | K103: 0 | L103: 0 | M103: 0 | N103: 0 | O103: 1 | P103: 0 | Q103: 33990 | R103: 596524.5 | S103: 23800 | T103: 550000 | U103: 859400 | V103: 262875.5 | W103: 30.58825925
A104: 2 | B104: CZ064 | C104: Jihomoravský | D104: 102007021 | E104: 600105938 | F104: Obec Brumov | G104: ZŠ 1.st | H104: 1.st | I104: 13 | J104: 0 | K104: 0 | L104: 0 | M104: 0 | N104: 0 | O104: 1 | P104: 0 | Q104: 36829 | R104: 646348.95 | S104: 23800 | T104: 550000 | U104: 859400 | V104: 213051.05 | W104: 24.79067373
A105: 2 | B105: CZ064 | C105: Jihomoravský | D105: 108049230 | E105: 600110745 | F105: Obec Silůvky | G105: ZŠ 1.st | H105: 1.st | I105: 13 | J105: 0 | K105: 1 | L105: 0 | M105: 0 | N105: 0 | O105: 1 | P105: 0 | Q105: 36829 | R105: 646348.95 | S105: 23800 | T105: 550000 | U105: 859400 | V105: 213051.05 | W105: 24.79067373
A106: 2 | B106: CZ071 | C106: Olomoucký | D106: 102668639 | E106: 600148149 | F106: Obec Mírov | G106: ZŠ 1.st | H106: 1.st | I106: 13 | J106: 0 | K106: 0 | L106: 0 | M106: 0 | N106: 0 | O106: 4 | P106: 0 | Q106: 41449 | R106: 727429.95 | S106: 23800 | T106: 550000 | U106: 859400 | V106: 131970.05 | W106: 15.35606819
A107: 2 | B107: CZ071 | C107: Olomoucký | D107: 120201658 | E107: 600146740 | F107: Obec Jindřichov | G107: ZŠ 1.st | H107: 1.st | I107: 13 | J107: 0 | K107: 0 | L107: 0 | M107: 0 | N107: 0 | O107: 1 | P107: 0 | Q107: 41449 | R107: 727429.95 | S107: 23800 | T107: 550000 | U107: 859400 | V107: 131970.05 | W107: 15.35606819
A108: 2 | B108: CZ072 | C108: Zlínský | D108: 102768269 | E108: 600149994 | F108: Obec Zděchov | G108: ZŠ 1.st | H108: 1.st | I108: 13 | J108: 0 | K108: 0 | L108: 0 | M108: 0 | N108: 0 | O108: 2 | P108: 0 | Q108: 40562.48626 | R108: 711871.6339 | S108: 23800 | T108: 550000 | U108: 859400 | V108: 147528.3661 | W108: 17.16643776
A109: 2 | B109: CZ080 | C109: Moravskoslezský | D109: 102008213 | E109: 600131785 | F109: Obec Lomnice | G109: ZŠ 1.st | H109: 1.st | I109: 13 | J109: 0 | K109: 0 | L109: 0 | M109: 0 | N109: 0 | O109: 1 | P109: 0 | Q109: 37837 | R109: 664039.35 | S109: 23800 | T109: 550000 | U109: 859400 | V109: 195360.65 | W109: 22.73221434
A110: 2 | B110: CZ080 | C110: Moravskoslezský | D110: 102156328 | E110: 600135853 | F110: Město Orlová | G110: ZŠ 1.st | H110: 1.st | I110: 13 | J110: 0 | K110: 0 | L110: 0 | M110: 0 | N110: 0 | O110: 1 | P110: 0 | Q110: 37837 | R110: 664039.35 | S110: 23800 | T110: 550000 | U110: 859400 | V110: 195360.65 | W110: 22.73221434
A111: 7 | B111: CZ064 | C111: Jihomoravský | D111: 110023391 | E111: 600024962 | F111: Jihomoravský kraj | G111: ZŠ 1.st | H111: 1.st | I111: 13 | J111: 13 | K111: 10 | L111: 10 | M111: 3 | N111: 3 | O111: 2 | P111: 2 | Q111: 36829 | R111: 646348.95 | S111: 23800 | T111: 550000 | U111: 859400 | V111: 213051.05 | W111: 24.79067373
A112: 2 | B112: CZ020 | C112: Středočeský | D112: 002962683 | E112: 600043126 | F112: Obec Srbsko | G112: ZŠ 1.st | H112: 1.st | I112: 14 | J112: 0 | K112: 0 | L112: 0 | M112: 0 | N112: 0 | O112: 1 | P112: 0 | Q112: 33019.52587 | R112: 624069.0389 | S112: 23800 | T112: 550000 | U112: 883200 | V112: 259130.9611 | W112: 29.34000919
A113: 2 | B113: CZ031 | C113: Jihočeský | D113: 107720141 | E113: 650033060 | F113: Obec Římov | G113: ZŠ 1.st | H113: 1.st | I113: 14 | J113: 0 | K113: 0 | L113: 0 | M113: 0 | N113: 0 | O113: 1 | P113: 0 | Q113: 35214 | R113: 665544.6 | S113: 23800 | T113: 550000 | U113: 883200 | V113: 217655.4 | W113: 24.6439538
A114: 2 | B114: CZ031 | C114: Jihočeský | D114: 107721031 | E114: 600060365 | F114: Obec Budeč | G114: ZŠ 1.st | H114: 1.st | I114: 14 | J114: 0 | K114: 0 | L114: 0 | M114: 0 | N114: 0 | O114: 1 | P114: 0 | Q114: 35214 | R114: 665544.6 | S114: 23800 | T114: 550000 | U114: 883200 | V114: 217655.4 | W114: 24.6439538
A115: 2 | B115: CZ032 | C115: Plzeňský | D115: 102464073 | E115: 600073971 | F115: Obec Lesná | G115: ZŠ 1.st | H115: 1.st | I115: 14 | J115: 0 | K115: 0 | L115: 0 | M115: 0 | N115: 0 | O115: 1 | P115: 0 | Q115: 34936 | R115: 660290.4 | S115: 23800 | T115: 550000 | U115: 883200 | V115: 222909.6 | W115: 25.2388587
A116: 2 | B116: CZ041 | C116: Karlovarský | D116: 102416567 | E116: 600072908 | F116: Obec Rovná | G116: ZŠ 1.st | H116: 1.st | I116: 14 | J116: 0 | K116: 0 | L116: 0 | M116: 0 | N116: 0 | O116: 1 | P116: 0 | Q116: 35049.43744 | R116: 662434.3675 | S116: 23800 | T116: 550000 | U116: 883200 | V116: 220765.6325 | W116: 24.99610875
A117: 2 | B117: CZ042 | C117: Ústecký | D117: 102305781 | E117: 600081630 | F117: Obec Chodouny | G117: ZŠ 1.st | H117: 1.st | I117: 14 | J117: 0 | K117: 0 | L117: 0 | M117: 0 | N117: 0 | O117: 1 | P117: 0 | Q117: 37707 | R117: 712662.3 | S117: 23800 | T117: 550000 | U117: 883200 | V117: 170537.7 | W117: 19.30906929
A118: 2 | B118: CZ042 | C118: Ústecký | D118: 102517185 | E118: 600085627 | F118: Statutární město Ústí nad Labem | G118: ZŠ 1.st | H118: 1.st | I118: 14 | J118: 0 | K118: 0 | L118: 0 | M118: 0 | N118: 0 | O118: 1 | P118: 0 | Q118: 37707 | R118: 712662.3 | S118: 23800 | T118: 550000 | U118: 883200 | V118: 170537.7 | W118: 19.30906929
A119: 2 | B119: CZ042 | C119: Ústecký | D119: 116200014 | E119: 600077624 | F119: Obec Vysoká Pec | G119: ZŠ 1.st | H119: 1.st | I119: 14 | J119: 0 | K119: 0 | L119: 0 | M119: 0 | N119: 0 | O119: 1 | P119: 0 | Q119: 37707 | R119: 712662.3 | S119: 23800 | T119: 550000 | U119: 883200 | V119: 170537.7 | W119: 19.30906929
A120: 2 | B120: CZ051 | C120: Liberecký | D120: 102229350 | E120: 650021479 | F120: Obec Hlavice | G120: ZŠ 1.st | H120: 1.st | I120: 14 | J120: 0 | K120: 0 | L120: 0 | M120: 0 | N120: 0 | O120: 1 | P120: 0 | Q120: 36263.00053 | R120: 685370.71 | S120: 23800 | T120: 550000 | U120: 883200 | V120: 197829.29 | W120: 22.39914968
A121: 2 | B121: CZ052 | C121: Královéhradecký | D121: 102066515 | E121: 600088685 | F121: Obec Kosičky | G121: ZŠ 1.st | H121: 1.st | I121: 14 | J121: 0 | K121: 0 | L121: 0 | M121: 0 | N121: 0 | O121: 2 | P121: 0 | Q121: 36568.13 | R121: 691137.657 | S121: 23800 | T121: 550000 | U121: 883200 | V121: 192062.343 | W121: 21.7461892
A122: 2 | B122: CZ052 | C122: Královéhradecký | D122: 102254281 | E122: 650063007 | F122: Obec Jetřichov | G122: ZŠ 1.st | H122: 1.st | I122: 14 | J122: 0 | K122: 1 | L122: 0 | M122: 4 | N122: 0 | O122: 1 | P122: 0 | Q122: 36568.13 | R122: 691137.657 | S122: 23800 | T122: 550000 | U122: 883200 | V122: 192062.343 | W122: 21.7461892
A123: 2 | B123: CZ063 | C123: Vysočina | D123: 108027554 | E123: 600130703 | F123: Obec Lísek | G123: ZŠ 1.st | H123: 1.st | I123: 14 | J123: 0 | K123: 0 | L123: 0 | M123: 1 | N123: 0 | O123: 1 | P123: 0 | Q123: 32718 | R123: 618370.2 | S123: 23800 | T123: 550000 | U123: 883200 | V123: 264829.8 | W123: 29.98525815
A124: 2 | B124: CZ063 | C124: Vysočina | D124: 150014244 | E124: 650014235 | F124: Obec Bohdalec | G124: ZŠ 1.st | H124: 1.st | I124: 14 | J124: 0 | K124: 0 | L124: 0 | M124: 0 | N124: 0 | O124: 1 | P124: 0 | Q124: 32718 | R124: 618370.2 | S124: 23800 | T124: 550000 | U124: 883200 | V124: 264829.8 | W124: 29.98525815
A125: 2 | B125: CZ063 | C125: Vysočina | D125: 150014309 | E125: 650014294 | F125: Obec Dolní Heřmanice | G125: ZŠ 1.st | H125: 1.st | I125: 14 | J125: 0 | K125: 0 | L125: 0 | M125: 0 | N125: 0 | O125: 1 | P125: 0 | Q125: 32718 | R125: 618370.2 | S125: 23800 | T125: 550000 | U125: 883200 | V125: 264829.8 | W125: 29.98525815
A126: 2 | B126: CZ064 | C126: Jihomoravský | D126: 102007241 | E126: 600106055 | F126: Obec Sulíkov | G126: ZŠ 1.st | H126: 1.st | I126: 14 | J126: 0 | K126: 0 | L126: 0 | M126: 0 | N126: 0 | O126: 1 | P126: 0 | Q126: 35952 | R126: 679492.8 | S126: 23800 | T126: 550000 | U126: 883200 | V126: 203707.2 | W126: 23.06467391
A127: 2 | B127: CZ064 | C127: Jihomoravský | D127: 102855242 | E127: 600127427 | F127: Obec Starý Petřín | G127: ZŠ 1.st | H127: 1.st | I127: 14 | J127: 0 | K127: 0 | L127: 0 | M127: 0 | N127: 0 | O127: 2 | P127: 0 | Q127: 35952 | R127: 679492.8 | S127: 23800 | T127: 550000 | U127: 883200 | V127: 203707.2 | W127: 23.06467391
A128: 2 | B128: CZ071 | C128: Olomoucký | D128: 102668752 | E128: 600148211 | F128: Obec Bratrušov | G128: ZŠ 1.st | H128: 1.st | I128: 14 | J128: 0 | K128: 0 | L128: 0 | M128: 0 | N128: 0 | O128: 1 | P128: 0 | Q128: 40254 | R128: 760800.6 | S128: 23800 | T128: 550000 | U128: 883200 | V128: 122399.4 | W128: 13.85862772
A129: 2 | B129: CZ080 | C129: Moravskoslezský | D129: 102008167 | E129: 600132099 | F129: Obec Široká Niva | G129: ZŠ 1.st | H129: 1.st | I129: 14 | J129: 0 | K129: 0 | L129: 0 | M129: 0 | N129: 0 | O129: 1 | P129: 0 | Q129: 36501 | R129: 689868.9 | S129: 23800 | T129: 550000 | U129: 883200 | V129: 193331.1 | W129: 21.88984375
A130: 2 | B130: CZ020 | C130: Středočeský | D130: 102374805 | E130: 600050661 | F130: Obec Křečkov | G130: ZŠ 1.st | H130: 1.st | I130: 15 | J130: 0 | K130: 0 | L130: 0 | M130: 0 | N130: 0 | O130: 1 | P130: 0 | Q130: 32493.94845 | R130: 658002.4561 | S130: 23800 | T130: 550000 | U130: 907000 | V130: 248997.5439 | W130: 27.45287144
A131: 2 | B131: CZ020 | C131: Středočeský | D131: 102374821 | E131: 600050785 | F131: Obec Opočnice | G131: ZŠ 1.st | H131: 1.st | I131: 15 | J131: 0 | K131: 0 | L131: 0 | M131: 0 | N131: 0 | O131: 1 | P131: 0 | Q131: 32493.94845 | R131: 658002.4561 | S131: 23800 | T131: 550000 | U131: 907000 | V131: 248997.5439 | W131: 27.45287144
A132: 2 | B132: CZ020 | C132: Středočeský | D132: 102586900 | E132: 600055671 | F132: Obec Lišany | G132: ZŠ 1.st | H132: 1.st | I132: 15 | J132: 0 | K132: 1 | L132: 0 | M132: 1 | N132: 0 | O132: 2 | P132: 0 | Q132: 32493.94845 | R132: 658002.4561 | S132: 23800 | T132: 550000 | U132: 907000 | V132: 248997.5439 | W132: 27.45287144
A133: 2 | B133: CZ020 | C133: Středočeský | D133: 114002185 | E133: 600054713 | F133: Obec Solenice | G133: ZŠ 1.st | H133: 1.st | I133: 15 | J133: 0 | K133: 0 | L133: 0 | M133: 0 | N133: 0 | O133: 1 | P133: 0 | Q133: 32493.94845 | R133: 658002.4561 | S133: 23800 | T133: 550000 | U133: 907000 | V133: 248997.5439 | W133: 27.45287144
A134: 2 | B134: CZ032 | C134: Plzeňský | D134: 102264651 | E134: 650014642 | F134: Obec Chocenice | G134: ZŠ 1.st | H134: 1.st | I134: 15 | J134: 0 | K134: 0 | L134: 0 | M134: 1 | N134: 0 | O134: 1 | P134: 0 | Q134: 33733 | R134: 683093.25 | S134: 23800 | T134: 550000 | U134: 907000 | V134: 223906.75 | W134: 24.6865215
A135: 2 | B135: CZ041 | C135: Karlovarský | D135: 102516642 | E135: 600066487 | F135: Obec Stará Voda | G135: ZŠ 1.st | H135: 1.st | I135: 15 | J135: 0 | K135: 0 | L135: 0 | M135: 0 | N135: 0 | O135: 2 | P135: 0 | Q135: 33763.95884 | R135: 683720.1664 | S135: 23800 | T135: 550000 | U135: 907000 | V135: 223279.8336 | W135: 24.61740172
A136: 2 | B136: CZ042 | C136: Ústecký | D136: 102305811 | E136: 600081648 | F136: Obec Mnetěš | G136: ZŠ 1.st | H136: 1.st | I136: 15 | J136: 0 | K136: 0 | L136: 0 | M136: 0 | N136: 0 | O136: 1 | P136: 0 | Q136: 37106 | R136: 751396.5 | S136: 23800 | T136: 550000 | U136: 907000 | V136: 155603.5 | W136: 17.15584344
A137: 2 | B137: CZ042 | C137: Ústecký | D137: 102377341 | E137: 600082792 | F137: Obec Nové Sedlo | G137: ZŠ 1.st | H137: 1.st | I137: 15 | J137: 0 | K137: 0 | L137: 0 | M137: 0 | N137: 0 | O137: 1 | P137: 0 | Q137: 37106 | R137: 751396.5 | S137: 23800 | T137: 550000 | U137: 907000 | V137: 155603.5 | W137: 17.15584344
A138: 2 | B138: CZ051 | C138: Liberecký | D138: 102005061 | E138: 600074625 | F138: Obec Nový Oldřichov | G138: ZŠ 1.st | H138: 1.st | I138: 15 | J138: 0 | K138: 2 | L138: 0 | M138: 0 | N138: 0 | O138: 2 | P138: 0 | Q138: 34165.49464 | R138: 691851.2665 | S138: 23800 | T138: 550000 | U138: 907000 | V138: 215148.7335 | W138: 23.7209188
A139: 2 | B139: CZ051 | C139: Liberecký | D139: 102442631 | E139: 600099016 | F139: Obec Mříčná | G139: ZŠ 1.st | H139: 1.st | I139: 15 | J139: 0 | K139: 0 | L139: 0 | M139: 0 | N139: 0 | O139: 1 | P139: 0 | Q139: 34165.49464 | R139: 691851.2665 | S139: 23800 | T139: 550000 | U139: 907000 | V139: 215148.7335 | W139: 23.7209188
A140: 2 | B140: CZ053 | C140: Pardubický | D140: 102642265 | E140: 650052307 | F140: Obec Orličky | G140: ZŠ 1.st | H140: 1.st | I140: 15 | J140: 0 | K140: 0 | L140: 0 | M140: 0 | N140: 0 | O140: 1 | P140: 0 | Q140: 33315 | R140: 674628.75 | S140: 23800 | T140: 550000 | U140: 907000 | V140: 232371.25 | W140: 25.61976295
A141: 2 | B141: CZ053 | C141: Pardubický | D141: 102642354 | E141: 600104559 | F141: Obec Tisová | G141: ZŠ 1.st | H141: 1.st | I141: 15 | J141: 0 | K141: 0 | L141: 0 | M141: 0 | N141: 0 | O141: 1 | P141: 0 | Q141: 33315 | R141: 674628.75 | S141: 23800 | T141: 550000 | U141: 907000 | V141: 232371.25 | W141: 25.61976295
A142: 2 | B142: CZ053 | C142: Pardubický | D142: 102642362 | E142: 691002371 | F142: Obec České Heřmanice | G142: ZŠ 1.st | H142: 1.st | I142: 15 | J142: 0 | K142: 0 | L142: 0 | M142: 0 | N142: 0 | O142: 1 | P142: 0 | Q142: 33315 | R142: 674628.75 | S142: 23800 | T142: 550000 | U142: 907000 | V142: 232371.25 | W142: 25.61976295
A143: 2 | B143: CZ053 | C143: Pardubický | D143: 108034429 | E143: 600100723 | F143: Obec Široký Důl | G143: ZŠ 1.st | H143: 1.st | I143: 15 | J143: 0 | K143: 0 | L143: 0 | M143: 0 | N143: 0 | O143: 1 | P143: 0 | Q143: 33315 | R143: 674628.75 | S143: 23800 | T143: 550000 | U143: 907000 | V143: 232371.25 | W143: 25.61976295
A144: 2 | B144: CZ064 | C144: Jihomoravský | D144: 102007268 | E144: 600106063 | F144: obec Šebetov | G144: ZŠ 1.st | H144: 1.st | I144: 15 | J144: 0 | K144: 0 | L144: 0 | M144: 0 | N144: 0 | O144: 2 | P144: 0 | Q144: 35155 | R144: 711888.75 | S144: 23800 | T144: 550000 | U144: 907000 | V144: 195111.25 | W144: 21.51171444
A145: 2 | B145: CZ064 | C145: Jihomoravský | D145: 102843848 | E145: 600127257 | F145: Obec Hostim | G145: ZŠ 1.st | H145: 1.st | I145: 15 | J145: 0 | K145: 0 | L145: 0 | M145: 0 | N145: 0 | O145: 2 | P145: 0 | Q145: 35155 | R145: 711888.75 | S145: 23800 | T145: 550000 | U145: 907000 | V145: 195111.25 | W145: 21.51171444
A146: 2 | B146: CZ064 | C146: Jihomoravský | D146: 103619798 | E146: 600127818 | F146: Obec Suchohrdly u Miroslavi | G146: ZŠ 1.st | H146: 1.st | I146: 15 | J146: 0 | K146: 0 | L146: 0 | M146: 0 | N146: 0 | O146: 2 | P146: 0 | Q146: 35155 | R146: 711888.75 | S146: 23800 | T146: 550000 | U146: 907000 | V146: 195111.25 | W146: 21.51171444
A147: 2 | B147: CZ071 | C147: Olomoucký | D147: 102008060 | E147: 600131718 | F147: Obec Huzová | G147: ZŠ 1.st | H147: 1.st | I147: 15 | J147: 0 | K147: 0 | L147: 0 | M147: 0 | N147: 0 | O147: 1 | P147: 0 | Q147: 39199 | R147: 793779.75 | S147: 23800 | T147: 550000 | U147: 907000 | V147: 113220.25 | W147: 12.48293826
A148: 2 | B148: CZ071 | C148: Olomoucký | D148: 102668612 | E148: 600148131 | F148: Obec Maletín | G148: ZŠ 1.st | H148: 1.st | I148: 15 | J148: 0 | K148: 0 | L148: 0 | M148: 1 | N148: 0 | O148: 1 | P148: 0 | Q148: 39199 | R148: 793779.75 | S148: 23800 | T148: 550000 | U148: 907000 | V148: 113220.25 | W148: 12.48293826
A149: 2 | B149: CZ072 | C149: Zlínský | D149: 102100861 | E149: 600149820 | F149: Obec Kladeruby | G149: ZŠ 1.st | H149: 1.st | I149: 15 | J149: 0 | K149: 0 | L149: 0 | M149: 0 | N149: 0 | O149: 2 | P149: 0 | Q149: 37159.95792 | R149: 752489.1478 | S149: 23800 | T149: 550000 | U149: 907000 | V149: 154510.8522 | W149: 17.0353751
A150: 2 | B150: CZ072 | C150: Zlínský | D150: 102141002 | E150: 600118312 | F150: Obec Kostelany | G150: ZŠ 1.st | H150: 1.st | I150: 15 | J150: 0 | K150: 0 | L150: 0 | M150: 0 | N150: 0 | O150: 2 | P150: 0 | Q150: 37159.95792 | R150: 752489.1478 | S150: 23800 | T150: 550000 | U150: 907000 | V150: 154510.8522 | W150: 17.0353751
A151: 2 | B151: CZ072 | C151: Zlínský | D151: 102319057 | E151: 600114058 | F151: Obec Šanov | G151: ZŠ 1.st | H151: 1.st | I151: 15 | J151: 0 | K151: 0 | L151: 0 | M151: 0 | N151: 0 | O151: 1 | P151: 0 | Q151: 37159.95792 | R151: 752489.1478 | S151: 23800 | T151: 550000 | U151: 907000 | V151: 154510.8522 | W151: 17.0353751
A152: 2 | B152: CZ072 | C152: Zlínský | D152: 108021084 | E152: 600118711 | F152: Obec Pravčice | G152: ZŠ 1.st | H152: 1.st | I152: 15 | J152: 0 | K152: 0 | L152: 0 | M152: 0 | N152: 0 | O152: 1 | P152: 0 | Q152: 37159.95792 | R152: 752489.1478 | S152: 23800 | T152: 550000 | U152: 907000 | V152: 154510.8522 | W152: 17.0353751
A153: 2 | B153: CZ072 | C153: Zlínský | D153: 108033414 | E153: 600150119 | F153: Obec Police | G153: ZŠ 1.st | H153: 1.st | I153: 15 | J153: 0 | K153: 0 | L153: 0 | M153: 0 | N153: 0 | O153: 2 | P153: 0 | Q153: 37159.95792 | R153: 752489.1478 | S153: 23800 | T153: 550000 | U153: 907000 | V153: 154510.8522 | W153: 17.0353751
A154: 2 | B154: CZ080 | C154: Moravskoslezský | D154: 102008043 | E154: 600131696 | F154: Obec Dolní Moravice | G154: ZŠ 1.st | H154: 1.st | I154: 15 | J154: 0 | K154: 0 | L154: 0 | M154: 1 | N154: 0 | O154: 2 | P154: 0 | Q154: 35339 | R154: 715614.75 | S154: 23800 | T154: 550000 | U154: 907000 | V154: 191385.25 | W154: 21.10090959
A155: 2 | B155: CZ080 | C155: Moravskoslezský | D155: 102156204 | E155: 600136108 | F155: Obec Albrechtice | G155: ZŠ 1.st | H155: 1.st | I155: 15 | J155: 0 | K155: 0 | L155: 0 | M155: 1 | N155: 0 | O155: 1 | P155: 0 | Q155: 35339 | R155: 715614.75 | S155: 23800 | T155: 550000 | U155: 907000 | V155: 191385.25 | W155: 21.10090959
A156: 2 | B156: CZ020 | C156: Středočeský | D156: 002121476 | E156: 600043100 | F156: Obec Neumětely | G156: ZŠ 1.st | H156: 1.st | I156: 16 | J156: 0 | K156: 0 | L156: 0 | M156: 0 | N156: 0 | O156: 1 | P156: 0 | Q156: 32446.83049 | R156: 700851.5387 | S156: 23800 | T156: 550000 | U156: 930800 | V156: 229948.4613 | W156: 24.70438992
A157: 2 | B157: CZ020 | C157: Středočeský | D157: 114002614 | E157: 600054781 | F157: Obec Věšín | G157: ZŠ 1.st | H157: 1.st | I157: 16 | J157: 0 | K157: 0 | L157: 0 | M157: 0 | N157: 0 | O157: 2 | P157: 0 | Q157: 32446.83049 | R157: 700851.5387 | S157: 23800 | T157: 550000 | U157: 930800 | V157: 229948.4613 | W157: 24.70438992
A158: 2 | B158: CZ031 | C158: Jihočeský | D158: 102003432 | E158: 650036492 | F158: Obec Popelín | G158: ZŠ 1.st | H158: 1.st | I158: 16 | J158: 0 | K158: 0 | L158: 0 | M158: 0 | N158: 0 | O158: 1 | P158: 0 | Q158: 33484 | R158: 723254.4 | S158: 23800 | T158: 550000 | U158: 930800 | V158: 207545.6 | W158: 22.29755049
A159: 2 | B159: CZ031 | C159: Jihočeský | D159: 108023613 | E159: 650043898 | F159: Obec Hosín | G159: ZŠ 1.st | H159: 1.st | I159: 16 | J159: 0 | K159: 0 | L159: 0 | M159: 0 | N159: 0 | O159: 1 | P159: 0 | Q159: 33484 | R159: 723254.4 | S159: 23800 | T159: 550000 | U159: 930800 | V159: 207545.6 | W159: 22.29755049
A160: 2 | B160: CZ032 | C160: Plzeňský | D160: 102004064 | E160: 600065626 | F160: Obec Česká Kubice | G160: ZŠ 1.st | H160: 1.st | I160: 16 | J160: 0 | K160: 1 | L160: 0 | M160: 0 | N160: 0 | O160: 3 | P160: 0 | Q160: 33698 | R160: 727876.8 | S160: 23800 | T160: 550000 | U160: 930800 | V160: 202923.2 | W160: 21.80094542
A161: 2 | B161: CZ032 | C161: Plzeňský | D161: 102564256 | E161: 600070565 | F161: Obec Mileč | G161: ZŠ 1.st | H161: 1.st | I161: 16 | J161: 0 | K161: 0 | L161: 0 | M161: 0 | N161: 0 | O161: 1 | P161: 0 | Q161: 33698 | R161: 727876.8 | S161: 23800 | T161: 550000 | U161: 930800 | V161: 202923.2 | W161: 21.80094542
A162: 2 | B162: CZ032 | C162: Plzeňský | D162: 108005224 | E162: 600065588 | F162: Město Kdyně | G162: ZŠ 1.st | H162: 1.st | I162: 16 | J162: 0 | K162: 0 | L162: 0 | M162: 0 | N162: 0 | O162: 1 | P162: 0 | Q162: 33698 | R162: 727876.8 | S162: 23800 | T162: 550000 | U162: 930800 | V162: 202923.2 | W162: 21.80094542
A163: 2 | B163: CZ041 | C163: Karlovarský | D163: 102040761 | E163: 600066240 | F163: Obec Milhostov | G163: ZŠ 1.st | H163: 1.st | I163: 16 | J163: 0 | K163: 0 | L163: 0 | M163: 0 | N163: 0 | O163: 1 | P163: 0 | Q163: 32645.28422 | R163: 705138.1391 | S163: 23800 | T163: 550000 | U163: 930800 | V163: 225661.8609 | W163: 24.24386129
A164: 2 | B164: CZ041 | C164: Karlovarský | D164: 102102066 | E164: 600073017 | F164: Město Kraslice | G164: ZŠ 1.st | H164: 1.st | I164: 16 | J164: 0 | K164: 0 | L164: 0 | M164: 0 | N164: 0 | O164: 1 | P164: 0 | Q164: 32645.28422 | R164: 705138.1391 | S164: 23800 | T164: 550000 | U164: 930800 | V164: 225661.8609 | W164: 24.24386129
A165: 2 | B165: CZ041 | C165: Karlovarský | D165: 102988986 | E165: 650016581 | F165: Město Horní Blatná | G165: ZŠ 1.st | H165: 1.st | I165: 16 | J165: 0 | K165: 1 | L165: 0 | M165: 3 | N165: 0 | O165: 2 | P165: 0 | Q165: 32645.28422 | R165: 705138.1391 | S165: 23800 | T165: 550000 | U165: 930800 | V165: 225661.8609 | W165: 24.24386129
A166: 2 | B166: CZ042 | C166: Ústecký | D166: 102000239 | E166: 600081559 | F166: Obec Podsedice | G166: ZŠ 1.st | H166: 1.st | I166: 16 | J166: 0 | K166: 0 | L166: 0 | M166: 0 | N166: 0 | O166: 2 | P166: 0 | Q166: 36479 | R166: 787946.4 | S166: 23800 | T166: 550000 | U166: 930800 | V166: 142853.6 | W166: 15.34740009
A167: 2 | B167: CZ042 | C167: Ústecký | D167: 102517100 | E167: 600085741 | F167: Obec Malečov | G167: ZŠ 1.st | H167: 1.st | I167: 16 | J167: 0 | K167: 0 | L167: 0 | M167: 3 | N167: 0 | O167: 2 | P167: 0 | Q167: 36479 | R167: 787946.4 | S167: 23800 | T167: 550000 | U167: 930800 | V167: 142853.6 | W167: 15.34740009
A168: 2 | B168: CZ052 | C168: Královéhradecký | D168: 102390461 | E168: 600097315 | F168: Obec Lípa nad Orlicí | G168: ZŠ 1.st | H168: 1.st | I168: 16 | J168: 0 | K168: 0 | L168: 0 | M168: 4 | N168: 0 | O168: 2 | P168: 0 | Q168: 34015.04 | R168: 734724.864 | S168: 23800 | T168: 550000 | U168: 930800 | V168: 196075.136 | W168: 21.06522733
A169: 2 | B169: CZ052 | C169: Královéhradecký | D169: 108009211 | E169: 600097668 | F169: Obec Žďár nad Orlicí | G169: ZŠ 1.st | H169: 1.st | I169: 16 | J169: 0 | K169: 0 | L169: 0 | M169: 1 | N169: 0 | O169: 1 | P169: 0 | Q169: 34015.04 | R169: 734724.864 | S169: 23800 | T169: 550000 | U169: 930800 | V169: 196075.136 | W169: 21.06522733
A170: 2 | B170: CZ053 | C170: Pardubický | D170: 002506661 | E170: 650050363 | F170: Obec Vranová Lhota | G170: ZŠ 1.st | H170: 1.st | I170: 16 | J170: 0 | K170: 0 | L170: 0 | M170: 0 | N170: 0 | O170: 2 | P170: 0 | Q170: 32225 | R170: 696060 | S170: 23800 | T170: 550000 | U170: 930800 | V170: 234740 | W170: 25.21916631
A171: 2 | B171: CZ053 | C171: Pardubický | D171: 102142017 | E171: 650039483 | F171: Obec Morašice | G171: ZŠ 1.st | H171: 1.st | I171: 16 | J171: 0 | K171: 0 | L171: 0 | M171: 0 | N171: 0 | O171: 2 | P171: 0 | Q171: 32225 | R171: 696060 | S171: 23800 | T171: 550000 | U171: 930800 | V171: 234740 | W171: 25.21916631
A172: 2 | B172: CZ053 | C172: Pardubický | D172: 102142050 | E172: 600090680 | F172: Obec Řepníky | G172: ZŠ 1.st | H172: 1.st | I172: 16 | J172: 0 | K172: 0 | L172: 0 | M172: 1 | N172: 0 | O172: 2 | P172: 0 | Q172: 32225 | R172: 696060 | S172: 23800 | T172: 550000 | U172: 930800 | V172: 234740 | W172: 25.21916631
A173: 2 | B173: CZ053 | C173: Pardubický | D173: 108034437 | E173: 600100731 | F173: Obec Makov | G173: ZŠ 1.st | H173: 1.st | I173: 16 | J173: 0 | K173: 0 | L173: 0 | M173: 0 | N173: 0 | O173: 1 | P173: 0 | Q173: 32225 | R173: 696060 | S173: 23800 | T173: 550000 | U173: 930800 | V173: 234740 | W173: 25.21916631
A174: 2 | B174: CZ063 | C174: Vysočina | D174: 102655251 | E174: 600121933 | F174: Obec Dolní Vilémovice | G174: ZŠ 1.st | H174: 1.st | I174: 16 | J174: 0 | K174: 0 | L174: 0 | M174: 1 | N174: 0 | O174: 1 | P174: 0 | Q174: 31618 | R174: 682948.8 | S174: 23800 | T174: 550000 | U174: 930800 | V174: 247851.2 | W174: 26.62776107
A175: 2 | B175: CZ063 | C175: Vysočina | D175: 102931712 | E175: 600130541 | F175: Obec Škrdlovice | G175: ZŠ 1.st | H175: 1.st | I175: 16 | J175: 0 | K175: 0 | L175: 0 | M175: 2 | N175: 0 | O175: 2 | P175: 0 | Q175: 31618 | R175: 682948.8 | S175: 23800 | T175: 550000 | U175: 930800 | V175: 247851.2 | W175: 26.62776107
A176: 2 | B176: CZ063 | C176: Vysočina | D176: 103055304 | E176: 600130673 | F176: Obec Zvole | G176: ZŠ 1.st | H176: 1.st | I176: 16 | J176: 0 | K176: 0 | L176: 0 | M176: 3 | N176: 0 | O176: 1 | P176: 0 | Q176: 31618 | R176: 682948.8 | S176: 23800 | T176: 550000 | U176: 930800 | V176: 247851.2 | W176: 26.62776107
A177: 2 | B177: CZ063 | C177: Vysočina | D177: 107721317 | E177: 600061256 | F177: Obec Častrov | G177: ZŠ 1.st | H177: 1.st | I177: 16 | J177: 0 | K177: 0 | L177: 0 | M177: 0 | N177: 0 | O177: 1 | P177: 0 | Q177: 31618 | R177: 682948.8 | S177: 23800 | T177: 550000 | U177: 930800 | V177: 247851.2 | W177: 26.62776107
A178: 2 | B178: CZ064 | C178: Jihomoravský | D178: 102379998 | E178: 600115763 | F178: Obec Nechvalín | G178: ZŠ 1.st | H178: 1.st | I178: 16 | J178: 0 | K178: 0 | L178: 0 | M178: 0 | N178: 0 | O178: 2 | P178: 0 | Q178: 34393 | R178: 742888.8 | S178: 23800 | T178: 550000 | U178: 930800 | V178: 187911.2 | W178: 20.18813924
A179: 2 | B179: CZ064 | C179: Jihomoravský | D179: 102843872 | E179: 600127265 | F179: Obec Lesonice | G179: ZŠ 1.st | H179: 1.st | I179: 16 | J179: 0 | K179: 0 | L179: 0 | M179: 1 | N179: 0 | O179: 1 | P179: 0 | Q179: 34393 | R179: 742888.8 | S179: 23800 | T179: 550000 | U179: 930800 | V179: 187911.2 | W179: 20.18813924
A180: 2 | B180: CZ064 | C180: Jihomoravský | D180: 102931615 | E180: 600130509 | F180: Obec Olší | G180: ZŠ 1.st | H180: 1.st | I180: 16 | J180: 0 | K180: 0 | L180: 0 | M180: 0 | N180: 0 | O180: 1 | P180: 0 | Q180: 34393 | R180: 742888.8 | S180: 23800 | T180: 550000 | U180: 930800 | V180: 187911.2 | W180: 20.18813924
A181: 2 | B181: CZ064 | C181: Jihomoravský | D181: 108032418 | E181: 600116093 | F181: Obec Strážovice | G181: ZŠ 1.st | H181: 1.st | I181: 16 | J181: 0 | K181: 0 | L181: 0 | M181: 0 | N181: 0 | O181: 2 | P181: 0 | Q181: 34393 | R181: 742888.8 | S181: 23800 | T181: 550000 | U181: 930800 | V181: 187911.2 | W181: 20.18813924
A182: 2 | B182: CZ064 | C182: Jihomoravský | D182: 108032515 | E182: 600116107 | F182: Město Kyjov | G182: ZŠ 1.st | H182: 1.st | I182: 16 | J182: 0 | K182: 0 | L182: 0 | M182: 0 | N182: 0 | O182: 2 | P182: 0 | Q182: 34393 | R182: 742888.8 | S182: 23800 | T182: 550000 | U182: 930800 | V182: 187911.2 | W182: 20.18813924
A183: 2 | B183: CZ071 | C183: Olomoucký | D183: 102308543 | E183: 650036417 | F183: Obec Žerotín | G183: ZŠ 1.st | H183: 1.st | I183: 16 | J183: 0 | K183: 0 | L183: 0 | M183: 0 | N183: 0 | O183: 2 | P183: 0 | Q183: 38264 | R183: 826502.4 | S183: 23800 | T183: 550000 | U183: 930800 | V183: 104297.6 | W183: 11.20515685
A184: 2 | B184: CZ071 | C184: Olomoucký | D184: 102592560 | E184: 650053311 | F184: Obec Černotín | G184: ZŠ 1.st | H184: 1.st | I184: 16 | J184: 0 | K184: 0 | L184: 0 | M184: 0 | N184: 0 | O184: 2 | P184: 0 | Q184: 38264 | R184: 826502.4 | S184: 23800 | T184: 550000 | U184: 930800 | V184: 104297.6 | W184: 11.20515685
A185: 2 | B185: CZ071 | C185: Olomoucký | D185: 108014304 | E185: 600148599 | F185: Obec Kamenná | G185: ZŠ 1.st | H185: 1.st | I185: 16 | J185: 0 | K185: 0 | L185: 0 | M185: 0 | N185: 0 | O185: 2 | P185: 0 | Q185: 38264 | R185: 826502.4 | S185: 23800 | T185: 550000 | U185: 930800 | V185: 104297.6 | W185: 11.20515685
A186: 2 | B186: CZ080 | C186: Moravskoslezský | D186: 102232598 | E186: 600138577 | F186: Obec Heřmanice u Oder | G186: ZŠ 1.st | H186: 1.st | I186: 16 | J186: 0 | K186: 1 | L186: 0 | M186: 1 | N186: 0 | O186: 2 | P186: 0 | Q186: 34316 | R186: 741225.6 | S186: 23800 | T186: 550000 | U186: 930800 | V186: 189574.4 | W186: 20.36682424
A187: 2 | B187: CZ080 | C187: Moravskoslezský | D187: 151014531 | E187: 650016351 | F187: Město Jablunkov | G187: ZŠ 1.st | H187: 1.st | I187: 16 | J187: 0 | K187: 0 | L187: 0 | M187: 1 | N187: 0 | O187: 1 | P187: 0 | Q187: 34316 | R187: 741225.6 | S187: 23800 | T187: 550000 | U187: 930800 | V187: 189574.4 | W187: 20.36682424
A188: 2 | B188: CZ020 | C188: Středočeský | D188: 002050412 | E188: 600042880 | F188: Obec Karlštejn | G188: ZŠ 1.st | H188: 1.st | I188: 17 | J188: 0 | K188: 0 | L188: 0 | M188: 0 | N188: 0 | O188: 2 | P188: 0 | Q188: 32763.34882 | R188: 751918.8554 | S188: 23800 | T188: 550000 | U188: 954600 | V188: 202681.1446 | W188: 21.2320495
A189: 2 | B189: CZ020 | C189: Středočeský | D189: 151001332 | E189: 650052447 | F189: Město Mnichovo Hradiště | G189: ZŠ 1.st | H189: 1.st | I189: 17 | J189: 0 | K189: 0 | L189: 0 | M189: 0 | N189: 0 | O189: 2 | P189: 0 | Q189: 32763.34882 | R189: 751918.8554 | S189: 23800 | T189: 550000 | U189: 954600 | V189: 202681.1446 | W189: 21.2320495
A190: 2 | B190: CZ031 | C190: Jihočeský | D190: 107720931 | E190: 600060284 | F190: Obec Lodhéřov | G190: ZŠ 1.st | H190: 1.st | I190: 17 | J190: 0 | K190: 0 | L190: 0 | M190: 0 | N190: 0 | O190: 2 | P190: 0 | Q190: 32964 | R190: 756523.8 | S190: 23800 | T190: 550000 | U190: 954600 | V190: 198076.2 | W190: 20.74965431
A191: 2 | B191: CZ031 | C191: Jihočeský | D191: 107720949 | E191: 600060292 | F191: Obec Majdalena | G191: ZŠ 1.st | H191: 1.st | I191: 17 | J191: 0 | K191: 0 | L191: 0 | M191: 0 | N191: 0 | O191: 1 | P191: 0 | Q191: 32964 | R191: 756523.8 | S191: 23800 | T191: 550000 | U191: 954600 | V191: 198076.2 | W191: 20.74965431
A192: 2 | B192: CZ031 | C192: Jihočeský | D192: 107722003 | E192: 650050860 | F192: Obec Strážný | G192: ZŠ 1.st | H192: 1.st | I192: 17 | J192: 0 | K192: 0 | L192: 0 | M192: 0 | N192: 0 | O192: 2 | P192: 0 | Q192: 32964 | R192: 756523.8 | S192: 23800 | T192: 550000 | U192: 954600 | V192: 198076.2 | W192: 20.74965431
A193: 2 | B193: CZ051 | C193: Liberecký | D193: 102442703 | E193: 600099059 | F193: Obec Stružinec | G193: ZŠ 1.st | H193: 1.st | I193: 17 | J193: 0 | K193: 0 | L193: 0 | M193: 0 | N193: 0 | O193: 2 | P193: 0 | Q193: 30920.87721 | R193: 709634.1319 | S193: 23800 | T193: 550000 | U193: 954600 | V193: 244965.8681 | W193: 25.66162457
A194: 2 | B194: CZ051 | C194: Liberecký | D194: 102442801 | E194: 600099130 | F194: Obec Jesenný | G194: ZŠ 1.st | H194: 1.st | I194: 17 | J194: 0 | K194: 0 | L194: 0 | M194: 1 | N194: 0 | O194: 2 | P194: 0 | Q194: 30920.87721 | R194: 709634.1319 | S194: 23800 | T194: 550000 | U194: 954600 | V194: 244965.8681 | W194: 25.66162457
A195: 2 | B195: CZ053 | C195: Pardubický | D195: 002506394 | E195: 600100375 | F195: Obec Linhartice | G195: ZŠ 1.st | H195: 1.st | I195: 17 | J195: 0 | K195: 0 | L195: 0 | M195: 0 | N195: 0 | O195: 2 | P195: 0 | Q195: 31323 | R195: 718862.85 | S195: 23800 | T195: 550000 | U195: 954600 | V195: 235737.15 | W195: 24.69486172
A196: 2 | B196: CZ053 | C196: Pardubický | D196: 002506572 | E196: 650041372 | F196: Obec Rohozná | G196: ZŠ 1.st | H196: 1.st | I196: 17 | J196: 0 | K196: 1 | L196: 0 | M196: 0 | N196: 0 | O196: 3 | P196: 0 | Q196: 31323 | R196: 718862.85 | S196: 23800 | T196: 550000 | U196: 954600 | V196: 235737.15 | W196: 24.69486172
A197: 2 | B197: CZ053 | C197: Pardubický | D197: 102142009 | E197: 600090302 | F197: Obec Miřetice | G197: ZŠ 1.st | H197: 1.st | I197: 17 | J197: 0 | K197: 0 | L197: 0 | M197: 3 | N197: 0 | O197: 3 | P197: 0 | Q197: 31323 | R197: 718862.85 | S197: 23800 | T197: 550000 | U197: 954600 | V197: 235737.15 | W197: 24.69486172
A198: 2 | B198: CZ053 | C198: Pardubický | D198: 102142122 | E198: 600090361 | F198: Obec Tuněchody | G198: ZŠ 1.st | H198: 1.st | I198: 17 | J198: 0 | K198: 0 | L198: 0 | M198: 1 | N198: 0 | O198: 2 | P198: 0 | Q198: 31323 | R198: 718862.85 | S198: 23800 | T198: 550000 | U198: 954600 | V198: 235737.15 | W198: 24.69486172
A199: 2 | B199: CZ053 | C199: Pardubický | D199: 108040208 | E199: 600100758 | F199: Obec Budislav | G199: ZŠ 1.st | H199: 1.st | I199: 17 | J199: 0 | K199: 0 | L199: 0 | M199: 0 | N199: 0 | O199: 2 | P199: 0 | Q199: 31323 | R199: 718862.85 | S199: 23800 | T199: 550000 | U199: 954600 | V199: 235737.15 | W199: 24.69486172
A200: 2 | B200: CZ063 | C200: Vysočina | D200: 102006342 | E200: 600086976 | F200: Obec Uhelná Příbram | G200: ZŠ 1.st | H200: 1.st | I200: 17 | J200: 0 | K200: 0 | L200: 0 | M200: 0 | N200: 0 | O200: 2 | P200: 0 | Q200: 31080 | R200: 713286 | S200: 23800 | T200: 550000 | U200: 954600 | V200: 241314 | W200: 25.27906977
... 1339 more rows

Sheet ZŠ_úplná_1.stupeň
A1: Porovnání výše prostředků přidělených prostřednictvím oborového normativu a doplňkové částky s výší prostředků přidělovaných podle krajských normativů 2012 pro 1. stupeň úplné ZŠ | S1: oborový normativ | U1: 20700 | Y1: Krok 1: vepiš novou hodnotu ON nebo doplňkové částky
S2: doplňková částka | U2: 550000
Y3: Krok 2:klikni na tlačítko
Q4: celkem | R4: =SUM(R7:R2314) -> 9238757375 | U4: =SUM(U7:U2314) -> 9303140894 | V4: =SUM(V7:V2314) -> 64383518.67 | W4: =V4/U4 -> 0.006920621692
A5: Škola | I5: Žáci, třídy | Q5: Krajské normativy 2012 | S5: Nový systém (vč.odvodů) | V5: Porovnání
I6: počet žáků | K6: počet žáků - postižení | O6: počet tříd
A7: ZRIZ | B7: NVUSC | C7: kraj | D7: IZO | E7: RED IZO | F7: Název zřizovatele | G7: škola | H7: stupeň | I7: celkem | J7: z toho ve spec.třídách | K7: těžké postižení | L7: z toho ve spec.třídách | M7: lehké a střední postižení | N7: z toho ve spec.třídách | O7: celkem | P7: spec. třídy | Q7: MP pedagogové | R7: Celkem na IZO (vč.odvodů) | S7: Oborový normativ | T7: Doplňková částka | U7: Celkem oborový normativ a doplňková částka na IZO | V7: Rozdíl na IZO | W7: Rozdíl na IZO v % | X7: poznámky | Y7: Počty škol podle změny v novém systému financování vůči financování prostřednictvím krajských normativů 2012 | Z7: počet škol, odloučených pracovišť | AA7: v %
A8: 2 | B8: CZ042 | C8: Ústecký | D8: 151011800 | E8: 600077535 | F8: Město Vejprty | G8: ZŠ | H8: 1.st | I8: 1 | J8: 1 | K8: 0 | L8: 0 | M8: 1 | N8: 1 | O8: 0 | P8: 0 | Q8: 24193 | R8: 32660.55 | S8: 20700 | T8: 6470.588235 | U8: 27170.58824 | V8: -5489.961765 | W8: -20.2055315 | X8: 1 speciální třída ve škole, 11 žáků, z toho 1 žák na 1.stupni | Y8: nárůst o 15% a více | Z8: =COUNTIFS( $W$8:$W$2314,">=15" ) -> 0 | AA8: =100*Z8/2307 -> 0
A9: 2 | B9: CZ042 | C9: Ústecký | D9: 151006148 | E9: 600077314 | F9: Obec Radonice | G9: ZŠ | H9: 1.st | I9: 4 | J9: 4 | K9: 0 | L9: 0 | M9: 4 | N9: 4 | O9: 0 | P9: 0 | Q9: 24193 | R9: 130642.2 | S9: 20700 | T9: 25882.35294 | U9: 108682.3529 | V9: -21959.84706 | W9: -20.2055315 | X9: 2 speciální třídy ve škole, 25 žáků, z toho 4 na 1.stupni | Y9: nárůst o 10 až 14,99% | Z9: =COUNTIFS( $W$8:$W$2314,">=10",$W$8:$W$2314,"<15") -> 22 | AA9: =100*Z9/2307 -> 0.9536194192
A10: 7 | B10: CZ020 | C10: Středočeský | D10: 102114081 | E10: 600021581 | F10: Středočeský kraj | G10: ZŠ | H10: 1.st | I10: 4 | J10: 4 | K10: 0 | L10: 0 | M10: 4 | N10: 4 | O10: 0 | P10: 0 | Q10: 20757.92277 | R10: 112092.783 | S10: 20700 | T10: 25882.35294 | U10: 108682.3529 | V10: -3410.430015 | W10: -3.137979555 | X10: 1 speciální třída ve škole, 10 žáků, z toho 4 na 1.stupni | Y10: nárůst o 5 až 9,99% | Z10: =COUNTIFS( $W$8:$W$2314,">=5",$W$8:$W$2314,"<10") -> 194 | AA10: 8.409189423
A11: 7 | B11: CZ031 | C11: Jihočeský | D11: 110400551 | E11: 610400533 | F11: Jihočeský kraj | G11: ZŠ | H11: 1.st | I11: 4 | J11: 4 | K11: 1 | L11: 1 | M11: 2 | N11: 2 | O11: 0 | P11: 0 | Q11: 20235 | R11: 109269 | S11: 20700 | T11: 25882.35294 | U11: 108682.3529 | V11: -586.6470588 | W11: -0.539781338 | X11: 2 speciální třídy ve škole, 12 žáků, z toho 4 na 1.stupni | Y11: nárůst o 3 až 4,99% | Z11: =COUNTIFS( $W$8:$W$2314,">=3",$W$8:$W$2314,"<5") -> 363 | AA11: 15.73472042
A12: 7 | B12: CZ080 | C12: Moravskoslezský | D12: 108013421 | E12: 600026787 | F12: Moravskoslezský kraj | G12: ZŠ | H12: 1.st | I12: 4 | J12: 4 | K12: 1 | L12: 1 | M12: 3 | N12: 3 | O12: 1 | P12: 1 | Q12: 29120.00945 | R12: 157248.051 | S12: 20700 | T12: 25882.35294 | U12: 108682.3529 | V12: -48565.69809 | W12: -44.68590969 | Y12: nárůst o 1 až 2,99% | Z12: =COUNTIFS( $W$8:$W$2314,">=1",$W$8:$W$2314,"<3") -> 363 | AA12: 15.73472042
A13: 7 | B13: CZ031 | C13: Jihočeský | D13: 110034571 | E13: 600028321 | F13: Jihočeský kraj | G13: ZŠ | H13: 1.st | I13: 5 | J13: 5 | K13: 0 | L13: 0 | M13: 5 | N13: 5 | O13: 1 | P13: 1 | Q13: 20235 | R13: 136586.25 | S13: 20700 | T13: 32352.94118 | U13: 135852.9412 | V13: -733.3088235 | W13: -0.539781338 | Y13: nárůst o 0,99% nebo pokles o 1% | Z13: =COUNTIFS( $W$8:$W$2314,">=-1",$W$8:$W$2314,"<1") -> 510 | AA13: 22.10663199
A14: 7 | B14: CZ052 | C14: Královéhradecký | D14: 102266131 | E14: 600024245 | F14: Královéhradecký kraj | G14: ZŠ | H14: 1.st | I14: 5 | J14: 5 | K14: 0 | L14: 0 | M14: 5 | N14: 5 | O14: 0 | P14: 0 | Q14: 20630.62 | R14: 139256.685 | S14: 20700 | T14: 32352.94118 | U14: 135852.9412 | V14: -3403.743824 | W14: -2.505462005 | X14: 2 speciální třídy ve škole, 19 žáků, z toho 5 na 1.stupni | Y14: pokles o 1,01 až 3% | Z14: =COUNTIFS( $W$8:$W$2314,">=-3",$W$8:$W$2314,"<-1") -> 249 | AA14: 10.79323797
A15: 7 | B15: CZ052 | C15: Královéhradecký | D15: 151011541 | E15: 600023974 | F15: Královéhradecký kraj | G15: ZŠ | H15: 1.st | I15: 5 | J15: 5 | K15: 0 | L15: 0 | M15: 5 | N15: 5 | O15: 0 | P15: 0 | Q15: 20630.62 | R15: 139256.685 | S15: 20700 | T15: 32352.94118 | U15: 135852.9412 | V15: -3403.743824 | W15: -2.505462005 | X15: 1 speciální třída ve škole, 10 žáků, z toho 5 na 1.stupni | Y15: pokles o 3,01 až 5% | Z15: =COUNTIFS( $W$8:$W$2314,">=-5",$W$8:$W$2314,"<-3") -> 259 | AA15: 11.22670134
A16: 7 | B16: CZ031 | C16: Jihočeský | D16: 102351180 | E16: 691003769 | F16: Jihočeský kraj | G16: ZŠ | H16: 1.st | I16: 6 | J16: 6 | K16: 0 | L16: 0 | M16: 6 | N16: 6 | O16: 0 | P16: 0 | Q16: 20235 | R16: 163903.5 | S16: 20700 | T16: 38823.52941 | U16: 163023.5294 | V16: -879.9705882 | W16: -0.539781338 | X16: 3 speciální třídy ve škole, 33 žáků, z toho 6 na 1.stupni | Y16: pokles o 5,01 až 10% | Z16: =COUNTIFS( $W$8:$W$2314,">=-10",$W$8:$W$2314,"<-5") -> 140 | AA16: 6.068487213
A17: 7 | B17: CZ031 | C17: Jihočeský | D17: 102439290 | E17: 691003769 | F17: Jihočeský kraj | G17: ZŠ | H17: 1.st | I17: 6 | J17: 6 | K17: 0 | L17: 0 | M17: 6 | N17: 6 | O17: 1 | P17: 1 | Q17: 20235 | R17: 163903.5 | S17: 20700 | T17: 38823.52941 | U17: 163023.5294 | V17: -879.9705882 | W17: -0.539781338 | Y17: pokles o 10,01 až 15% | Z17: =COUNTIFS( $W$8:$W$2314,">=-15",$W$8:$W$2314,"<-10") -> 141 | AA17: 6.11183355
A18: 7 | B18: CZ052 | C18: Královéhradecký | D18: 102590222 | E18: 600029913 | F18: Královéhradecký kraj | G18: ZŠ | H18: 1.st | I18: 6 | J18: 6 | K18: 0 | L18: 0 | M18: 6 | N18: 6 | O18: 1 | P18: 1 | Q18: 20630.62 | R18: 167108.022 | S18: 20700 | T18: 38823.52941 | U18: 163023.5294 | V18: -4084.492588 | W18: -2.505462005 | Y18: pokles o více než 15% | Z18: =COUNTIFS( $W$8:$W$2314,"<-15") -> 66 | AA18: 2.860858257
A19: 2 | B19: CZ020 | C19: Středočeský | D19: 151016305 | E19: 600052273 | F19: Město Odolena Voda | G19: ZŠ | H19: 1.st | I19: 7 | J19: 7 | K19: 1 | L19: 1 | M19: 6 | N19: 6 | O19: 1 | P19: 1 | Q19: 20757.92277 | R19: 196162.3702 | S19: 20700 | T19: 45294.11765 | U19: 190194.1176 | V19: -5968.252526 | W19: -3.137979555 | Y19: celkem škol, odloučených pracovišť | Z19: =SUM(Z8:Z18) -> 2307 | AA19: =SUM(AA8:AA18) -> 100
A20: 7 | B20: CZ020 | C20: Středočeský | D20: 102014116 | E20: 600021394 | F20: Středočeský kraj | G20: ZŠ | H20: 1.st | I20: 7 | J20: 7 | K20: 1 | L20: 1 | M20: 6 | N20: 6 | O20: 1 | P20: 1 | Q20: 20757.92277 | R20: 196162.3702 | S20: 20700 | T20: 45294.11765 | U20: 190194.1176 | V20: -5968.252526 | W20: -3.137979555
A21: 7 | B21: CZ071 | C21: Olomoucký | D21: 102608679 | E21: 600027007 | F21: Olomoucký kraj | G21: ZŠ | H21: 1.st | I21: 7 | J21: 7 | K21: 0 | L21: 0 | M21: 7 | N21: 7 | O21: 1 | P21: 1 | Q21: 20174 | R21: 190644.3 | S21: 20700 | T21: 45294.11765 | U21: 190194.1176 | V21: -450.1823529 | W21: -0.2366962546 | Y21: Počty škol podle počtu žáků | Z21: počet škol, odloučených pracovišť | AA21: v %
A22: 2 | B22: CZ032 | C22: Plzeňský | D22: 102164720 | E22: 600068676 | F22: Město Horažďovice | G22: ZŠ | H22: 1.st | I22: 9 | J22: 9 | K22: 3 | L22: 3 | M22: 6 | N22: 6 | O22: 1 | P22: 1 | Q22: 22287 | R22: 270787.05 | S22: 20700 | T22: 58235.29412 | U22: 244535.2941 | V22: -26251.75588 | W22: -10.7353648
A23: 2 | B23: CZ032 | C23: Plzeňský | D23: 151005788 | E23: 600070522 | F23: Město Stod | G23: ZŠ | H23: 1.st | I23: 9 | J23: 9 | K23: 0 | L23: 0 | M23: 9 | N23: 9 | O23: 1 | P23: 1 | Q23: 22287 | R23: 270787.05 | S23: 20700 | T23: 58235.29412 | U23: 244535.2941 | V23: -26251.75588 | W23: -10.7353648
A24: 2 | B24: CZ053 | C24: Pardubický | D24: 117800996 | E24: 600100545 | F24: Město Jevíčko | G24: ZŠ | H24: 1.st | I24: 9 | J24: 9 | K24: 5 | L24: 5 | M24: 4 | N24: 4 | O24: 1 | P24: 1 | Q24: 20464 | R24: 248637.6 | S24: 20700 | T24: 58235.29412 | U24: 244535.2941 | V24: -4102.305882 | W24: -1.677592553
A25: 7 | B25: CZ020 | C25: Středočeský | D25: 102338094 | E25: 600021858 | F25: Středočeský kraj | G25: ZŠ | H25: 1.st | I25: 9 | J25: 9 | K25: 0 | L25: 0 | M25: 9 | N25: 9 | O25: 2 | P25: 2 | Q25: 20757.92277 | R25: 252208.7617 | S25: 20700 | T25: 58235.29412 | U25: 244535.2941 | V25: -7673.467533 | W25: -3.137979555
A26: 7 | B26: CZ051 | C26: Liberecký | D26: 110021410 | E26: 600023397 | F26: Liberecký kraj | G26: ZŠ | H26: 1.st | I26: 9 | J26: 9 | K26: 1 | L26: 1 | M26: 8 | N26: 8 | O26: 1 | P26: 1 | Q26: 22414.71074 | R26: 272338.7355 | S26: 20700 | T26: 58235.29412 | U26: 244535.2941 | V26: -27803.44142 | W26: -11.36990941 | Y26: do 28 žáků | Z26: =COUNTIFS( $I$8:$I$2314,"<=28" ) -> 78 | AA26: =100*Z26/2307 -> 3.381014304
A27: 2 | B27: CZ020 | C27: Středočeský | D27: 102086737 | E27: 600044165 | F27: Obec Koleč | G27: ZŠ | H27: 1.st | I27: 10 | J27: 0 | K27: 0 | L27: 0 | M27: 4 | N27: 0 | O27: 1 | P27: 0 | Q27: 20757.92277 | R27: 280231.9574 | S27: 20700 | T27: 64705.88235 | U27: 271705.8824 | V27: -8526.075037 | W27: -3.137979555 | Y27: 29 až 56 žáků | Z27: =COUNTIFS( $I$8:$I$2314,">=29",$I$8:$I$2314,"<=56") -> 161 | AA27: 6.978760295
A28: 2 | B28: CZ051 | C28: Liberecký | D28: 102565066 | E28: 600080382 | F28: Obec Lázně Libverda | G28: ZŠ | H28: 1.st | I28: 10 | J28: 10 | K28: 0 | L28: 0 | M28: 8 | N28: 8 | O28: 2 | P28: 2 | Q28: 22414.71074 | R28: 302598.595 | S28: 20700 | T28: 64705.88235 | U28: 271705.8824 | V28: -30892.71269 | W28: -11.36990941 | Y28: 57 až 84 žáků | Z28: =COUNTIFS( $I$8:$I$2314,">=57",$I$8:$I$2314,"<=84") -> 305 | AA28: 13.22063286
A29: 7 | B29: CZ032 | C29: Plzeňský | D29: 102464332 | E29: 600023109 | F29: Plzeňský kraj | G29: ZŠ | H29: 1.st | I29: 10 | J29: 10 | K29: 1 | L29: 1 | M29: 9 | N29: 9 | O29: 1 | P29: 1 | Q29: 22287 | R29: 300874.5 | S29: 20700 | T29: 64705.88235 | U29: 271705.8824 | V29: -29168.61765 | W29: -10.7353648 | Y29: 85 až 170 žáků | Z29: =COUNTIFS( $I$8:$I$2314,">=85",$I$8:$I$2314,"<=170") -> 742 | AA29: 32.16298223
A30: 7 | B30: CZ064 | C30: Jihomoravský | D30: 062157655 | E30: 600024962 | F30: Jihomoravský kraj | G30: ZŠ | H30: 1.st | I30: 10 | J30: 10 | K30: 10 | L30: 10 | M30: 0 | N30: 0 | O30: 2 | P30: 2 | Q30: 21211 | R30: 286348.5 | S30: 20700 | T30: 64705.88235 | U30: 271705.8824 | V30: -14642.61765 | W30: -5.389142672 | Y30: 171 až 255 žáků | Z30: =COUNTIFS( $I$8:$I$2314,">=171",$I$8:$I$2314,"<=255") -> 536 | AA30: 23.23363676
A31: 2 | B31: CZ042 | C31: Ústecký | D31: 151040761 | E31: 600084671 | F31: Město Dubí | G31: ZŠ | H31: 1.st | I31: 11 | J31: 11 | K31: 0 | L31: 0 | M31: 6 | N31: 6 | O31: 1 | P31: 1 | Q31: 24193 | R31: 359266.05 | S31: 20700 | T31: 71176.47059 | U31: 298876.4706 | V31: -60389.57941 | W31: -20.2055315 | Y31: 256 až 340 žáků | Z31: =COUNTIFS( $I$8:$I$2314,">=256",$I$8:$I$2314,"<=340") -> 315 | AA31: 13.65409623
A32: 7 | B32: CZ020 | C32: Středočeský | D32: 102650314 | E32: 600021688 | F32: Středočeský kraj | G32: ZŠ | H32: 1.st | I32: 11 | J32: 11 | K32: 0 | L32: 0 | M32: 11 | N32: 11 | O32: 1 | P32: 1 | Q32: 20757.92277 | R32: 308255.1531 | S32: 20700 | T32: 71176.47059 | U32: 298876.4706 | V32: -9378.682541 | W32: -3.137979555 | Y32: 341 až 425 žáků | Z32: =COUNTIFS( $I$8:$I$2314,">=341",$I$8:$I$2314,"<=425") -> 130 | AA32: 5.63502384
A33: 7 | B33: CZ080 | C33: Moravskoslezský | D33: 151024880 | E33: 600171698 | F33: Moravskoslezský kraj | G33: ZŠ | H33: 1.st | I33: 11 | J33: 11 | K33: 9 | L33: 9 | M33: 2 | N33: 2 | O33: 2 | P33: 2 | Q33: 28859.51477 | R33: 428563.7944 | S33: 20700 | T33: 71176.47059 | U33: 298876.4706 | V33: -129687.3238 | W33: -43.39161378 | Y33: 426 až 510 žáků | Z33: =COUNTIFS( $I$8:$I$2314,">=426",$I$8:$I$2314,"<=510") -> 37 | AA33: 1.603814478
A34: 7 | B34: CZ042 | C34: Ústecký | D34: 102317542 | E34: 610150502 | F34: Ústecký kraj | G34: ZŠ | H34: 1.st | I34: 12 | J34: 12 | K34: 0 | L34: 0 | M34: 12 | N34: 12 | O34: 2 | P34: 2 | Q34: 24193 | R34: 391926.6 | S34: 20700 | T34: 77647.05882 | U34: 326047.0588 | V34: -65879.54118 | W34: -20.2055315 | Y34: 511 až 600 žáků | Z34: =COUNTIFS( $I$8:$I$2314,">=511",$I$8:$I$2314,"<=600") -> 3 | AA34: 0.1300390117
A35: 7 | B35: CZ071 | C35: Olomoucký | D35: 102680931 | E35: 600027295 | F35: Olomoucký kraj | G35: ZŠ | H35: 1.st | I35: 12 | J35: 12 | K35: 0 | L35: 0 | M35: 12 | N35: 12 | O35: 2 | P35: 2 | Q35: 20174 | R35: 326818.8 | S35: 20700 | T35: 77647.05882 | U35: 326047.0588 | V35: -771.7411765 | W35: -0.2366962546 | Y35: celkem škol, odloučených pracovišť | Z35: =SUM(Z26:Z34) -> 2307 | AA35: =SUM(AA26:AA34) -> 100
A36: 2 | B36: CZ020 | C36: Středočeský | D36: 102326797 | E36: 600049159 | F36: Obec Dolní Slivno | G36: ZŠ | H36: 1.st | I36: 13 | J36: 0 | K36: 1 | L36: 0 | M36: 1 | N36: 0 | O36: 1 | P36: 0 | Q36: 20757.92277 | R36: 364301.5446 | S36: 20700 | T36: 84117.64706 | U36: 353217.6471 | V36: -11083.89755 | W36: -3.137979555
A37: 7 | B37: CZ020 | C37: Středočeský | D37: 108053008 | E37: 600022072 | F37: Středočeský kraj | G37: ZŠ | H37: 1.st | I37: 13 | J37: 13 | K37: 0 | L37: 0 | M37: 12 | N37: 12 | O37: 2 | P37: 2 | Q37: 20757.92277 | R37: 364301.5446 | S37: 20700 | T37: 84117.64706 | U37: 353217.6471 | V37: -11083.89755 | W37: -3.137979555
A38: 7 | B38: CZ032 | C38: Plzeňský | D38: 102464367 | E38: 600009971 | F38: Plzeňský kraj | G38: ZŠ | H38: 1.st | I38: 13 | J38: 13 | K38: 0 | L38: 0 | M38: 13 | N38: 13 | O38: 2 | P38: 2 | Q38: 22287 | R38: 391136.85 | S38: 20700 | T38: 84117.64706 | U38: 353217.6471 | V38: -37919.20294 | W38: -10.7353648
A39: 7 | B39: CZ052 | C39: Královéhradecký | D39: 102590265 | E39: 600024652 | F39: Královéhradecký kraj | G39: ZŠ | H39: 1.st | I39: 13 | J39: 13 | K39: 0 | L39: 0 | M39: 13 | N39: 13 | O39: 2 | P39: 2 | Q39: 20630.62 | R39: 362067.381 | S39: 20700 | T39: 84117.64706 | U39: 353217.6471 | V39: -8849.733941 | W39: -2.505462005
A40: 7 | B40: CZ053 | C40: Pardubický | D40: 102654123 | E40: 600024717 | F40: Pardubický kraj | G40: ZŠ | H40: 1.st | I40: 14 | J40: 14 | K40: 0 | L40: 0 | M40: 13 | N40: 13 | O40: 1 | P40: 1 | Q40: 20464 | R40: 386769.6 | S40: 20700 | T40: 90588.23529 | U40: 380388.2353 | V40: -6381.364706 | W40: -1.677592553
A41: 7 | B41: CZ064 | C41: Jihomoravský | D41: 108028411 | E41: 600025004 | F41: Jihomoravský kraj | G41: ZŠ | H41: 1.st | I41: 14 | J41: 14 | K41: 0 | L41: 0 | M41: 11 | N41: 11 | O41: 2 | P41: 2 | Q41: 21211 | R41: 400887.9 | S41: 20700 | T41: 90588.23529 | U41: 380388.2353 | V41: -20499.66471 | W41: -5.389142672
A42: 7 | B42: CZ072 | C42: Zlínský | D42: 060371668 | E42: 600025730 | F42: Zlínský kraj | G42: ZŠ | H42: 1.st | I42: 14 | J42: 14 | K42: 2 | L42: 2 | M42: 12 | N42: 12 | O42: 2 | P42: 2 | Q42: 22290 | R42: 421281 | S42: 20700 | T42: 90588.23529 | U42: 380388.2353 | V42: -40892.76471 | W42: -10.75027062
A43: 2 | B43: CZ051 | C43: Liberecký | D43: 102005796 | E43: 600075141 | F43: Město Nový Bor | G43: ZŠ | H43: 1.st | I43: 15 | J43: 15 | K43: 1 | L43: 1 | M43: 14 | N43: 14 | O43: 3 | P43: 3 | Q43: 22414.71074 | R43: 453897.8926 | S43: 20700 | T43: 97058.82353 | U43: 407558.8235 | V43: -46339.06903 | W43: -11.36990941
A44: 7 | B44: CZ010 | C44: Praha | D44: 102401683 | E44: 600020991 | F44: Hlavní město Praha | G44: ZŠ | H44: 1.st | I44: 15 | J44: 15 | K44: 0 | L44: 0 | M44: 11 | N44: 11 | O44: 2 | P44: 2 | Q44: 20323.23232 | R44: 411545.4545 | S44: 20700 | T44: 97058.82353 | U44: 407558.8235 | V44: -3986.631016 | W44: -0.9781731583
A45: 7 | B45: CZ051 | C45: Liberecký | D45: 110400704 | E45: 610400681 | F45: Liberecký kraj | G45: ZŠ | H45: 1.st | I45: 15 | J45: 15 | K45: 0 | L45: 0 | M45: 15 | N45: 15 | O45: 2 | P45: 2 | Q45: 22414.71074 | R45: 453897.8926 | S45: 20700 | T45: 97058.82353 | U45: 407558.8235 | V45: -46339.06903 | W45: -11.36990941
A46: 7 | B46: CZ064 | C46: Jihomoravský | D46: 151030103 | E46: 600025004 | F46: Jihomoravský kraj | G46: ZŠ | H46: 1.st | I46: 15 | J46: 15 | K46: 15 | L46: 15 | M46: 0 | N46: 0 | O46: 3 | P46: 3 | Q46: 21211 | R46: 429522.75 | S46: 20700 | T46: 97058.82353 | U46: 407558.8235 | V46: -21963.92647 | W46: -5.389142672
A47: 2 | B47: CZ020 | C47: Středočeský | D47: 047011297 | E47: 600047822 | F47: Město Mělník | G47: ZŠ | H47: 1.st | I47: 16 | J47: 16 | K47: 1 | L47: 1 | M47: 13 | N47: 13 | O47: 2 | P47: 2 | Q47: 20757.92277 | R47: 448371.1318 | S47: 20700 | T47: 103529.4118 | U47: 434729.4118 | V47: -13641.72006 | W47: -3.137979555
A48: 2 | B48: CZ080 | C48: Moravskoslezský | D48: 102156476 | E48: 600136264 | F48: Obec Dolní Lutyně | G48: ZŠ | H48: 1.st | I48: 16 | J48: 0 | K48: 0 | L48: 0 | M48: 0 | N48: 0 | O48: 1 | P48: 0 | Q48: 28626.33535 | R48: 618328.8435 | S48: 20700 | T48: 103529.4118 | U48: 434729.4118 | V48: -183599.4317 | W48: -42.23303663
A49: 7 | B49: CZ020 | C49: Středočeský | D49: 102650411 | E49: 600021947 | F49: Středočeský kraj | G49: ZŠ | H49: 1.st | I49: 16 | J49: 16 | K49: 0 | L49: 0 | M49: 15 | N49: 15 | O49: 2 | P49: 2 | Q49: 20757.92277 | R49: 448371.1318 | S49: 20700 | T49: 103529.4118 | U49: 434729.4118 | V49: -13641.72006 | W49: -3.137979555
A50: 7 | B50: CZ052 | C50: Královéhradecký | D50: 150024762 | E50: 600024211 | F50: Královéhradecký kraj | G50: ZŠ | H50: 1.st | I50: 16 | J50: 16 | K50: 11 | L50: 11 | M50: 5 | N50: 5 | O50: 3 | P50: 3 | Q50: 20630.62 | R50: 445621.392 | S50: 20700 | T50: 103529.4118 | U50: 434729.4118 | V50: -10891.98024 | W50: -2.505462005
A51: 7 | B51: CZ080 | C51: Moravskoslezský | D51: 110500687 | E51: 610500678 | F51: Moravskoslezský kraj | G51: ZŠ | H51: 1.st | I51: 16 | J51: 16 | K51: 1 | L51: 1 | M51: 11 | N51: 11 | O51: 2 | P51: 2 | Q51: 28626.33535 | R51: 618328.8435 | S51: 20700 | T51: 103529.4118 | U51: 434729.4118 | V51: -183599.4317 | W51: -42.23303663
A52: 2 | B52: CZ051 | C52: Liberecký | D52: 102005001 | E52: 600074935 | F52: Město Mimoň | G52: ZŠ | H52: 1.st | I52: 17 | J52: 17 | K52: 1 | L52: 1 | M52: 16 | N52: 16 | O52: 2 | P52: 2 | Q52: 22414.71074 | R52: 514417.6116 | S52: 20700 | T52: 110000 | U52: 461900 | V52: -52517.61157 | W52: -11.36990941
A53: 7 | B53: CZ010 | C53: Praha | D53: 060436107 | E53: 600020720 | F53: Hlavní město Praha | G53: ZŠ | H53: 1.st | I53: 17 | J53: 17 | K53: 0 | L53: 0 | M53: 13 | N53: 13 | O53: 2 | P53: 2 | Q53: 20323.23232 | R53: 466418.1818 | S53: 20700 | T53: 110000 | U53: 461900 | V53: -4518.181818 | W53: -0.9781731583
A54: 2 | B54: CZ041 | C54: Karlovarský | D54: 102516791 | E54: 600067726 | F54: Město Bochov | G54: ZŠ | H54: 1.st | I54: 18 | J54: 18 | K54: 4 | L54: 4 | M54: 14 | N54: 14 | O54: 2 | P54: 2 | Q54: 21803.67826 | R54: 529829.3818 | S54: 20700 | T54: 116470.5882 | U54: 489070.5882 | V54: -40758.79355 | W54: -8.333928584
A55: 7 | B55: CZ080 | C55: Moravskoslezský | D55: 110006003 | E55: 600026736 | F55: Moravskoslezský kraj | G55: ZŠ | H55: 1.st | I55: 18 | J55: 18 | K55: 1 | L55: 1 | M55: 15 | N55: 15 | O55: 3 | P55: 3 | Q55: 28522.56074 | R55: 693098.226 | S55: 20700 | T55: 116470.5882 | U55: 489070.5882 | V55: -204027.6378 | W55: -41.7174213
A56: 2 | B56: CZ031 | C56: Jihočeský | D56: 107721902 | E56: 650042093 | F56: Městys Dub | G56: ZŠ | H56: 1.st | I56: 19 | J56: 0 | K56: 1 | L56: 0 | M56: 3 | N56: 0 | O56: 2 | P56: 0 | Q56: 20235 | R56: 519027.75 | S56: 20700 | T56: 122941.1765 | U56: 516241.1765 | V56: -2786.573529 | W56: -0.539781338
A57: 7 | B57: CZ010 | C57: Praha | D57: 151025169 | E57: 600021262 | F57: Hlavní město Praha | G57: ZŠ | H57: 1.st | I57: 19 | J57: 19 | K57: 0 | L57: 0 | M57: 19 | N57: 19 | O57: 2 | P57: 2 | Q57: 20323.23232 | R57: 521290.9091 | S57: 20700 | T57: 122941.1765 | U57: 516241.1765 | V57: -5049.73262 | W57: -0.9781731583
A58: 7 | B58: CZ020 | C58: Středočeský | D58: 102238073 | E58: 600021769 | F58: Středočeský kraj | G58: ZŠ | H58: 1.st | I58: 19 | J58: 19 | K58: 0 | L58: 0 | M58: 19 | N58: 19 | O58: 3 | P58: 3 | Q58: 20757.92277 | R58: 532440.719 | S58: 20700 | T58: 122941.1765 | U58: 516241.1765 | V58: -16199.54257 | W58: -3.137979555
A59: 7 | B59: CZ064 | C59: Jihomoravský | D59: 102391904 | E59: 600025519 | F59: Jihomoravský kraj | G59: ZŠ | H59: 1.st | I59: 19 | J59: 19 | K59: 2 | L59: 2 | M59: 17 | N59: 17 | O59: 3 | P59: 3 | Q59: 21211 | R59: 544062.15 | S59: 20700 | T59: 122941.1765 | U59: 516241.1765 | V59: -27820.97353 | W59: -5.389142672
A60: 2 | B60: CZ032 | C60: Plzeňský | D60: 102264872 | E60: 600070476 | F60: Obec Merklín | G60: ZŠ | H60: 1.st | I60: 20 | J60: 0 | K60: 0 | L60: 0 | M60: 2 | N60: 0 | O60: 1 | P60: 0 | Q60: 22287 | R60: 601749 | S60: 20700 | T60: 129411.7647 | U60: 543411.7647 | V60: -58337.23529 | W60: -10.7353648
A61: 2 | B61: CZ041 | C61: Karlovarský | D61: 102516570 | E61: 600066461 | F61: Obec Nový Kostel | G61: ZŠ | H61: 1.st | I61: 20 | J61: 0 | K61: 0 | L61: 0 | M61: 2 | N61: 0 | O61: 2 | P61: 0 | Q61: 21803.67826 | R61: 588699.3131 | S61: 20700 | T61: 129411.7647 | U61: 543411.7647 | V61: -45287.54839 | W61: -8.333928584
A62: 2 | B62: CZ051 | C62: Liberecký | D62: 102454221 | E62: 600099458 | F62: Město Semily | G62: ZŠ | H62: 1.st | I62: 20 | J62: 20 | K62: 0 | L62: 0 | M62: 9 | N62: 9 | O62: 2 | P62: 2 | Q62: 22414.71074 | R62: 605197.1901 | S62: 20700 | T62: 129411.7647 | U62: 543411.7647 | V62: -61785.42538 | W62: -11.36990941
A63: 7 | B63: CZ042 | C63: Ústecký | D63: 108043801 | E63: 600029191 | F63: Ústecký kraj | G63: ZŠ | H63: 1.st | I63: 20 | J63: 20 | K63: 0 | L63: 0 | M63: 20 | N63: 20 | O63: 3 | P63: 3 | Q63: 24193 | R63: 653211 | S63: 20700 | T63: 129411.7647 | U63: 543411.7647 | V63: -109799.2353 | W63: -20.2055315
A64: 7 | B64: CZ080 | C64: Moravskoslezský | D64: 102113467 | E64: 600026485 | F64: Moravskoslezský kraj | G64: ZŠ | H64: 1.st | I64: 20 | J64: 20 | K64: 0 | L64: 0 | M64: 20 | N64: 20 | O64: 2 | P64: 2 | Q64: 28412.98502 | R64: 767150.5955 | S64: 20700 | T64: 129411.7647 | U64: 543411.7647 | V64: -223738.8308 | W64: -41.1729825
A65: 2 | B65: CZ020 | C65: Středočeský | D65: 102326860 | E65: 600049183 | F65: Statutární město Mladá Boleslav | G65: ZŠ | H65: 1.st | I65: 21 | J65: 21 | K65: 2 | L65: 2 | M65: 15 | N65: 15 | O65: 2 | P65: 2 | Q65: 20757.92277 | R65: 588487.1105 | S65: 20700 | T65: 135882.3529 | U65: 570582.3529 | V65: -17904.75758 | W65: -3.137979555
A66: 2 | B66: CZ051 | C66: Liberecký | D66: 102241341 | E66: 600080366 | F66: Město Hrádek nad Nisou | G66: ZŠ | H66: 1.st | I66: 21 | J66: 21 | K66: 1 | L66: 1 | M66: 9 | N66: 9 | O66: 2 | P66: 2 | Q66: 22414.71074 | R66: 635457.0496 | S66: 20700 | T66: 135882.3529 | U66: 570582.3529 | V66: -64874.69665 | W66: -11.36990941
A67: 2 | B67: CZ071 | C67: Olomoucký | D67: 102668990 | E67: 600148297 | F67: Obec Rohle | G67: ZŠ | H67: 1.st | I67: 21 | J67: 0 | K67: 0 | L67: 0 | M67: 0 | N67: 0 | O67: 1 | P67: 0 | Q67: 20174 | R67: 571932.9 | S67: 20700 | T67: 135882.3529 | U67: 570582.3529 | V67: -1350.547059 | W67: -0.2366962546
A68: 7 | B68: CZ042 | C68: Ústecký | D68: 181023857 | E68: 600023222 | F68: Ústecký kraj | G68: ZŠ | H68: 1.st | I68: 21 | J68: 21 | K68: 3 | L68: 3 | M68: 18 | N68: 18 | O68: 3 | P68: 3 | Q68: 24193 | R68: 685871.55 | S68: 20700 | T68: 135882.3529 | U68: 570582.3529 | V68: -115289.1971 | W68: -20.2055315
A69: 2 | B69: CZ064 | C69: Jihomoravský | D69: 102255806 | E69: 600112551 | F69: Obec Vlasatice | G69: ZŠ | H69: 1.st | I69: 22 | J69: 0 | K69: 0 | L69: 0 | M69: 1 | N69: 0 | O69: 2 | P69: 0 | Q69: 21211 | R69: 629966.7 | S69: 20700 | T69: 142352.9412 | U69: 597752.9412 | V69: -32213.75882 | W69: -5.389142672
A70: 7 | B70: CZ053 | C70: Pardubický | D70: 110200012 | E70: 600024491 | F70: Pardubický kraj | G70: ZŠ | H70: 1.st | I70: 22 | J70: 22 | K70: 1 | L70: 1 | M70: 16 | N70: 16 | O70: 2 | P70: 2 | Q70: 20464 | R70: 607780.8 | S70: 20700 | T70: 142352.9412 | U70: 597752.9412 | V70: -10027.85882 | W70: -1.677592553
A71: 7 | B71: CZ064 | C71: Jihomoravský | D71: 102007853 | E71: 600024831 | F71: Jihomoravský kraj | G71: ZŠ | H71: 1.st | I71: 23 | J71: 23 | K71: 3 | L71: 3 | M71: 19 | N71: 19 | O71: 3 | P71: 3 | Q71: 21211 | R71: 658601.55 | S71: 20700 | T71: 148823.5294 | U71: 624923.5294 | V71: -33678.02059 | W71: -5.389142672
A72: 2 | B72: CZ053 | C72: Pardubický | D72: 060159138 | E72: 600096645 | F72: Statutární město Pardubice | G72: ZŠ | H72: 1.st | I72: 24 | J72: 24 | K72: 15 | L72: 15 | M72: 9 | N72: 9 | O72: 3 | P72: 3 | Q72: 20464 | R72: 663033.6 | S72: 20700 | T72: 155294.1176 | U72: 652094.1176 | V72: -10939.48235 | W72: -1.677592553
A73: 7 | B73: CZ032 | C73: Plzeňský | D73: 151003505 | E73: 600022935 | F73: Plzeňský kraj | G73: ZŠ | H73: 1.st | I73: 24 | J73: 24 | K73: 0 | L73: 0 | M73: 24 | N73: 24 | O73: 3 | P73: 3 | Q73: 22287 | R73: 722098.8 | S73: 20700 | T73: 155294.1176 | U73: 652094.1176 | V73: -70004.68235 | W73: -10.7353648
A74: 7 | B74: CZ052 | C74: Královéhradecký | D74: 102266107 | E74: 600024199 | F74: Královéhradecký kraj | G74: ZŠ | H74: 1.st | I74: 24 | J74: 24 | K74: 0 | L74: 0 | M74: 24 | N74: 24 | O74: 3 | P74: 3 | Q74: 20630.62 | R74: 668432.088 | S74: 20700 | T74: 155294.1176 | U74: 652094.1176 | V74: -16337.97035 | W74: -2.505462005
A75: 2 | B75: CZ020 | C75: Středočeský | D75: 102438188 | E75: 600052125 | F75: Obec Šestajovice | G75: ZŠ | H75: 1.st | I75: 25 | J75: 0 | K75: 0 | L75: 0 | M75: 0 | N75: 0 | O75: 1 | P75: 0 | Q75: 20757.92277 | R75: 700579.8935 | S75: 20700 | T75: 161764.7059 | U75: 679264.7059 | V75: -21315.18759 | W75: -3.137979555
A76: 2 | B76: CZ032 | C76: Plzeňský | D76: 102004439 | E76: 600065758 | F76: Město Domažlice | G76: ZŠ | H76: 1.st | I76: 25 | J76: 25 | K76: 0 | L76: 0 | M76: 25 | N76: 25 | O76: 5 | P76: 5 | Q76: 22287 | R76: 752186.25 | S76: 20700 | T76: 161764.7059 | U76: 679264.7059 | V76: -72921.54412 | W76: -10.7353648
A77: 2 | B77: CZ053 | C77: Pardubický | D77: 060157283 | E77: 600096254 | F77: Obec Hlavečník | G77: ZŠ | H77: 1.st | I77: 25 | J77: 0 | K77: 0 | L77: 0 | M77: 2 | N77: 0 | O77: 2 | P77: 0 | Q77: 20464 | R77: 690660 | S77: 20700 | T77: 161764.7059 | U77: 679264.7059 | V77: -11395.29412 | W77: -1.677592553
A78: 7 | B78: CZ052 | C78: Královéhradecký | D78: 102406189 | E78: 600024318 | F78: Královéhradecký kraj | G78: ZŠ | H78: 1.st | I78: 26 | J78: 26 | K78: 0 | L78: 0 | M78: 26 | N78: 26 | O78: 3 | P78: 3 | Q78: 20630.62 | R78: 724134.762 | S78: 20700 | T78: 168235.2941 | U78: 706435.2941 | V78: -17699.46788 | W78: -2.505462005
A79: 2 | B79: CZ042 | C79: Ústecký | D79: 116600471 | E79: 600083179 | F79: Město Podbořany | G79: ZŠ | H79: 1.st | I79: 27 | J79: 27 | K79: 7 | L79: 7 | M79: 20 | N79: 20 | O79: 3 | P79: 3 | Q79: 24193 | R79: 881834.85 | S79: 20700 | T79: 174705.8824 | U79: 733605.8824 | V79: -148228.9676 | W79: -20.2055315
A80: 2 | B80: CZ071 | C80: Olomoucký | D80: 102308756 | E80: 600140598 | F80: Statutární město Olomouc | G80: ZŠ | H80: 1.st | I80: 27 | J80: 0 | K80: 0 | L80: 0 | M80: 2 | N80: 0 | O80: 1 | P80: 0 | Q80: 20174 | R80: 735342.3 | S80: 20700 | T80: 174705.8824 | U80: 733605.8824 | V80: -1736.417647 | W80: -0.2366962546
A81: 7 | B81: CZ010 | C81: Praha | D81: 110032691 | E81: 600027341 | F81: Hlavní město Praha | G81: ZŠ | H81: 1.st | I81: 27 | J81: 27 | K81: 0 | L81: 0 | M81: 27 | N81: 27 | O81: 6 | P81: 6 | Q81: 20323.23232 | R81: 740781.8182 | S81: 20700 | T81: 174705.8824 | U81: 733605.8824 | V81: -7175.935829 | W81: -0.9781731583
A82: 7 | B82: CZ042 | C82: Ústecký | D82: 102577421 | E82: 600023231 | F82: Ústecký kraj | G82: ZŠ | H82: 1.st | I82: 27 | J82: 27 | K82: 0 | L82: 0 | M82: 26 | N82: 26 | O82: 2 | P82: 2 | Q82: 24193 | R82: 881834.85 | S82: 20700 | T82: 174705.8824 | U82: 733605.8824 | V82: -148228.9676 | W82: -20.2055315
A83: 7 | B83: CZ071 | C83: Olomoucký | D83: 102608709 | E83: 600027023 | F83: Olomoucký kraj | G83: ZŠ | H83: 1.st | I83: 27 | J83: 27 | K83: 0 | L83: 0 | M83: 27 | N83: 27 | O83: 3 | P83: 3 | Q83: 20174 | R83: 735342.3 | S83: 20700 | T83: 174705.8824 | U83: 733605.8824 | V83: -1736.417647 | W83: -0.2366962546
A84: 7 | B84: CZ010 | C84: Praha | D84: 047607882 | E84: 600021378 | F84: Hlavní město Praha | G84: ZŠ | H84: 1.st | I84: 28 | J84: 28 | K84: 1 | L84: 1 | M84: 27 | N84: 27 | O84: 3 | P84: 3 | Q84: 20323.23232 | R84: 768218.1818 | S84: 20700 | T84: 181176.4706 | U84: 760776.4706 | V84: -7441.71123 | W84: -0.9781731583
A85: 7 | B85: CZ010 | C85: Praha | D85: 110032675 | E85: 600021327 | F85: Hlavní město Praha | G85: ZŠ | H85: 1.st | I85: 28 | J85: 28 | K85: 2 | L85: 2 | M85: 26 | N85: 26 | O85: 4 | P85: 4 | Q85: 20323.23232 | R85: 768218.1818 | S85: 20700 | T85: 181176.4706 | U85: 760776.4706 | V85: -7441.71123 | W85: -0.9781731583
A86: 2 | B86: CZ051 | C86: Liberecký | D86: 102229309 | E86: 600079821 | F86: Obec Křižany | G86: ZŠ | H86: 1.st | I86: 29 | J86: 0 | K86: 0 | L86: 0 | M86: 2 | N86: 0 | O86: 2 | P86: 0 | Q86: 22414.71074 | R86: 877535.9256 | S86: 20700 | T86: 187647.0588 | U86: 787947.0588 | V86: -89588.8668 | W86: -11.36990941
A87: 2 | B87: CZ051 | C87: Liberecký | D87: 102241422 | E87: 600080404 | F87: Statutární město Liberec | G87: ZŠ | H87: 1.st | I87: 29 | J87: 29 | K87: 0 | L87: 0 | M87: 29 | N87: 29 | O87: 3 | P87: 3 | Q87: 22414.71074 | R87: 877535.9256 | S87: 20700 | T87: 187647.0588 | U87: 787947.0588 | V87: -89588.8668 | W87: -11.36990941
A88: 2 | B88: CZ052 | C88: Královéhradecký | D88: 102254575 | E88: 650058828 | F88: Obec Stárkov | G88: ZŠ | H88: 1.st | I88: 29 | J88: 0 | K88: 0 | L88: 0 | M88: 6 | N88: 0 | O88: 2 | P88: 0 | Q88: 20630.62 | R88: 807688.773 | S88: 20700 | T88: 187647.0588 | U88: 787947.0588 | V88: -19741.71418 | W88: -2.505462005
A89: 2 | B89: CZ053 | C89: Pardubický | D89: 002506611 | E89: 600100456 | F89: Obec Telecí | G89: ZŠ | H89: 1.st | I89: 29 | J89: 0 | K89: 0 | L89: 0 | M89: 1 | N89: 0 | O89: 2 | P89: 0 | Q89: 20464 | R89: 801165.6 | S89: 20700 | T89: 187647.0588 | U89: 787947.0588 | V89: -13218.54118 | W89: -1.677592553
A90: 7 | B90: CZ010 | C90: Praha | D90: 048134058 | E90: 600021050 | F90: Hlavní město Praha | G90: ZŠ | H90: 1.st | I90: 29 | J90: 29 | K90: 28 | L90: 28 | M90: 1 | N90: 1 | O90: 5 | P90: 5 | Q90: 20323.23232 | R90: 795654.5455 | S90: 20700 | T90: 187647.0588 | U90: 787947.0588 | V90: -7707.486631 | W90: -0.9781731583
A91: 7 | B91: CZ071 | C91: Olomoucký | D91: 108056848 | E91: 600026604 | F91: Olomoucký kraj | G91: ZŠ | H91: 1.st | I91: 29 | J91: 29 | K91: 19 | L91: 19 | M91: 10 | N91: 10 | O91: 5 | P91: 5 | Q91: 20174 | R91: 789812.1 | S91: 20700 | T91: 187647.0588 | U91: 787947.0588 | V91: -1865.041176 | W91: -0.2366962546
A92: 2 | B92: CZ032 | C92: Plzeňský | D92: 102164223 | E92: 650032110 | F92: Obec Velhartice | G92: ZŠ | H92: 1.st | I92: 30 | J92: 0 | K92: 0 | L92: 0 | M92: 0 | N92: 0 | O92: 1 | P92: 0 | Q92: 22287 | R92: 902623.5 | S92: 20700 | T92: 194117.6471 | U92: 815117.6471 | V92: -87505.85294 | W92: -10.7353648
A93: 7 | B93: CZ010 | C93: Praha | D93: 102401691 | E93: 600020983 | F93: Hlavní město Praha | G93: ZŠ | H93: 1.st | I93: 30 | J93: 30 | K93: 3 | L93: 3 | M93: 27 | N93: 27 | O93: 4 | P93: 4 | Q93: 20323.23232 | R93: 823090.9091 | S93: 20700 | T93: 194117.6471 | U93: 815117.6471 | V93: -7973.262032 | W93: -0.9781731583
A94: 7 | B94: CZ032 | C94: Plzeňský | D94: 049777726 | E94: 600022935 | F94: Plzeňský kraj | G94: ZŠ | H94: 1.st | I94: 30 | J94: 30 | K94: 0 | L94: 0 | M94: 30 | N94: 30 | O94: 3 | P94: 3 | Q94: 22287 | R94: 902623.5 | S94: 20700 | T94: 194117.6471 | U94: 815117.6471 | V94: -87505.85294 | W94: -10.7353648
A95: 2 | B95: CZ032 | C95: Plzeňský | D95: 102264864 | E95: 650033221 | F95: Obec Letiny | G95: ZŠ | H95: 1.st | I95: 31 | J95: 0 | K95: 1 | L95: 0 | M95: 2 | N95: 0 | O95: 2 | P95: 0 | Q95: 22287 | R95: 932710.95 | S95: 20700 | T95: 200588.2353 | U95: 842288.2353 | V95: -90422.71471 | W95: -10.7353648
A96: 2 | B96: CZ041 | C96: Karlovarský | D96: 047701617 | E96: 600067246 | F96: Obec Pernink | G96: ZŠ | H96: 1.st | I96: 31 | J96: 0 | K96: 0 | L96: 0 | M96: 0 | N96: 0 | O96: 3 | P96: 0 | Q96: 21803.67826 | R96: 912483.9353 | S96: 20700 | T96: 200588.2353 | U96: 842288.2353 | V96: -70195.7 | W96: -8.333928584
A97: 2 | B97: CZ041 | C97: Karlovarský | D97: 102428522 | E97: 600073246 | F97: Město Chodov | G97: ZŠ | H97: 1.st | I97: 31 | J97: 31 | K97: 0 | L97: 0 | M97: 31 | N97: 31 | O97: 3 | P97: 3 | Q97: 21803.67826 | R97: 912483.9353 | S97: 20700 | T97: 200588.2353 | U97: 842288.2353 | V97: -70195.7 | W97: -8.333928584
A98: 2 | B98: CZ080 | C98: Moravskoslezský | D98: 102156506 | E98: 600136272 | F98: Statutární město Havířov | G98: ZŠ | H98: 1.st | I98: 31 | J98: 0 | K98: 0 | L98: 0 | M98: 0 | N98: 0 | O98: 2 | P98: 0 | Q98: 27713.23385 | R98: 1159798.837 | S98: 20700 | T98: 200588.2353 | U98: 842288.2353 | V98: -317510.6012 | W98: -37.69619329
A99: 7 | B99: CZ010 | C99: Praha | D99: 102037914 | E99: 600020789 | F99: Hlavní město Praha | G99: ZŠ | H99: 1.st | I99: 31 | J99: 31 | K99: 3 | L99: 3 | M99: 28 | N99: 28 | O99: 4 | P99: 4 | Q99: 20323.23232 | R99: 850527.2727 | S99: 20700 | T99: 200588.2353 | U99: 842288.2353 | V99: -8239.037433 | W99: -0.9781731583
A100: 7 | B100: CZ010 | C100: Praha | D100: 102349070 | E100: 600021301 | F100: Hlavní město Praha | G100: ZŠ | H100: 1.st | I100: 31 | J100: 31 | K100: 2 | L100: 2 | M100: 27 | N100: 27 | O100: 4 | P100: 4 | Q100: 20323.23232 | R100: 850527.2727 | S100: 20700 | T100: 200588.2353 | U100: 842288.2353 | V100: -8239.037433 | W100: -0.9781731583
A101: 7 | B101: CZ071 | C101: Olomoucký | D101: 102591857 | E101: 600025641 | F101: Olomoucký kraj | G101: ZŠ | H101: 1.st | I101: 31 | J101: 31 | K101: 4 | L101: 4 | M101: 26 | N101: 26 | O101: 3 | P101: 3 | Q101: 20174 | R101: 844281.9 | S101: 20700 | T101: 200588.2353 | U101: 842288.2353 | V101: -1993.664706 | W101: -0.2366962546
A102: 2 | B102: CZ031 | C102: Jihočeský | D102: 107722704 | E102: 600064859 | F102: Obec Ratibořské Hory | G102: ZŠ | H102: 1.st | I102: 32 | J102: 0 | K102: 0 | L102: 0 | M102: 1 | N102: 0 | O102: 2 | P102: 0 | Q102: 20235 | R102: 874152 | S102: 20700 | T102: 207058.8235 | U102: 869458.8235 | V102: -4693.176471 | W102: -0.539781338
A103: 2 | B103: CZ042 | C103: Ústecký | D103: 102129614 | E103: 600077519 | F103: Obec Perštejn | G103: ZŠ | H103: 1.st | I103: 33 | J103: 0 | K103: 0 | L103: 0 | M103: 2 | N103: 0 | O103: 2 | P103: 0 | Q103: 24193 | R103: 1077798.15 | S103: 20700 | T103: 213529.4118 | U103: 896629.4118 | V103: -181168.7382 | W103: -20.2055315
A104: 2 | B104: CZ052 | C104: Královéhradecký | D104: 102266018 | E104: 650062531 | F104: Obec Martínkovice | G104: ZŠ | H104: 1.st | I104: 33 | J104: 0 | K104: 0 | L104: 0 | M104: 3 | N104: 0 | O104: 3 | P104: 0 | Q104: 20630.62 | R104: 919094.121 | S104: 20700 | T104: 213529.4118 | U104: 896629.4118 | V104: -22464.70924 | W104: -2.505462005
A105: 2 | B105: CZ063 | C105: Vysočina | D105: 102655481 | E105: 600122107 | F105: Obec Březník | G105: ZŠ | H105: 1.st | I105: 33 | J105: 0 | K105: 0 | L105: 0 | M105: 0 | N105: 0 | O105: 2 | P105: 0 | Q105: 21041 | R105: 937376.55 | S105: 20700 | T105: 213529.4118 | U105: 896629.4118 | V105: -40747.13824 | W105: -4.544479325
A106: 2 | B106: CZ051 | C106: Liberecký | D106: 102005681 | E106: 650037090 | F106: Obec Jestřebí | G106: ZŠ | H106: 1.st | I106: 35 | J106: 0 | K106: 0 | L106: 0 | M106: 0 | N106: 0 | O106: 2 | P106: 0 | Q106: 22414.71074 | R106: 1059095.083 | S106: 20700 | T106: 226470.5882 | U106: 950970.5882 | V106: -108124.4944 | W106: -11.36990941
A107: 2 | B107: CZ063 | C107: Vysočina | D107: 102455171 | E107: 600117383 | F107: Statutární město Jihlava | G107: ZŠ | H107: 1.st | I107: 35 | J107: 35 | K107: 3 | L107: 3 | M107: 32 | N107: 32 | O107: 3 | P107: 3 | Q107: 21041 | R107: 994187.25 | S107: 20700 | T107: 226470.5882 | U107: 950970.5882 | V107: -43216.66176 | W107: -4.544479325
A108: 2 | B108: CZ042 | C108: Ústecký | D108: 061357472 | E108: 600082954 | F108: Městys Panenský Týnec | G108: ZŠ | H108: 1.st | I108: 36 | J108: 0 | K108: 0 | L108: 0 | M108: 5 | N108: 0 | O108: 3 | P108: 0 | Q108: 24193 | R108: 1175779.8 | S108: 20700 | T108: 232941.1765 | U108: 978141.1765 | V108: -197638.6235 | W108: -20.2055315
A109: 2 | B109: CZ052 | C109: Královéhradecký | D109: 102390649 | E109: 650047087 | F109: Obec Deštné v Orlických horách | G109: ZŠ | H109: 1.st | I109: 36 | J109: 0 | K109: 2 | L109: 0 | M109: 4 | N109: 0 | O109: 3 | P109: 0 | Q109: 20630.62 | R109: 1002648.132 | S109: 20700 | T109: 232941.1765 | U109: 978141.1765 | V109: -24506.95553 | W109: -2.505462005
A110: 2 | B110: CZ041 | C110: Karlovarský | D110: 102428093 | E110: 600073009 | F110: Obec Krajková | G110: ZŠ | H110: 1.st | I110: 37 | J110: 0 | K110: 1 | L110: 0 | M110: 0 | N110: 0 | O110: 3 | P110: 0 | Q110: 21803.67826 | R110: 1089093.729 | S110: 20700 | T110: 239411.7647 | U110: 1005311.765 | V110: -83781.96452 | W110: -8.333928584
A111: 2 | B111: CZ051 | C111: Liberecký | D111: 102442827 | E111: 600099148 | F111: Obec Háje nad Jizerou | G111: ZŠ | H111: 1.st | I111: 37 | J111: 0 | K111: 0 | L111: 0 | M111: 3 | N111: 0 | O111: 3 | P111: 0 | Q111: 22414.71074 | R111: 1119614.802 | S111: 20700 | T111: 239411.7647 | U111: 1005311.765 | V111: -114303.0369 | W111: -11.36990941
A112: 2 | B112: CZ052 | C112: Královéhradecký | D112: 102254605 | E112: 600093867 | F112: Obec Machov | G112: ZŠ | H112: 1.st | I112: 37 | J112: 0 | K112: 0 | L112: 0 | M112: 6 | N112: 0 | O112: 5 | P112: 0 | Q112: 20630.62 | R112: 1030499.469 | S112: 20700 | T112: 239411.7647 | U112: 1005311.765 | V112: -25187.70429 | W112: -2.505462005
A113: 2 | B113: CZ064 | C113: Jihomoravský | D113: 102391131 | E113: 600115852 | F113: Obec Archlebov | G113: ZŠ | H113: 1.st | I113: 37 | J113: 0 | K113: 0 | L113: 0 | M113: 3 | N113: 0 | O113: 2 | P113: 0 | Q113: 21211 | R113: 1059489.45 | S113: 20700 | T113: 239411.7647 | U113: 1005311.765 | V113: -54177.68529 | W113: -5.389142672
A114: 2 | B114: CZ071 | C114: Olomoucký | D114: 102591377 | E114: 600120473 | F114: Obec Horní Štěpánov | G114: ZŠ | H114: 1.st | I114: 37 | J114: 0 | K114: 0 | L114: 0 | M114: 0 | N114: 0 | O114: 3 | P114: 0 | Q114: 20174 | R114: 1007691.3 | S114: 20700 | T114: 239411.7647 | U114: 1005311.765 | V114: -2379.535294 | W114: -0.2366962546
A115: 7 | B115: CZ042 | C115: Ústecký | D115: 110150651 | E115: 610150502 | F115: Ústecký kraj | G115: ZŠ | H115: 1.st | I115: 37 | J115: 37 | K115: 7 | L115: 7 | M115: 30 | N115: 30 | O115: 4 | P115: 4 | Q115: 24193 | R115: 1208440.35 | S115: 20700 | T115: 239411.7647 | U115: 1005311.765 | V115: -203128.5853 | W115: -20.2055315
A116: 2 | B116: CZ020 | C116: Středočeský | D116: 114001421 | E116: 600054446 | F116: Obec Hvožďany | G116: ZŠ | H116: 1.st | I116: 38 | J116: 0 | K116: 0 | L116: 0 | M116: 0 | N116: 0 | O116: 3 | P116: 0 | Q116: 20757.92277 | R116: 1064881.438 | S116: 20700 | T116: 245882.3529 | U116: 1032482.353 | V116: -32399.08514 | W116: -3.137979555
A117: 2 | B117: CZ051 | C117: Liberecký | D117: 102442908 | E117: 600099199 | F117: Obec Poniklá | G117: ZŠ | H117: 1.st | I117: 38 | J117: 0 | K117: 0 | L117: 0 | M117: 1 | N117: 0 | O117: 2 | P117: 0 | Q117: 22414.71074 | R117: 1149874.661 | S117: 20700 | T117: 245882.3529 | U117: 1032482.353 | V117: -117392.3082 | W117: -11.36990941
A118: 2 | B118: CZ063 | C118: Vysočina | D118: 102943214 | E118: 600130258 | F118: Městys Strážek | G118: ZŠ | H118: 1.st | I118: 38 | J118: 0 | K118: 1 | L118: 0 | M118: 3 | N118: 0 | O118: 3 | P118: 0 | Q118: 21041 | R118: 1079403.3 | S118: 20700 | T118: 245882.3529 | U118: 1032482.353 | V118: -46920.94706 | W118: -4.544479325
A119: 2 | B119: CZ064 | C119: Jihomoravský | D119: 102067481 | E119: 600108635 | F119: Statutární město Brno, Městská část Brno-Tuřany | G119: ZŠ | H119: 1.st | I119: 38 | J119: 0 | K119: 0 | L119: 0 | M119: 1 | N119: 0 | O119: 2 | P119: 0 | Q119: 21211 | R119: 1088124.3 | S119: 20700 | T119: 245882.3529 | U119: 1032482.353 | V119: -55641.94706 | W119: -5.389142672
A120: 2 | B120: CZ064 | C120: Jihomoravský | D120: 102855480 | E120: 600127516 | F120: Obec Želetice | G120: ZŠ | H120: 1.st | I120: 38 | J120: 0 | K120: 0 | L120: 0 | M120: 0 | N120: 0 | O120: 3 | P120: 0 | Q120: 21211 | R120: 1088124.3 | S120: 20700 | T120: 245882.3529 | U120: 1032482.353 | V120: -55641.94706 | W120: -5.389142672
A121: 2 | B121: CZ064 | C121: Jihomoravský | D121: 102855684 | E121: 600127591 | F121: Obec Lubnice | G121: ZŠ | H121: 1.st | I121: 38 | J121: 0 | K121: 0 | L121: 0 | M121: 0 | N121: 0 | O121: 3 | P121: 0 | Q121: 21211 | R121: 1088124.3 | S121: 20700 | T121: 245882.3529 | U121: 1032482.353 | V121: -55641.94706 | W121: -5.389142672
A122: 7 | B122: CZ031 | C122: Jihočeský | D122: 110028350 | E122: 600022242 | F122: Jihočeský kraj | G122: ZŠ | H122: 1.st | I122: 38 | J122: 38 | K122: 0 | L122: 0 | M122: 38 | N122: 38 | O122: 4 | P122: 4 | Q122: 20235 | R122: 1038055.5 | S122: 20700 | T122: 245882.3529 | U122: 1032482.353 | V122: -5573.147059 | W122: -0.539781338
A123: 2 | B123: CZ020 | C123: Středočeský | D123: 102226997 | E123: 600046486 | F123: Obec Žleby | G123: ZŠ | H123: 1.st | I123: 39 | J123: 0 | K123: 0 | L123: 0 | M123: 1 | N123: 0 | O123: 3 | P123: 0 | Q123: 20757.92277 | R123: 1092904.634 | S123: 20700 | T123: 252352.9412 | U123: 1059652.941 | V123: -33251.69265 | W123: -3.137979555
A124: 2 | B124: CZ020 | C124: Středočeský | D124: 102602379 | E124: 600055868 | F124: Obec Slabce | G124: ZŠ | H124: 1.st | I124: 39 | J124: 0 | K124: 0 | L124: 0 | M124: 5 | N124: 0 | O124: 2 | P124: 0 | Q124: 20757.92277 | R124: 1092904.634 | S124: 20700 | T124: 252352.9412 | U124: 1059652.941 | V124: -33251.69265 | W124: -3.137979555
A125: 2 | B125: CZ020 | C125: Středočeský | D125: 114001570 | E125: 600054811 | F125: Obec Klučenice | G125: ZŠ | H125: 1.st | I125: 39 | J125: 0 | K125: 2 | L125: 0 | M125: 0 | N125: 0 | O125: 3 | P125: 0 | Q125: 20757.92277 | R125: 1092904.634 | S125: 20700 | T125: 252352.9412 | U125: 1059652.941 | V125: -33251.69265 | W125: -3.137979555
A126: 2 | B126: CZ051 | C126: Liberecký | D126: 102229317 | E126: 600080056 | F126: Obec Kobyly | G126: ZŠ | H126: 1.st | I126: 39 | J126: 0 | K126: 1 | L126: 0 | M126: 4 | N126: 0 | O126: 2 | P126: 0 | Q126: 22414.71074 | R126: 1180134.521 | S126: 20700 | T126: 252352.9412 | U126: 1059652.941 | V126: -120481.5795 | W126: -11.36990941
A127: 2 | B127: CZ053 | C127: Pardubický | D127: 002506840 | E127: 650051742 | F127: Obec Chornice | G127: ZŠ | H127: 1.st | I127: 39 | J127: 0 | K127: 0 | L127: 0 | M127: 0 | N127: 0 | O127: 3 | P127: 0 | Q127: 20464 | R127: 1077429.6 | S127: 20700 | T127: 252352.9412 | U127: 1059652.941 | V127: -17776.65882 | W127: -1.677592553
A128: 2 | B128: CZ053 | C128: Pardubický | D128: 102142211 | E128: 650022181 | F128: Městys Včelákov | G128: ZŠ | H128: 1.st | I128: 39 | J128: 0 | K128: 0 | L128: 0 | M128: 0 | N128: 0 | O128: 3 | P128: 0 | Q128: 20464 | R128: 1077429.6 | S128: 20700 | T128: 252352.9412 | U128: 1059652.941 | V128: -17776.65882 | W128: -1.677592553
A129: 2 | B129: CZ053 | C129: Pardubický | D129: 102642541 | E129: 600104681 | F129: Obec Sopotnice | G129: ZŠ | H129: 1.st | I129: 39 | J129: 0 | K129: 0 | L129: 0 | M129: 0 | N129: 0 | O129: 3 | P129: 0 | Q129: 20464 | R129: 1077429.6 | S129: 20700 | T129: 252352.9412 | U129: 1059652.941 | V129: -17776.65882 | W129: -1.677592553
A130: 2 | B130: CZ053 | C130: Pardubický | D130: 102654000 | E130: 600104800 | F130: Obec Horní Čermná | G130: ZŠ | H130: 1.st | I130: 39 | J130: 0 | K130: 0 | L130: 0 | M130: 0 | N130: 0 | O130: 3 | P130: 0 | Q130: 20464 | R130: 1077429.6 | S130: 20700 | T130: 252352.9412 | U130: 1059652.941 | V130: -17776.65882 | W130: -1.677592553
A131: 2 | B131: CZ063 | C131: Vysočina | D131: 102006318 | E131: 600087042 | F131: Obec Lipnice nad Sázavou | G131: ZŠ | H131: 1.st | I131: 39 | J131: 0 | K131: 1 | L131: 0 | M131: 2 | N131: 0 | O131: 3 | P131: 0 | Q131: 21041 | R131: 1107808.65 | S131: 20700 | T131: 252352.9412 | U131: 1059652.941 | V131: -48155.70882 | W131: -4.544479325
A132: 2 | B132: CZ063 | C132: Vysočina | D132: 150013078 | E132: 650013051 | F132: Obec Hořepník | G132: ZŠ | H132: 1.st | I132: 39 | J132: 0 | K132: 0 | L132: 0 | M132: 1 | N132: 0 | O132: 3 | P132: 0 | Q132: 21041 | R132: 1107808.65 | S132: 20700 | T132: 252352.9412 | U132: 1059652.941 | V132: -48155.70882 | W132: -4.544479325
A133: 2 | B133: CZ071 | C133: Olomoucký | D133: 102320471 | E133: 600140725 | F133: Obec Pňovice | G133: ZŠ | H133: 1.st | I133: 39 | J133: 0 | K133: 0 | L133: 0 | M133: 0 | N133: 0 | O133: 3 | P133: 0 | Q133: 20174 | R133: 1062161.1 | S133: 20700 | T133: 252352.9412 | U133: 1059652.941 | V133: -2508.158824 | W133: -0.2366962546
A134: 7 | B134: CZ064 | C134: Jihomoravský | D134: 044993668 | E134: 600025098 | F134: Jihomoravský kraj | G134: ZŠ | H134: 1.st | I134: 39 | J134: 39 | K134: 0 | L134: 0 | M134: 36 | N134: 36 | O134: 4 | P134: 4 | Q134: 21211 | R134: 1116759.15 | S134: 20700 | T134: 252352.9412 | U134: 1059652.941 | V134: -57106.20882 | W134: -5.389142672
A135: 2 | B135: CZ031 | C135: Jihočeský | D135: 107720400 | E135: 650025121 | F135: Obec Chrášťany | G135: ZŠ | H135: 1.st | I135: 40 | J135: 0 | K135: 0 | L135: 0 | M135: 0 | N135: 0 | O135: 2 | P135: 0 | Q135: 20235 | R135: 1092690 | S135: 20700 | T135: 258823.5294 | U135: 1086823.529 | V135: -5866.470588 | W135: -0.539781338
A136: 2 | B136: CZ051 | C136: Liberecký | D136: 102005214 | E136: 600074722 | F136: Město Cvikov | G136: ZŠ | H136: 1.st | I136: 40 | J136: 0 | K136: 0 | L136: 0 | M136: 1 | N136: 0 | O136: 2 | P136: 0 | Q136: 22414.71074 | R136: 1210394.38 | S136: 20700 | T136: 258823.5294 | U136: 1086823.529 | V136: -123570.8508 | W136: -11.36990941
A137: 2 | B137: CZ052 | C137: Královéhradecký | D137: 049290266 | E137: 600101975 | F137: Obec Horní Maršov | G137: ZŠ | H137: 1.st | I137: 40 | J137: 0 | K137: 0 | L137: 0 | M137: 2 | N137: 0 | O137: 3 | P137: 0 | Q137: 20630.62 | R137: 1114053.48 | S137: 20700 | T137: 258823.5294 | U137: 1086823.529 | V137: -27229.95059 | W137: -2.505462005
A138: 2 | B138: CZ064 | C138: Jihomoravský | D138: 102391521 | E138: 600115984 | F138: Obec Nenkovice | G138: ZŠ | H138: 1.st | I138: 40 | J138: 0 | K138: 1 | L138: 0 | M138: 2 | N138: 0 | O138: 3 | P138: 0 | Q138: 21211 | R138: 1145394 | S138: 20700 | T138: 258823.5294 | U138: 1086823.529 | V138: -58570.47059 | W138: -5.389142672
A139: 2 | B139: CZ080 | C139: Moravskoslezský | D139: 102008353 | E139: 600131831 | F139: Obec Holčovice | G139: ZŠ | H139: 1.st | I139: 40 | J139: 0 | K139: 0 | L139: 0 | M139: 9 | N139: 0 | O139: 3 | P139: 0 | Q139: 27031.79825 | R139: 1459717.105 | S139: 20700 | T139: 258823.5294 | U139: 1086823.529 | V139: -372893.5759 | W139: -34.31040696
A140: 2 | B140: CZ032 | C140: Plzeňský | D140: 102328315 | E140: 650033370 | F140: Obec Kozojedy | G140: ZŠ | H140: 1.st | I140: 41 | J140: 0 | K140: 0 | L140: 0 | M140: 0 | N140: 0 | O140: 3 | P140: 0 | Q140: 22287 | R140: 1233585.45 | S140: 20700 | T140: 265294.1176 | U140: 1113994.118 | V140: -119591.3324 | W140: -10.7353648
A141: 2 | B141: CZ052 | C141: Královéhradecký | D141: 102390746 | E141: 650060997 | F141: Obec Voděrady | G141: ZŠ | H141: 1.st | I141: 41 | J141: 0 | K141: 0 | L141: 0 | M141: 3 | N141: 0 | O141: 3 | P141: 0 | Q141: 20630.62 | R141: 1141904.817 | S141: 20700 | T141: 265294.1176 | U141: 1113994.118 | V141: -27910.69935 | W141: -2.505462005
A142: 7 | B142: CZ010 | C142: Praha | D142: 060461969 | E142: 600021092 | F142: Hlavní město Praha | G142: ZŠ | H142: 1.st | I142: 41 | J142: 41 | K142: 7 | L142: 7 | M142: 34 | N142: 34 | O142: 4 | P142: 4 | Q142: 20323.23232 | R142: 1124890.909 | S142: 20700 | T142: 265294.1176 | U142: 1113994.118 | V142: -10896.79144 | W142: -0.9781731583
A143: 2 | B143: CZ052 | C143: Královéhradecký | D143: 102254991 | E143: 650063112 | F143: Obec Chvalkovice | G143: ZŠ | H143: 1.st | I143: 42 | J143: 0 | K143: 0 | L143: 0 | M143: 2 | N143: 0 | O143: 3 | P143: 0 | Q143: 20630.62 | R143: 1169756.154 | S143: 20700 | T143: 271764.7059 | U143: 1141164.706 | V143: -28591.44812 | W143: -2.505462005
A144: 2 | B144: CZ052 | C144: Královéhradecký | D144: 108026485 | E144: 600102572 | F144: Město Trutnov | G144: ZŠ | H144: 1.st | I144: 42 | J144: 42 | K144: 0 | L144: 0 | M144: 42 | N144: 42 | O144: 5 | P144: 5 | Q144: 20630.62 | R144: 1169756.154 | S144: 20700 | T144: 271764.7059 | U144: 1141164.706 | V144: -28591.44812 | W144: -2.505462005
A145: 2 | B145: CZ053 | C145: Pardubický | D145: 102642532 | E145: 650053834 | F145: Městys Kunvald | G145: ZŠ | H145: 1.st | I145: 42 | J145: 0 | K145: 0 | L145: 0 | M145: 0 | N145: 0 | O145: 3 | P145: 0 | Q145: 20464 | R145: 1160308.8 | S145: 20700 | T145: 271764.7059 | U145: 1141164.706 | V145: -19144.09412 | W145: -1.677592553
A146: 2 | B146: CZ063 | C146: Vysočina | D146: 102655421 | E146: 600122051 | F146: Obec Budkov | G146: ZŠ | H146: 1.st | I146: 42 | J146: 0 | K146: 0 | L146: 0 | M146: 3 | N146: 0 | O146: 2 | P146: 0 | Q146: 21041 | R146: 1193024.7 | S146: 20700 | T146: 271764.7059 | U146: 1141164.706 | V146: -51859.99412 | W146: -4.544479325
A147: 2 | B147: CZ064 | C147: Jihomoravský | D147: 102191328 | E147: 600110524 | F147: Město Tišnov | G147: ZŠ | H147: 1.st | I147: 42 | J147: 0 | K147: 1 | L147: 0 | M147: 1 | N147: 0 | O147: 2 | P147: 0 | Q147: 21211 | R147: 1202663.7 | S147: 20700 | T147: 271764.7059 | U147: 1141164.706 | V147: -61498.99412 | W147: -5.389142672
A148: 2 | B148: CZ071 | C148: Olomoucký | D148: 102591318 | E148: 600120431 | F148: Obec Bohuslavice | G148: ZŠ | H148: 1.st | I148: 42 | J148: 0 | K148: 0 | L148: 0 | M148: 1 | N148: 0 | O148: 3 | P148: 0 | Q148: 20174 | R148: 1143865.8 | S148: 20700 | T148: 271764.7059 | U148: 1141164.706 | V148: -2701.094118 | W148: -0.2366962546
A149: 2 | B149: CZ080 | C149: Moravskoslezský | D149: 102168008 | E149: 600136515 | F149: Obec Horní Suchá | G149: ZŠ | H149: 1.st | I149: 42 | J149: 0 | K149: 0 | L149: 0 | M149: 1 | N149: 0 | O149: 2 | P149: 0 | Q149: 26868.77861 | R149: 1523459.747 | S149: 20700 | T149: 271764.7059 | U149: 1141164.706 | V149: -382295.0413 | W149: -33.5004263
A150: 7 | B150: CZ032 | C150: Plzeňský | D150: 102004463 | E150: 600022765 | F150: Plzeňský kraj | G150: ZŠ | H150: 1.st | I150: 42 | J150: 42 | K150: 2 | L150: 2 | M150: 40 | N150: 40 | O150: 6 | P150: 6 | Q150: 22287 | R150: 1263672.9 | S150: 20700 | T150: 271764.7059 | U150: 1141164.706 | V150: -122508.1941 | W150: -10.7353648
A151: 2 | B151: CZ031 | C151: Jihočeský | D151: 107722437 | E151: 650050738 | F151: Obec Záboří | G151: ZŠ | H151: 1.st | I151: 43 | J151: 0 | K151: 0 | L151: 0 | M151: 0 | N151: 0 | O151: 3 | P151: 0 | Q151: 20235 | R151: 1174641.75 | S151: 20700 | T151: 278235.2941 | U151: 1168335.294 | V151: -6306.455882 | W151: -0.539781338
A152: 2 | B152: CZ051 | C152: Liberecký | D152: 102177236 | E152: 600078591 | F152: Obec Josefův Důl | G152: ZŠ | H152: 1.st | I152: 43 | J152: 0 | K152: 1 | L152: 0 | M152: 0 | N152: 0 | O152: 3 | P152: 0 | Q152: 22414.71074 | R152: 1301173.959 | S152: 20700 | T152: 278235.2941 | U152: 1168335.294 | V152: -132838.6646 | W152: -11.36990941
A153: 2 | B153: CZ053 | C153: Pardubický | D153: 002506637 | E153: 600100464 | F153: Obec Trstěnice | G153: ZŠ | H153: 1.st | I153: 43 | J153: 0 | K153: 0 | L153: 0 | M153: 1 | N153: 0 | O153: 3 | P153: 0 | Q153: 20464 | R153: 1187935.2 | S153: 20700 | T153: 278235.2941 | U153: 1168335.294 | V153: -19599.90588 | W153: -1.677592553
A154: 2 | B154: CZ064 | C154: Jihomoravský | D154: 102391408 | E154: 600115925 | F154: Obec Kuželov | G154: ZŠ | H154: 1.st | I154: 43 | J154: 0 | K154: 0 | L154: 0 | M154: 0 | N154: 0 | O154: 4 | P154: 0 | Q154: 21211 | R154: 1231298.55 | S154: 20700 | T154: 278235.2941 | U154: 1168335.294 | V154: -62963.25588 | W154: -5.389142672
A155: 7 | B155: CZ032 | C155: Plzeňský | D155: 151003513 | E155: 600022943 | F155: Plzeňský kraj | G155: ZŠ | H155: 1.st | I155: 43 | J155: 43 | K155: 1 | L155: 1 | M155: 42 | N155: 42 | O155: 5 | P155: 5 | Q155: 22287 | R155: 1293760.35 | S155: 20700 | T155: 278235.2941 | U155: 1168335.294 | V155: -125425.0559 | W155: -10.7353648
A156: 2 | B156: CZ010 | C156: Praha | D156: 060436140 | E156: 600035263 | F156: Městská část Praha 1 | G156: ZŠ | H156: 1.st | I156: 44 | J156: 0 | K156: 0 | L156: 0 | M156: 0 | N156: 0 | O156: 2 | P156: 0 | Q156: 20323.23232 | R156: 1207200 | S156: 20700 | T156: 284705.8824 | U156: 1195505.882 | V156: -11694.11765 | W156: -0.9781731583
A157: 2 | B157: CZ031 | C157: Jihočeský | D157: 060062011 | E157: 600064646 | F157: Obec Sudoměřice u Bechyně | G157: ZŠ | H157: 1.st | I157: 44 | J157: 0 | K157: 1 | L157: 0 | M157: 1 | N157: 0 | O157: 2 | P157: 0 | Q157: 20235 | R157: 1201959 | S157: 20700 | T157: 284705.8824 | U157: 1195505.882 | V157: -6453.117647 | W157: -0.539781338
A158: 2 | B158: CZ031 | C158: Jihočeský | D158: 107721058 | E158: 600060381 | F158: Obec Český Rudolec | G158: ZŠ | H158: 1.st | I158: 44 | J158: 0 | K158: 0 | L158: 0 | M158: 4 | N158: 0 | O158: 3 | P158: 0 | Q158: 20235 | R158: 1201959 | S158: 20700 | T158: 284705.8824 | U158: 1195505.882 | V158: -6453.117647 | W158: -0.539781338
A159: 2 | B159: CZ042 | C159: Ústecký | D159: 116700866 | E159: 600083659 | F159: Město Hora Svaté Kateřiny | G159: ZŠ | H159: 1.st | I159: 44 | J159: 0 | K159: 0 | L159: 0 | M159: 2 | N159: 0 | O159: 5 | P159: 0 | Q159: 24193 | R159: 1437064.2 | S159: 20700 | T159: 284705.8824 | U159: 1195505.882 | V159: -241558.3176 | W159: -20.2055315
A160: 2 | B160: CZ051 | C160: Liberecký | D160: 102005389 | E160: 600074749 | F160: Obec Horní Police | G160: ZŠ | H160: 1.st | I160: 44 | J160: 0 | K160: 0 | L160: 0 | M160: 2 | N160: 0 | O160: 3 | P160: 0 | Q160: 22414.71074 | R160: 1331433.818 | S160: 20700 | T160: 284705.8824 | U160: 1195505.882 | V160: -135927.9358 | W160: -11.36990941
A161: 2 | B161: CZ064 | C161: Jihomoravský | D161: 102179883 | E161: 600111016 | F161: Obec Ostrovačice | G161: ZŠ | H161: 1.st | I161: 44 | J161: 0 | K161: 1 | L161: 0 | M161: 0 | N161: 0 | O161: 3 | P161: 0 | Q161: 21211 | R161: 1259933.4 | S161: 20700 | T161: 284705.8824 | U161: 1195505.882 | V161: -64427.51765 | W161: -5.389142672
A162: 2 | B162: CZ072 | C162: Zlínský | D162: 102319278 | E162: 600114473 | F162: Město Slavičín | G162: ZŠ | H162: 1.st | I162: 44 | J162: 0 | K162: 0 | L162: 0 | M162: 1 | N162: 0 | O162: 2 | P162: 0 | Q162: 22290 | R162: 1324026 | S162: 20700 | T162: 284705.8824 | U162: 1195505.882 | V162: -128520.1176 | W162: -10.75027062
A163: 2 | B163: CZ020 | C163: Středočeský | D163: 102602085 | E163: 600055787 | F163: Městys Křivoklát | G163: ZŠ | H163: 1.st | I163: 45 | J163: 0 | K163: 0 | L163: 0 | M163: 0 | N163: 0 | O163: 3 | P163: 0 | Q163: 20757.92277 | R163: 1261043.808 | S163: 20700 | T163: 291176.4706 | U163: 1222676.471 | V163: -38367.33767 | W163: -3.137979555
A164: 2 | B164: CZ053 | C164: Pardubický | D164: 002506530 | E164: 650056035 | F164: Obec Křenov | G164: ZŠ | H164: 1.st | I164: 45 | J164: 0 | K164: 2 | L164: 0 | M164: 0 | N164: 0 | O164: 3 | P164: 0 | Q164: 20464 | R164: 1243188 | S164: 20700 | T164: 291176.4706 | U164: 1222676.471 | V164: -20511.52941 | W164: -1.677592553
A165: 2 | B165: CZ063 | C165: Vysočina | D165: 102006733 | E165: 600087000 | F165: Obec Šlapanov | G165: ZŠ | H165: 1.st | I165: 45 | J165: 0 | K165: 1 | L165: 0 | M165: 0 | N165: 0 | O165: 2 | P165: 0 | Q165: 21041 | R165: 1278240.75 | S165: 20700 | T165: 291176.4706 | U165: 1222676.471 | V165: -55564.27941 | W165: -4.544479325
A166: 2 | B166: CZ064 | C166: Jihomoravský | D166: 102179921 | E166: 600110486 | F166: Město Dolní Kounice | G166: ZŠ | H166: 1.st | I166: 45 | J166: 0 | K166: 0 | L166: 0 | M166: 1 | N166: 0 | O166: 2 | P166: 0 | Q166: 21211 | R166: 1288568.25 | S166: 20700 | T166: 291176.4706 | U166: 1222676.471 | V166: -65891.77941 | W166: -5.389142672
A167: 7 | B167: CZ071 | C167: Olomoucký | D167: 102320527 | E167: 650028902 | F167: Olomoucký kraj | G167: ZŠ | H167: 1.st | I167: 45 | J167: 0 | K167: 0 | L167: 0 | M167: 1 | N167: 0 | O167: 3 | P167: 0 | Q167: 20174 | R167: 1225570.5 | S167: 20700 | T167: 291176.4706 | U167: 1222676.471 | V167: -2894.029412 | W167: -0.2366962546
A168: 2 | B168: CZ020 | C168: Středočeský | D168: 102102414 | E168: 600044386 | F168: Obec Klobuky | G168: ZŠ | H168: 1.st | I168: 46 | J168: 0 | K168: 1 | L168: 0 | M168: 11 | N168: 0 | O168: 3 | P168: 0 | Q168: 20757.92277 | R168: 1289067.004 | S168: 20700 | T168: 297647.0588 | U168: 1249847.059 | V168: -39219.94517 | W168: -3.137979555
A169: 2 | B169: CZ020 | C169: Středočeský | D169: 102226598 | E169: 600046389 | F169: Městys Kácov | G169: ZŠ | H169: 1.st | I169: 46 | J169: 0 | K169: 1 | L169: 0 | M169: 4 | N169: 0 | O169: 5 | P169: 0 | Q169: 20757.92277 | R169: 1289067.004 | S169: 20700 | T169: 297647.0588 | U169: 1249847.059 | V169: -39219.94517 | W169: -3.137979555
A170: 2 | B170: CZ042 | C170: Ústecký | D170: 102517509 | E170: 600085783 | F170: Obec Tisá | G170: ZŠ | H170: 1.st | I170: 46 | J170: 0 | K170: 0 | L170: 0 | M170: 8 | N170: 0 | O170: 3 | P170: 0 | Q170: 24193 | R170: 1502385.3 | S170: 20700 | T170: 297647.0588 | U170: 1249847.059 | V170: -252538.2412 | W170: -20.2055315
A171: 2 | B171: CZ051 | C171: Liberecký | D171: 102005494 | E171: 600074935 | F171: Město Mimoň | G171: ZŠ | H171: 1.st | I171: 46 | J171: 0 | K171: 0 | L171: 0 | M171: 1 | N171: 0 | O171: 2 | P171: 0 | Q171: 22414.71074 | R171: 1391953.537 | S171: 20700 | T171: 297647.0588 | U171: 1249847.059 | V171: -142106.4784 | W171: -11.36990941
A172: 2 | B172: CZ063 | C172: Vysočina | D172: 102006571 | E172: 600086763 | F172: Obec Vilémov | G172: ZŠ | H172: 1.st | I172: 46 | J172: 0 | K172: 0 | L172: 0 | M172: 10 | N172: 0 | O172: 3 | P172: 0 | Q172: 21041 | R172: 1306646.1 | S172: 20700 | T172: 297647.0588 | U172: 1249847.059 | V172: -56799.04118 | W172: -4.544479325
A173: 2 | B173: CZ063 | C173: Vysočina | D173: 107721619 | E173: 600061523 | F173: Obec Želiv | G173: ZŠ | H173: 1.st | I173: 46 | J173: 0 | K173: 0 | L173: 0 | M173: 3 | N173: 0 | O173: 3 | P173: 0 | Q173: 21041 | R173: 1306646.1 | S173: 20700 | T173: 297647.0588 | U173: 1249847.059 | V173: -56799.04118 | W173: -4.544479325
A174: 2 | B174: CZ031 | C174: Jihočeský | D174: 107722267 | E174: 650039564 | F174: Obec Bělčice | G174: ZŠ | H174: 1.st | I174: 47 | J174: 0 | K174: 0 | L174: 0 | M174: 1 | N174: 0 | O174: 3 | P174: 0 | Q174: 20235 | R174: 1283910.75 | S174: 20700 | T174: 304117.6471 | U174: 1277017.647 | V174: -6893.102941 | W174: -0.539781338
A175: 2 | B175: CZ052 | C175: Královéhradecký | D175: 102390657 | E175: 600097471 | F175: Obec Dobré | G175: ZŠ | H175: 1.st | I175: 47 | J175: 0 | K175: 0 | L175: 0 | M175: 14 | N175: 0 | O175: 3 | P175: 0 | Q175: 20630.62 | R175: 1309012.839 | S175: 20700 | T175: 304117.6471 | U175: 1277017.647 | V175: -31995.19194 | W175: -2.505462005
A176: 2 | B176: CZ064 | C176: Jihomoravský | D176: 102855625 | E176: 600127575 | F176: Obec Jaroslavice | G176: ZŠ | H176: 1.st | I176: 47 | J176: 0 | K176: 0 | L176: 0 | M176: 1 | N176: 0 | O176: 3 | P176: 0 | Q176: 21211 | R176: 1345837.95 | S176: 20700 | T176: 304117.6471 | U176: 1277017.647 | V176: -68820.30294 | W176: -5.389142672
A177: 2 | B177: CZ032 | C177: Plzeňský | D177: 102328196 | E177: 600071278 | F177: Obec Blatnice | G177: ZŠ | H177: 1.st | I177: 48 | J177: 0 | K177: 0 | L177: 0 | M177: 0 | N177: 0 | O177: 2 | P177: 0 | Q177: 22287 | R177: 1444197.6 | S177: 20700 | T177: 310588.2353 | U177: 1304188.235 | V177: -140009.3647 | W177: -10.7353648
A178: 2 | B178: CZ032 | C178: Plzeňský | D178: 102328480 | E178: 650032063 | F178: Obec Pernarec | G178: ZŠ | H178: 1.st | I178: 48 | J178: 0 | K178: 0 | L178: 0 | M178: 0 | N178: 0 | O178: 3 | P178: 0 | Q178: 22287 | R178: 1444197.6 | S178: 20700 | T178: 310588.2353 | U178: 1304188.235 | V178: -140009.3647 | W178: -10.7353648
A179: 2 | B179: CZ042 | C179: Ústecký | D179: 061357324 | E179: 600082911 | F179: Obec Krásný Dvůr | G179: ZŠ | H179: 1.st | I179: 48 | J179: 0 | K179: 0 | L179: 0 | M179: 4 | N179: 0 | O179: 3 | P179: 0 | Q179: 24193 | R179: 1567706.4 | S179: 20700 | T179: 310588.2353 | U179: 1304188.235 | V179: -263518.1647 | W179: -20.2055315
A180: 2 | B180: CZ053 | C180: Pardubický | D180: 002506653 | E180: 600100472 | F180: Obec Vítějeves | G180: ZŠ | H180: 1.st | I180: 48 | J180: 0 | K180: 1 | L180: 0 | M180: 0 | N180: 0 | O180: 3 | P180: 0 | Q180: 20464 | R180: 1326067.2 | S180: 20700 | T180: 310588.2353 | U180: 1304188.235 | V180: -21878.96471 | W180: -1.677592553
A181: 2 | B181: CZ063 | C181: Vysočina | D181: 102655499 | E181: 600122115 | F181: Obec Čáslavice | G181: ZŠ | H181: 1.st | I181: 48 | J181: 0 | K181: 0 | L181: 0 | M181: 0 | N181: 0 | O181: 2 | P181: 0 | Q181: 21041 | R181: 1363456.8 | S181: 20700 | T181: 310588.2353 | U181: 1304188.235 | V181: -59268.56471 | W181: -4.544479325
A182: 2 | B182: CZ064 | C182: Jihomoravský | D182: 048512184 | E182: 600108384 | F182: Statutární město Brno, Městská část Brno-sever | G182: ZŠ | H182: 1.st | I182: 48 | J182: 0 | K182: 1 | L182: 0 | M182: 1 | N182: 0 | O182: 3 | P182: 0 | Q182: 21211 | R182: 1374472.8 | S182: 20700 | T182: 310588.2353 | U182: 1304188.235 | V182: -70284.56471 | W182: -5.389142672
A183: 7 | B183: CZ051 | C183: Liberecký | D183: 102177490 | E183: 600023389 | F183: Liberecký kraj | G183: ZŠ | H183: 1.st | I183: 48 | J183: 48 | K183: 4 | L183: 4 | M183: 44 | N183: 44 | O183: 7 | P183: 7 | Q183: 22414.71074 | R183: 1452473.256 | S183: 20700 | T183: 310588.2353 | U183: 1304188.235 | V183: -148285.0209 | W183: -11.36990941
A184: 2 | B184: CZ020 | C184: Středočeský | D184: 102438552 | E184: 600052290 | F184: Město Říčany | G184: ZŠ | H184: 1.st | I184: 49 | J184: 0 | K184: 0 | L184: 0 | M184: 0 | N184: 0 | O184: 2 | P184: 0 | Q184: 20757.92277 | R184: 1373136.591 | S184: 20700 | T184: 317058.8235 | U184: 1331358.824 | V184: -41777.76768 | W184: -3.137979555
A185: 2 | B185: CZ020 | C185: Středočeský | D185: 114001448 | E185: 600054454 | F185: Obec Nalžovice | G185: ZŠ | H185: 1.st | I185: 49 | J185: 0 | K185: 0 | L185: 0 | M185: 0 | N185: 0 | O185: 3 | P185: 0 | Q185: 20757.92277 | R185: 1373136.591 | S185: 20700 | T185: 317058.8235 | U185: 1331358.824 | V185: -41777.76768 | W185: -3.137979555
A186: 2 | B186: CZ031 | C186: Jihočeský | D186: 047255897 | E186: 600063721 | F186: Město Strakonice | G186: ZŠ | H186: 1.st | I186: 49 | J186: 0 | K186: 0 | L186: 0 | M186: 5 | N186: 0 | O186: 2 | P186: 0 | Q186: 20235 | R186: 1338545.25 | S186: 20700 | T186: 317058.8235 | U186: 1331358.824 | V186: -7186.426471 | W186: -0.539781338
A187: 2 | B187: CZ031 | C187: Jihočeský | D187: 108053768 | E187: 600062040 | F187: Obec Chyšky | G187: ZŠ | H187: 1.st | I187: 49 | J187: 0 | K187: 0 | L187: 0 | M187: 0 | N187: 0 | O187: 5 | P187: 0 | Q187: 20235 | R187: 1338545.25 | S187: 20700 | T187: 317058.8235 | U187: 1331358.824 | V187: -7186.426471 | W187: -0.539781338
A188: 2 | B188: CZ064 | C188: Jihomoravský | D188: 102255202 | E188: 600112349 | F188: Obec Dolní Věstonice | G188: ZŠ | H188: 1.st | I188: 49 | J188: 0 | K188: 0 | L188: 0 | M188: 0 | N188: 0 | O188: 5 | P188: 0 | Q188: 21211 | R188: 1403107.65 | S188: 20700 | T188: 317058.8235 | U188: 1331358.824 | V188: -71748.82647 | W188: -5.389142672
A189: 2 | B189: CZ064 | C189: Jihomoravský | D189: 102855838 | E189: 600127681 | F189: Městys Vémyslice | G189: ZŠ | H189: 1.st | I189: 49 | J189: 0 | K189: 0 | L189: 0 | M189: 5 | N189: 0 | O189: 3 | P189: 0 | Q189: 21211 | R189: 1403107.65 | S189: 20700 | T189: 317058.8235 | U189: 1331358.824 | V189: -71748.82647 | W189: -5.389142672
A190: 2 | B190: CZ080 | C190: Moravskoslezský | D190: 102156646 | E190: 600136345 | F190: Město Bohumín | G190: ZŠ | H190: 1.st | I190: 49 | J190: 3 | K190: 1 | L190: 0 | M190: 8 | N190: 3 | O190: 3 | P190: 0 | Q190: 26269.21335 | R190: 1737708.463 | S190: 20700 | T190: 317058.8235 | U190: 1331358.824 | V190: -406349.6397 | W190: -30.52142161
A191: 2 | B191: CZ020 | C191: Středočeský | D191: 102002703 | E191: 600042189 | F191: Městys Zdislavice | G191: ZŠ | H191: 1.st | I191: 50 | J191: 0 | K191: 0 | L191: 0 | M191: 3 | N191: 0 | O191: 3 | P191: 0 | Q191: 20757.92277 | R191: 1401159.787 | S191: 20700 | T191: 323529.4118 | U191: 1358529.412 | V191: -42630.37519 | W191: -3.137979555
A192: 2 | B192: CZ020 | C192: Středočeský | D192: 102274967 | E192: 600047679 | F192: Město Liběchov | G192: ZŠ | H192: 1.st | I192: 50 | J192: 0 | K192: 0 | L192: 0 | M192: 0 | N192: 0 | O192: 5 | P192: 0 | Q192: 20757.92277 | R192: 1401159.787 | S192: 20700 | T192: 323529.4118 | U192: 1358529.412 | V192: -42630.37519 | W192: -3.137979555
A193: 2 | B193: CZ052 | C193: Královéhradecký | D193: 102390681 | E193: 650064062 | F193: Obec Lhoty u Potštejna | G193: ZŠ | H193: 1.st | I193: 50 | J193: 0 | K193: 0 | L193: 0 | M193: 11 | N193: 0 | O193: 3 | P193: 0 | Q193: 20630.62 | R193: 1392566.85 | S193: 20700 | T193: 323529.4118 | U193: 1358529.412 | V193: -34037.43824 | W193: -2.505462005
A194: 2 | B194: CZ071 | C194: Olomoucký | D194: 102320195 | E194: 650028309 | F194: Obec Bouzov | G194: ZŠ | H194: 1.st | I194: 50 | J194: 0 | K194: 0 | L194: 0 | M194: 5 | N194: 0 | O194: 3 | P194: 0 | Q194: 20174 | R194: 1361745 | S194: 20700 | T194: 323529.4118 | U194: 1358529.412 | V194: -3215.588235 | W194: -0.2366962546
A195: 2 | B195: CZ080 | C195: Moravskoslezský | D195: 102008990 | E195: 600132013 | F195: Obec Třemešná | G195: ZŠ | H195: 1.st | I195: 50 | J195: 0 | K195: 0 | L195: 0 | M195: 3 | N195: 0 | O195: 3 | P195: 0 | Q195: 26180.17699 | R195: 1767161.947 | S195: 20700 | T195: 323529.4118 | U195: 1358529.412 | V195: -408632.5351 | W195: -30.07903484
A196: 2 | B196: CZ080 | C196: Moravskoslezský | D196: 102092061 | E196: 600133982 | F196: Obec Morávka | G196: ZŠ | H196: 1.st | I196: 50 | J196: 0 | K196: 0 | L196: 0 | M196: 5 | N196: 0 | O196: 5 | P196: 0 | Q196: 26180.17699 | R196: 1767161.947 | S196: 20700 | T196: 323529.4118 | U196: 1358529.412 | V196: -408632.5351 | W196: -30.07903484
A197: 2 | B197: CZ080 | C197: Moravskoslezský | D197: 102432333 | E197: 600143228 | F197: Obec Chuchelná | G197: ZŠ | H197: 1.st | I197: 50 | J197: 0 | K197: 0 | L197: 0 | M197: 2 | N197: 0 | O197: 3 | P197: 0 | Q197: 26180.17699 | R197: 1767161.947 | S197: 20700 | T197: 323529.4118 | U197: 1358529.412 | V197: -408632.5351 | W197: -30.07903484
A198: 2 | B198: CZ031 | C198: Jihočeský | D198: 107721091 | E198: 650040953 | F198: Město Deštná | G198: ZŠ | H198: 1.st | I198: 51 | J198: 0 | K198: 0 | L198: 0 | M198: 2 | N198: 0 | O198: 5 | P198: 0 | Q198: 20235 | R198: 1393179.75 | S198: 20700 | T198: 330000 | U198: 1385700 | V198: -7479.75 | W198: -0.539781338
A199: 2 | B199: CZ042 | C199: Ústecký | D199: 102129592 | E199: 600077501 | F199: Obec Kovářská | G199: ZŠ | H199: 1.st | I199: 51 | J199: 0 | K199: 0 | L199: 0 | M199: 0 | N199: 0 | O199: 3 | P199: 0 | Q199: 24193 | R199: 1665688.05 | S199: 20700 | T199: 330000 | U199: 1385700 | V199: -279988.05 | W199: -20.2055315
A200: 2 | B200: CZ042 | C200: Ústecký | D200: 102317011 | E200: 600081702 | F200: Obec Ploskovice | G200: ZŠ | H200: 1.st | I200: 51 | J200: 0 | K200: 0 | L200: 0 | M200: 0 | N200: 0 | O200: 2 | P200: 0 | Q200: 24193 | R200: 1665688.05 | S200: 20700 | T200: 330000 | U200: 1385700 | V200: -279988.05 | W200: -20.2055315
... 2114 more rows

Sheet ZŠ_úplná_2.stupeň
A1: Porovnání výše prostředků přidělených prostřednictvím oborového normativu a doplňkové částky s výší prostředků přidělovaných podle krajských normativů 2012 pro 2. stupeň úplné ZŠ | S1: oborový normativ | U1: 28200 | Y1: Krok 1: vepiš novou hodnotu ON nebo doplňkové částky
S2: doplňková částka | U2: 900000
Y3: Krok 2:klikni na tlačítko
Q4: celkem | R4: =SUM(R7:R2358) -> 1.027825738e+10 | U4: =SUM(U7:U2358) -> 1.044135162e+10 | V4: =SUM(V7:V2358) -> 163094244.6 | W4: =V4/U4 -> 0.01562003182
A5: Škola | I5: Žáci, třídy | Q5: Krajské normativy 2012 | S5: Nový systém (vč.odvodů) | V5: Porovnání
I6: počet žáků | K6: počet žáků - postižení | O6: počet tříd
A7: ZRIZ | B7: NVUSC | C7: kraj | D7: IZO | E7: RED IZO | F7: Název zřizovatele | G7: škola | H7: stupeň | I7: celkem | J7: z toho ve spec.třídách | K7: těžké postižení | L7: z toho ve spec.třídách | M7: lehké a střední postižení | N7: z toho ve spec.třídách | O7: celkem | P7: spec. třídy | Q7: MP pedagogové | R7: Celkem na IZO (vč.odvodů) | S7: Oborový normativ | T7: Doplňková částka | U7: Celkem oborový normativ a doplňková částka na IZO | V7: Rozdíl na IZO | W7: Rozdíl na IZO v % | X7: poznámky | Y7: Počty škol podle změny v novém systému financování vůči financování prostřednictvím krajských normativů 2012 | Z7: počet škol, odloučených pracovišť | AA7: v %
A8: 2 | B8: CZ020 | C8: Středočeský | D8: 102086737 | E8: 600044165 | F8: Obec Koleč | G8: ZŠ | H8: 2.st | I8: 1 | J8: 0 | K8: 0 | L8: 0 | M8: 1 | N8: 0 | O8: 0 | P8: 0 | Q8: 32958.13953 | R8: 44493.48837 | S8: 28200 | T8: 13235.29412 | U8: 41435.29412 | V8: -3058.194254 | W8: -7.380650529 | X8: 1 běžná třída ve škole, 11 žáků, z toho 5 žáků postižených, 1 postižený žák na 2.stupni | Y8: nárůst o 15% a více | Z8: =COUNTIFS( $W$8:$W$2358,">=15" ) -> 0 | AA8: =100*Z8/2351 -> 0
A9: 2 | B9: CZ031 | C9: Jihočeský | D9: 107721902 | E9: 650042093 | F9: Městys Dub | G9: ZŠ | H9: 2.st | I9: 1 | J9: 0 | K9: 0 | L9: 0 | M9: 1 | N9: 0 | O9: 0 | P9: 0 | Q9: 32992 | R9: 44539.2 | S9: 28200 | T9: 13235.29412 | U9: 41435.29412 | V9: -3103.905882 | W9: -7.490971039 | X9: 2 běžné třídy ve škole, 20 žáků, z toho 5 žáků postižených, 1 postižený žák na 2.stupni | Y9: nárůst o 10 až 14,99% | Z9: =COUNTIFS( $W$8:$W$2358,">=10",$W$8:$W$2358,"<15") -> 9 | AA9: =100*Z9/2351 -> 0.3828158231
A10: 2 | B10: CZ041 | C10: Karlovarský | D10: 102516570 | E10: 600066461 | F10: Obec Nový Kostel | G10: ZŠ | H10: 2.st | I10: 1 | J10: 0 | K10: 1 | L10: 0 | M10: 0 | N10: 0 | O10: 1 | P10: 0 | Q10: 32511.01322 | R10: 43889.86784 | S10: 28200 | T10: 13235.29412 | U10: 41435.29412 | V10: -2454.573724 | W10: -5.923871849 | Y10: nárůst o 5 až 9,99% | Z10: =COUNTIFS( $W$8:$W$2358,">=5",$W$8:$W$2358,"<10") -> 269 | AA10: 11.4419396
A11: 7 | B11: CZ031 | C11: Jihočeský | D11: 110034571 | E11: 600028321 | F11: Jihočeský kraj | G11: ZŠ | H11: 2.st | I11: 3 | J11: 3 | K11: 0 | L11: 0 | M11: 3 | N11: 3 | O11: 0 | P11: 0 | Q11: 32992 | R11: 133617.6 | S11: 28200 | T11: 39705.88235 | U11: 124305.8824 | V11: -9311.717647 | W11: -7.490971039 | X11: 1 speciální třída ve škole, 8 žáků, z toho 3 žáci na 2.stupni | Y11: nárůst o 3 až 4,99% | Z11: =COUNTIFS( $W$8:$W$2358,">=3",$W$8:$W$2358,"<5") -> 431 | AA11: 18.33262442
A12: 2 | B12: CZ020 | C12: Středočeský | D12: 151016305 | E12: 600052273 | F12: Město Odolena Voda | G12: ZŠ | H12: 2.st | I12: 5 | J12: 5 | K12: 1 | L12: 1 | M12: 3 | N12: 3 | O12: 1 | P12: 1 | Q12: 32958.13953 | R12: 222467.4419 | S12: 28200 | T12: 66176.47059 | U12: 207176.4706 | V12: -15290.97127 | W12: -7.380650529 | Y12: nárůst o 1 až 2,99% | Z12: =COUNTIFS( $W$8:$W$2358,">=1",$W$8:$W$2358,"<3") -> 654 | AA12: 27.81794981
A13: 2 | B13: CZ042 | C13: Ústecký | D13: 102517606 | E13: 600085589 | F13: Obec Velké Březno | G13: ZŠ | H13: 2.st | I13: 5 | J13: 5 | K13: 0 | L13: 0 | M13: 5 | N13: 5 | O13: 1 | P13: 1 | Q13: 33601 | R13: 226806.75 | S13: 28200 | T13: 66176.47059 | U13: 207176.4706 | V13: -19630.27941 | W13: -9.475149063 | Y13: nárůst o 0,99% nebo pokles o 1% | Z13: =COUNTIFS( $W$8:$W$2358,">=-1",$W$8:$W$2358,"<1") -> 242 | AA13: 10.29349213
A14: 7 | B14: CZ052 | C14: Královéhradecký | D14: 151011541 | E14: 600023974 | F14: Královéhradecký kraj | G14: ZŠ | H14: 2.st | I14: 5 | J14: 5 | K14: 0 | L14: 0 | M14: 5 | N14: 5 | O14: 1 | P14: 1 | Q14: 30597.1 | R14: 206530.425 | S14: 28200 | T14: 66176.47059 | U14: 207176.4706 | V14: 646.0455882 | W14: 0.3118334753 | Y14: pokles o 1,01 až 3% | Z14: =COUNTIFS( $W$8:$W$2358,">=-3",$W$8:$W$2358,"<-1") -> 179 | AA14: 7.61378137
A15: 7 | B15: CZ072 | C15: Zlínský | D15: 102319626 | E15: 600025365 | F15: Zlínský kraj | G15: ZŠ | H15: 2.st | I15: 5 | J15: 5 | K15: 0 | L15: 0 | M15: 5 | N15: 5 | O15: 1 | P15: 1 | Q15: 32544 | R15: 219672 | S15: 28200 | T15: 66176.47059 | U15: 207176.4706 | V15: -12495.52941 | W15: -6.031345826 | Y15: pokles o 3,01 až 5% | Z15: =COUNTIFS( $W$8:$W$2358,">=-5",$W$8:$W$2358,"<-3") -> 86 | AA15: 3.658017865
A16: 7 | B16: CZ020 | C16: Středočeský | D16: 102114081 | E16: 600021581 | F16: Středočeský kraj | G16: ZŠ | H16: 2.st | I16: 6 | J16: 6 | K16: 1 | L16: 1 | M16: 5 | N16: 5 | O16: 1 | P16: 1 | Q16: 32958.13953 | R16: 266960.9302 | S16: 28200 | T16: 79411.76471 | U16: 248611.7647 | V16: -18349.16553 | W16: -7.380650529 | Y16: pokles o 5,01 až 10% | Z16: =COUNTIFS( $W$8:$W$2358,">=-10",$W$8:$W$2358,"<-5") -> 456 | AA16: 19.3960017
A17: 7 | B17: CZ032 | C17: Plzeňský | D17: 130005720 | E17: 600171515 | F17: Plzeňský kraj | G17: ZŠ | H17: 2.st | I17: 7 | J17: 7 | K17: 7 | L17: 7 | M17: 0 | N17: 0 | O17: 1 | P17: 1 | Q17: 33145 | R17: 313220.25 | S17: 28200 | T17: 92647.05882 | U17: 290047.0588 | V17: -23173.19118 | W17: -7.989459114 | Y17: pokles o 10,01 až 15% | Z17: =COUNTIFS( $W$8:$W$2358,">=-15",$W$8:$W$2358,"<-10") -> 25 | AA17: 1.063377286
A18: 7 | B18: CZ080 | C18: Moravskoslezský | D18: 108013421 | E18: 600026787 | F18: Moravskoslezský kraj | G18: ZŠ | H18: 2.st | I18: 7 | J18: 7 | K18: 1 | L18: 1 | M18: 6 | N18: 6 | O18: 1 | P18: 1 | Q18: 35051.65877 | R18: 331238.1754 | S18: 28200 | T18: 92647.05882 | U18: 290047.0588 | V18: -41191.11653 | W18: -14.20152878 | Y18: pokles o více než 15% | Z18: =COUNTIFS( $W$8:$W$2358,"<-15") -> 0 | AA18: 0
A19: 2 | B19: CZ053 | C19: Pardubický | D19: 117800996 | E19: 600100545 | F19: Město Jevíčko | G19: ZŠ | H19: 2.st | I19: 8 | J19: 8 | K19: 1 | L19: 1 | M19: 7 | N19: 7 | O19: 1 | P19: 1 | Q19: 32698 | R19: 353138.4 | S19: 28200 | T19: 105882.3529 | U19: 331482.3529 | V19: -21656.04706 | W19: -6.533091993 | Y19: celkem škol, odloučených pracovišť | Z19: =SUM(Z8:Z18) -> 2351 | AA19: 100
A20: 7 | B20: CZ031 | C20: Jihočeský | D20: 110400551 | E20: 610400533 | F20: Jihočeský kraj | G20: ZŠ | H20: 2.st | I20: 8 | J20: 8 | K20: 0 | L20: 0 | M20: 7 | N20: 7 | O20: 2 | P20: 2 | Q20: 32992 | R20: 356313.6 | S20: 28200 | T20: 105882.3529 | U20: 331482.3529 | V20: -24831.24706 | W20: -7.490971039
A21: 7 | B21: CZ051 | C21: Liberecký | D21: 110400704 | E21: 610400681 | F21: Liberecký kraj | G21: ZŠ | H21: 2.st | I21: 8 | J21: 8 | K21: 0 | L21: 0 | M21: 8 | N21: 8 | O21: 1 | P21: 1 | Q21: 32725.18874 | R21: 353432.0384 | S21: 28200 | T21: 105882.3529 | U21: 331482.3529 | V21: -21949.68544 | W21: -6.621675405 | Y21: Počty škol podle počtu žáků | Z21: počet škol, odloučených pracovišť | AA21: v %
A22: 2 | B22: CZ032 | C22: Plzeňský | D22: 102164720 | E22: 600068676 | F22: Město Horažďovice | G22: ZŠ | H22: 2.st | I22: 9 | J22: 9 | K22: 2 | L22: 2 | M22: 7 | N22: 7 | O22: 1 | P22: 1 | Q22: 33145 | R22: 402711.75 | S22: 28200 | T22: 119117.6471 | U22: 372917.6471 | V22: -29794.10294 | W22: -7.989459114
A23: 2 | B23: CZ041 | C23: Karlovarský | D23: 102516791 | E23: 600067726 | F23: Město Bochov | G23: ZŠ | H23: 2.st | I23: 9 | J23: 9 | K23: 0 | L23: 0 | M23: 9 | N23: 9 | O23: 1 | P23: 1 | Q23: 32511.01322 | R23: 395008.8106 | S23: 28200 | T23: 119117.6471 | U23: 372917.6471 | V23: -22091.16351 | W23: -5.923871849
A24: 2 | B24: CZ051 | C24: Liberecký | D24: 102565066 | E24: 600080382 | F24: Obec Lázně Libverda | G24: ZŠ | H24: 2.st | I24: 9 | J24: 9 | K24: 0 | L24: 0 | M24: 9 | N24: 9 | O24: 1 | P24: 1 | Q24: 32725.18874 | R24: 397611.0432 | S24: 28200 | T24: 119117.6471 | U24: 372917.6471 | V24: -24693.39612 | W24: -6.621675405
A25: 2 | B25: CZ042 | C25: Ústecký | D25: 151011800 | E25: 600077535 | F25: Město Vejprty | G25: ZŠ | H25: 2.st | I25: 10 | J25: 10 | K25: 0 | L25: 0 | M25: 10 | N25: 10 | O25: 1 | P25: 1 | Q25: 33601 | R25: 453613.5 | S25: 28200 | T25: 132352.9412 | U25: 414352.9412 | V25: -39260.55882 | W25: -9.475149063
A26: 7 | B26: CZ042 | C26: Ústecký | D26: 102317542 | E26: 610150502 | F26: Ústecký kraj | G26: ZŠ | H26: 2.st | I26: 11 | J26: 11 | K26: 0 | L26: 0 | M26: 11 | N26: 11 | O26: 1 | P26: 1 | Q26: 33601 | R26: 498974.85 | S26: 28200 | T26: 145588.2353 | U26: 455788.2353 | V26: -43186.61471 | W26: -9.475149063 | Y26: do 30 žáků | Z26: =COUNTIFS( $I$8:$I$2358,"<=30" ) -> 87 | AA26: =100*Z26/2351 -> 3.700552956
A27: 7 | B27: CZ010 | C27: Praha | D27: 048134058 | E27: 600021050 | F27: Hlavní město Praha | G27: ZŠ | H27: 2.st | I27: 12 | J27: 12 | K27: 11 | L27: 11 | M27: 1 | N27: 1 | O27: 3 | P27: 3 | Q27: 29215.87609 | R27: 473297.1926 | S27: 28200 | T27: 158823.5294 | U27: 497223.5294 | V27: 23926.33677 | W27: 4.81198804 | Y27: 31 až 67 žáků | Z27: =COUNTIFS( $I$8:$I$2358,">=31",$I$8:$I$2358,"<=67") -> 475 | AA27: =100*Z27/2351 -> 20.20416844
A28: 7 | B28: CZ020 | C28: Středočeský | D28: 102338094 | E28: 600021858 | F28: Středočeský kraj | G28: ZŠ | H28: 2.st | I28: 12 | J28: 12 | K28: 1 | L28: 1 | M28: 11 | N28: 11 | O28: 1 | P28: 1 | Q28: 32958.13953 | R28: 533921.8605 | S28: 28200 | T28: 158823.5294 | U28: 497223.5294 | V28: -36698.33105 | W28: -7.380650529 | Y28: 68 až 136 žáků | Z28: =COUNTIFS( $I$8:$I$2358,">=68",$I$8:$I$2358,"<=136") -> 853 | AA28: 36.28243301
A29: 7 | B29: CZ052 | C29: Královéhradecký | D29: 102590222 | E29: 600029913 | F29: Královéhradecký kraj | G29: ZŠ | H29: 2.st | I29: 13 | J29: 13 | K29: 0 | L29: 0 | M29: 13 | N29: 13 | O29: 1 | P29: 1 | Q29: 30597.1 | R29: 536979.105 | S29: 28200 | T29: 172058.8235 | U29: 538658.8235 | V29: 1679.718529 | W29: 0.3118334753 | Y29: 137 až 204 žáků | Z29: =COUNTIFS( $I$8:$I$2358,">=137",$I$8:$I$2358,"<=204") -> 553 | AA29: 23.52190557
A30: 7 | B30: CZ020 | C30: Středočeský | D30: 102014116 | E30: 600021394 | F30: Středočeský kraj | G30: ZŠ | H30: 2.st | I30: 14 | J30: 14 | K30: 0 | L30: 0 | M30: 14 | N30: 14 | O30: 2 | P30: 2 | Q30: 32958.13953 | R30: 622908.8372 | S30: 28200 | T30: 185294.1176 | U30: 580094.1176 | V30: -42814.71956 | W30: -7.380650529 | Y30: 205 až 272 žáků | Z30: =COUNTIFS( $I$8:$I$2358,">=205",$I$8:$I$2358,"<=272") -> 291 | AA30: 12.37771161
A31: 7 | B31: CZ052 | C31: Královéhradecký | D31: 102266131 | E31: 600024245 | F31: Královéhradecký kraj | G31: ZŠ | H31: 2.st | I31: 14 | J31: 14 | K31: 0 | L31: 0 | M31: 14 | N31: 14 | O31: 2 | P31: 2 | Q31: 30597.1 | R31: 578285.19 | S31: 28200 | T31: 185294.1176 | U31: 580094.1176 | V31: 1808.927647 | W31: 0.3118334753 | Y31: 273 až 340 žáků | Z31: =COUNTIFS( $I$8:$I$2358,">=273",$I$8:$I$2358,"<=340") -> 75 | AA31: 3.190131859
A32: 7 | B32: CZ020 | C32: Středočeský | D32: 102650314 | E32: 600021688 | F32: Středočeský kraj | G32: ZŠ | H32: 2.st | I32: 15 | J32: 15 | K32: 0 | L32: 0 | M32: 15 | N32: 15 | O32: 2 | P32: 2 | Q32: 32958.13953 | R32: 667402.3256 | S32: 28200 | T32: 198529.4118 | U32: 621529.4118 | V32: -45872.91382 | W32: -7.380650529 | Y32: 341 až 440 žáků | Z32: =COUNTIFS( $I$8:$I$2358,">=341",$I$8:$I$2358,"<=440") -> 17 | AA32: 0.7230965547
A33: 7 | B33: CZ032 | C33: Plzeňský | D33: 130005738 | E33: 600171515 | F33: Plzeňský kraj | G33: ZŠ | H33: 2.st | I33: 15 | J33: 15 | K33: 7 | L33: 7 | M33: 8 | N33: 8 | O33: 2 | P33: 2 | Q33: 33145 | R33: 671186.25 | S33: 28200 | T33: 198529.4118 | U33: 621529.4118 | V33: -49656.83824 | W33: -7.989459114 | Y33: celkem škol, odloučených pracovišť | Z33: =SUM(Z26:Z32) -> 2351 | AA33: =SUM(AA26:AA32) -> 100
A34: 7 | B34: CZ064 | C34: Jihomoravský | D34: 062157655 | E34: 600024962 | F34: Jihomoravský kraj | G34: ZŠ | H34: 2.st | I34: 15 | J34: 15 | K34: 11 | L34: 11 | M34: 4 | N34: 4 | O34: 3 | P34: 3 | Q34: 32063 | R34: 649275.75 | S34: 28200 | T34: 198529.4118 | U34: 621529.4118 | V34: -27746.33824 | W34: -4.464203578
A35: 2 | B35: CZ051 | C35: Liberecký | D35: 102005001 | E35: 600074935 | F35: Město Mimoň | G35: ZŠ | H35: 2.st | I35: 16 | J35: 16 | K35: 6 | L35: 6 | M35: 10 | N35: 10 | O35: 2 | P35: 2 | Q35: 32725.18874 | R35: 706864.0768 | S35: 28200 | T35: 211764.7059 | U35: 662964.7059 | V35: -43899.37087 | W35: -6.621675405
A36: 7 | B36: CZ052 | C36: Královéhradecký | D36: 102406189 | E36: 600024318 | F36: Královéhradecký kraj | G36: ZŠ | H36: 2.st | I36: 16 | J36: 16 | K36: 0 | L36: 0 | M36: 16 | N36: 16 | O36: 2 | P36: 2 | Q36: 30597.1 | R36: 660897.36 | S36: 28200 | T36: 211764.7059 | U36: 662964.7059 | V36: 2067.345882 | W36: 0.3118334753
A37: 2 | B37: CZ042 | C37: Ústecký | D37: 151040761 | E37: 600084671 | F37: Město Dubí | G37: ZŠ | H37: 2.st | I37: 17 | J37: 17 | K37: 0 | L37: 0 | M37: 14 | N37: 14 | O37: 2 | P37: 2 | Q37: 33601 | R37: 771142.95 | S37: 28200 | T37: 225000 | U37: 704400 | V37: -66742.95 | W37: -9.475149063
A38: 7 | B38: CZ010 | C38: Praha | D38: 110350812 | E38: 610350803 | F38: Hlavní město Praha | G38: ZŠ | H38: 2.st | I38: 17 | J38: 17 | K38: 2 | L38: 2 | M38: 15 | N38: 15 | O38: 2 | P38: 2 | Q38: 29215.87609 | R38: 670504.3562 | S38: 28200 | T38: 225000 | U38: 704400 | V38: 33895.64376 | W38: 4.81198804
A39: 7 | B39: CZ032 | C39: Plzeňský | D39: 102464367 | E39: 600009971 | F39: Plzeňský kraj | G39: ZŠ | H39: 2.st | I39: 17 | J39: 17 | K39: 0 | L39: 0 | M39: 17 | N39: 17 | O39: 2 | P39: 2 | Q39: 33145 | R39: 760677.75 | S39: 28200 | T39: 225000 | U39: 704400 | V39: -56277.75 | W39: -7.989459114
A40: 2 | B40: CZ031 | C40: Jihočeský | D40: 107722704 | E40: 600064859 | F40: Obec Ratibořské Hory | G40: ZŠ | H40: 2.st | I40: 18 | J40: 0 | K40: 0 | L40: 0 | M40: 0 | N40: 0 | O40: 2 | P40: 0 | Q40: 32992 | R40: 801705.6 | S40: 28200 | T40: 238235.2941 | U40: 745835.2941 | V40: -55870.30588 | W40: -7.490971039
A41: 7 | B41: CZ020 | C41: Středočeský | D41: 108053008 | E41: 600022072 | F41: Středočeský kraj | G41: ZŠ | H41: 2.st | I41: 18 | J41: 18 | K41: 0 | L41: 0 | M41: 18 | N41: 18 | O41: 2 | P41: 2 | Q41: 32958.13953 | R41: 800882.7907 | S41: 28200 | T41: 238235.2941 | U41: 745835.2941 | V41: -55047.49658 | W41: -7.380650529
A42: 2 | B42: CZ032 | C42: Plzeňský | D42: 151005788 | E42: 600070522 | F42: Město Stod | G42: ZŠ | H42: 2.st | I42: 19 | J42: 19 | K42: 0 | L42: 0 | M42: 19 | N42: 19 | O42: 2 | P42: 2 | Q42: 33145 | R42: 850169.25 | S42: 28200 | T42: 251470.5882 | U42: 787270.5882 | V42: -62898.66176 | W42: -7.989459114
A43: 2 | B43: CZ042 | C43: Ústecký | D43: 102053707 | E43: 600076474 | F43: Město Varnsdorf | G43: ZŠ | H43: 2.st | I43: 19 | J43: 0 | K43: 0 | L43: 0 | M43: 3 | N43: 0 | O43: 1 | P43: 0 | Q43: 33601 | R43: 861865.65 | S43: 28200 | T43: 251470.5882 | U43: 787270.5882 | V43: -74595.06176 | W43: -9.475149063
A44: 2 | B44: CZ051 | C44: Liberecký | D44: 102177236 | E44: 600078591 | F44: Obec Josefův Důl | G44: ZŠ | H44: 2.st | I44: 19 | J44: 0 | K44: 0 | L44: 0 | M44: 0 | N44: 0 | O44: 2 | P44: 0 | Q44: 32725.18874 | R44: 839401.0911 | S44: 28200 | T44: 251470.5882 | U44: 787270.5882 | V44: -52130.50291 | W44: -6.621675405
A45: 7 | B45: CZ010 | C45: Praha | D45: 102401683 | E45: 600020991 | F45: Hlavní město Praha | G45: ZŠ | H45: 2.st | I45: 19 | J45: 19 | K45: 0 | L45: 0 | M45: 19 | N45: 19 | O45: 3 | P45: 3 | Q45: 29215.87609 | R45: 749387.2217 | S45: 28200 | T45: 251470.5882 | U45: 787270.5882 | V45: 37883.36655 | W45: 4.81198804
A46: 7 | B46: CZ042 | C46: Ústecký | D46: 108043801 | E46: 600029191 | F46: Ústecký kraj | G46: ZŠ | H46: 2.st | I46: 19 | J46: 19 | K46: 0 | L46: 0 | M46: 19 | N46: 19 | O46: 2 | P46: 2 | Q46: 33601 | R46: 861865.65 | S46: 28200 | T46: 251470.5882 | U46: 787270.5882 | V46: -74595.06176 | W46: -9.475149063
A47: 7 | B47: CZ052 | C47: Královéhradecký | D47: 102590265 | E47: 600024652 | F47: Královéhradecký kraj | G47: ZŠ | H47: 2.st | I47: 19 | J47: 19 | K47: 1 | L47: 1 | M47: 18 | N47: 18 | O47: 2 | P47: 2 | Q47: 30597.1 | R47: 784815.615 | S47: 28200 | T47: 251470.5882 | U47: 787270.5882 | V47: 2454.973235 | W47: 0.3118334753
A48: 2 | B48: CZ020 | C48: Středočeský | D48: 102102414 | E48: 600044386 | F48: Obec Klobuky | G48: ZŠ | H48: 2.st | I48: 20 | J48: 6 | K48: 0 | L48: 0 | M48: 6 | N48: 5 | O48: 3 | P48: 1 | Q48: 32958.13953 | R48: 889869.7674 | S48: 28200 | T48: 264705.8824 | U48: 828705.8824 | V48: -61163.88509 | W48: -7.380650529
A49: 2 | B49: CZ051 | C49: Liberecký | D49: 102454221 | E49: 600099458 | F49: Město Semily | G49: ZŠ | H49: 2.st | I49: 20 | J49: 20 | K49: 1 | L49: 1 | M49: 15 | N49: 15 | O49: 2 | P49: 2 | Q49: 32725.18874 | R49: 883580.0959 | S49: 28200 | T49: 264705.8824 | U49: 828705.8824 | V49: -54874.21359 | W49: -6.621675405
A50: 7 | B50: CZ010 | C50: Praha | D50: 110032691 | E50: 600027341 | F50: Hlavní město Praha | G50: ZŠ | H50: 2.st | I50: 20 | J50: 20 | K50: 0 | L50: 0 | M50: 20 | N50: 20 | O50: 6 | P50: 6 | Q50: 29215.87609 | R50: 788828.6544 | S50: 28200 | T50: 264705.8824 | U50: 828705.8824 | V50: 39877.22795 | W50: 4.81198804
A51: 7 | B51: CZ032 | C51: Plzeňský | D51: 151003505 | E51: 600022935 | F51: Plzeňský kraj | G51: ZŠ | H51: 2.st | I51: 20 | J51: 20 | K51: 2 | L51: 2 | M51: 18 | N51: 18 | O51: 2 | P51: 2 | Q51: 33145 | R51: 894915 | S51: 28200 | T51: 264705.8824 | U51: 828705.8824 | V51: -66209.11765 | W51: -7.989459114
A52: 7 | B52: CZ080 | C52: Moravskoslezský | D52: 110006003 | E52: 600026736 | F52: Moravskoslezský kraj | G52: ZŠ | H52: 2.st | I52: 20 | J52: 20 | K52: 0 | L52: 0 | M52: 20 | N52: 20 | O52: 2 | P52: 2 | Q52: 35051.65877 | R52: 946394.7867 | S52: 28200 | T52: 264705.8824 | U52: 828705.8824 | V52: -117688.9044 | W52: -14.20152878
A53: 2 | B53: CZ042 | C53: Ústecký | D53: 151006148 | E53: 600077314 | F53: Obec Radonice | G53: ZŠ | H53: 2.st | I53: 21 | J53: 21 | K53: 0 | L53: 0 | M53: 21 | N53: 21 | O53: 2 | P53: 2 | Q53: 33601 | R53: 952588.35 | S53: 28200 | T53: 277941.1765 | U53: 870141.1765 | V53: -82447.17353 | W53: -9.475149063
A54: 2 | B54: CZ053 | C54: Pardubický | D54: 002506611 | E54: 600100456 | F54: Obec Telecí | G54: ZŠ | H54: 2.st | I54: 21 | J54: 0 | K54: 0 | L54: 0 | M54: 1 | N54: 0 | O54: 4 | P54: 0 | Q54: 32698 | R54: 926988.3 | S54: 28200 | T54: 277941.1765 | U54: 870141.1765 | V54: -56847.12353 | W54: -6.533091993
A55: 2 | B55: CZ053 | C55: Pardubický | D55: 151009813 | E55: 650053672 | F55: Obec Lubná | G55: ZŠ | H55: 2.st | I55: 21 | J55: 0 | K55: 0 | L55: 0 | M55: 0 | N55: 0 | O55: 1 | P55: 0 | Q55: 32698 | R55: 926988.3 | S55: 28200 | T55: 277941.1765 | U55: 870141.1765 | V55: -56847.12353 | W55: -6.533091993
A56: 7 | B56: CZ010 | C56: Praha | D56: 060436107 | E56: 600020720 | F56: Hlavní město Praha | G56: ZŠ | H56: 2.st | I56: 21 | J56: 21 | K56: 0 | L56: 0 | M56: 18 | N56: 18 | O56: 3 | P56: 3 | Q56: 29215.87609 | R56: 828270.0871 | S56: 28200 | T56: 277941.1765 | U56: 870141.1765 | V56: 41871.08935 | W56: 4.81198804
A57: 7 | B57: CZ032 | C57: Plzeňský | D57: 151003513 | E57: 600022943 | F57: Plzeňský kraj | G57: ZŠ | H57: 2.st | I57: 21 | J57: 21 | K57: 0 | L57: 0 | M57: 21 | N57: 21 | O57: 2 | P57: 2 | Q57: 33145 | R57: 939660.75 | S57: 28200 | T57: 277941.1765 | U57: 870141.1765 | V57: -69519.57353 | W57: -7.989459114
A58: 2 | B58: CZ053 | C58: Pardubický | D58: 102642532 | E58: 650053834 | F58: Městys Kunvald | G58: ZŠ | H58: 2.st | I58: 22 | J58: 0 | K58: 0 | L58: 0 | M58: 1 | N58: 0 | O58: 4 | P58: 0 | Q58: 32698 | R58: 971130.6 | S58: 28200 | T58: 291176.4706 | U58: 911576.4706 | V58: -59554.12941 | W58: -6.533091993
A59: 7 | B59: CZ071 | C59: Olomoucký | D59: 102608679 | E59: 600027007 | F59: Olomoucký kraj | G59: ZŠ | H59: 2.st | I59: 22 | J59: 22 | K59: 2 | L59: 2 | M59: 20 | N59: 20 | O59: 2 | P59: 2 | Q59: 32841 | R59: 975377.7 | S59: 28200 | T59: 291176.4706 | U59: 911576.4706 | V59: -63801.22941 | W59: -6.998999148
A60: 2 | B60: CZ051 | C60: Liberecký | D60: 102005796 | E60: 600075141 | F60: Město Nový Bor | G60: ZŠ | H60: 2.st | I60: 23 | J60: 23 | K60: 2 | L60: 2 | M60: 21 | N60: 21 | O60: 2 | P60: 2 | Q60: 32725.18874 | R60: 1016117.11 | S60: 28200 | T60: 304411.7647 | U60: 953011.7647 | V60: -63105.34563 | W60: -6.621675405
A61: 7 | B61: CZ031 | C61: Jihočeský | D61: 102439290 | E61: 691003769 | F61: Jihočeský kraj | G61: ZŠ | H61: 2.st | I61: 24 | J61: 24 | K61: 0 | L61: 0 | M61: 24 | N61: 24 | O61: 2 | P61: 2 | Q61: 32992 | R61: 1068940.8 | S61: 28200 | T61: 317647.0588 | U61: 994447.0588 | V61: -74493.74118 | W61: -7.490971039
A62: 7 | B62: CZ071 | C62: Olomoucký | D62: 102320969 | E62: 610301063 | F62: Olomoucký kraj | G62: ZŠ | H62: 2.st | I62: 24 | J62: 24 | K62: 0 | L62: 0 | M62: 24 | N62: 24 | O62: 3 | P62: 3 | Q62: 32841 | R62: 1064048.4 | S62: 28200 | T62: 317647.0588 | U62: 994447.0588 | V62: -69601.34118 | W62: -6.998999148
A63: 2 | B63: CZ031 | C63: Jihočeský | D63: 107721058 | E63: 600060381 | F63: Obec Český Rudolec | G63: ZŠ | H63: 2.st | I63: 25 | J63: 0 | K63: 0 | L63: 0 | M63: 2 | N63: 0 | O63: 4 | P63: 0 | Q63: 32992 | R63: 1113480 | S63: 28200 | T63: 330882.3529 | U63: 1035882.353 | V63: -77597.64706 | W63: -7.490971039
A64: 2 | B64: CZ051 | C64: Liberecký | D64: 102229309 | E64: 600079821 | F64: Obec Křižany | G64: ZŠ | H64: 2.st | I64: 25 | J64: 0 | K64: 0 | L64: 0 | M64: 2 | N64: 0 | O64: 4 | P64: 0 | Q64: 32725.18874 | R64: 1104475.12 | S64: 28200 | T64: 330882.3529 | U64: 1035882.353 | V64: -68592.76699 | W64: -6.621675405
A65: 2 | B65: CZ052 | C65: Královéhradecký | D65: 102266018 | E65: 650062531 | F65: Obec Martínkovice | G65: ZŠ | H65: 2.st | I65: 25 | J65: 0 | K65: 1 | L65: 0 | M65: 1 | N65: 0 | O65: 3 | P65: 0 | Q65: 30597.1 | R65: 1032652.125 | S65: 28200 | T65: 330882.3529 | U65: 1035882.353 | V65: 3230.227941 | W65: 0.3118334753
A66: 7 | B66: CZ010 | C66: Praha | D66: 102349070 | E66: 600021301 | F66: Hlavní město Praha | G66: ZŠ | H66: 2.st | I66: 25 | J66: 25 | K66: 0 | L66: 0 | M66: 24 | N66: 24 | O66: 3 | P66: 3 | Q66: 29215.87609 | R66: 986035.818 | S66: 28200 | T66: 330882.3529 | U66: 1035882.353 | V66: 49846.53494 | W66: 4.81198804
A67: 7 | B67: CZ020 | C67: Středočeský | D67: 102238073 | E67: 600021769 | F67: Středočeský kraj | G67: ZŠ | H67: 2.st | I67: 25 | J67: 25 | K67: 0 | L67: 0 | M67: 25 | N67: 25 | O67: 3 | P67: 3 | Q67: 32958.13953 | R67: 1112337.209 | S67: 28200 | T67: 330882.3529 | U67: 1035882.353 | V67: -76454.85636 | W67: -7.380650529
A68: 7 | B68: CZ080 | C68: Moravskoslezský | D68: 110500687 | E68: 610500678 | F68: Moravskoslezský kraj | G68: ZŠ | H68: 2.st | I68: 25 | J68: 25 | K68: 0 | L68: 0 | M68: 25 | N68: 25 | O68: 4 | P68: 4 | Q68: 35051.65877 | R68: 1182993.483 | S68: 28200 | T68: 330882.3529 | U68: 1035882.353 | V68: -147111.1305 | W68: -14.20152878
A69: 2 | B69: CZ071 | C69: Olomoucký | D69: 102668990 | E69: 600148297 | F69: Obec Rohle | G69: ZŠ | H69: 2.st | I69: 26 | J69: 0 | K69: 0 | L69: 0 | M69: 0 | N69: 0 | O69: 4 | P69: 0 | Q69: 32841 | R69: 1152719.1 | S69: 28200 | T69: 344117.6471 | U69: 1077317.647 | V69: -75401.45294 | W69: -6.998999148
A70: 2 | B70: CZ080 | C70: Moravskoslezský | D70: 102156476 | E70: 600136264 | F70: Obec Dolní Lutyně | G70: ZŠ | H70: 2.st | I70: 26 | J70: 0 | K70: 0 | L70: 0 | M70: 3 | N70: 0 | O70: 4 | P70: 0 | Q70: 35051.65877 | R70: 1230313.223 | S70: 28200 | T70: 344117.6471 | U70: 1077317.647 | V70: -152995.5757 | W70: -14.20152878
A71: 7 | B71: CZ020 | C71: Středočeský | D71: 102650411 | E71: 600021947 | F71: Středočeský kraj | G71: ZŠ | H71: 2.st | I71: 26 | J71: 26 | K71: 0 | L71: 0 | M71: 26 | N71: 26 | O71: 2 | P71: 2 | Q71: 32958.13953 | R71: 1156830.698 | S71: 28200 | T71: 344117.6471 | U71: 1077317.647 | V71: -79513.05062 | W71: -7.380650529
A72: 2 | B72: CZ053 | C72: Pardubický | D72: 102642541 | E72: 600104681 | F72: Obec Sopotnice | G72: ZŠ | H72: 2.st | I72: 27 | J72: 0 | K72: 0 | L72: 0 | M72: 0 | N72: 0 | O72: 4 | P72: 0 | Q72: 32698 | R72: 1191842.1 | S72: 28200 | T72: 357352.9412 | U72: 1118752.941 | V72: -73089.15882 | W72: -6.533091993
A73: 2 | B73: CZ064 | C73: Jihomoravský | D73: 102391131 | E73: 600115852 | F73: Obec Archlebov | G73: ZŠ | H73: 2.st | I73: 27 | J73: 0 | K73: 0 | L73: 0 | M73: 0 | N73: 0 | O73: 3 | P73: 0 | Q73: 32063 | R73: 1168696.35 | S73: 28200 | T73: 357352.9412 | U73: 1118752.941 | V73: -49943.40882 | W73: -4.464203578
A74: 2 | B74: CZ080 | C74: Moravskoslezský | D74: 102156506 | E74: 600136272 | F74: Statutární město Havířov | G74: ZŠ | H74: 2.st | I74: 27 | J74: 0 | K74: 0 | L74: 0 | M74: 0 | N74: 0 | O74: 4 | P74: 0 | Q74: 35051.65877 | R74: 1277632.962 | S74: 28200 | T74: 357352.9412 | U74: 1118752.941 | V74: -158880.0209 | W74: -14.20152878
A75: 7 | B75: CZ010 | C75: Praha | D75: 102401691 | E75: 600020983 | F75: Hlavní město Praha | G75: ZŠ | H75: 2.st | I75: 27 | J75: 27 | K75: 0 | L75: 0 | M75: 26 | N75: 26 | O75: 3 | P75: 3 | Q75: 29215.87609 | R75: 1064918.683 | S75: 28200 | T75: 357352.9412 | U75: 1118752.941 | V75: 53834.25773 | W75: 4.81198804
A76: 7 | B76: CZ031 | C76: Jihočeský | D76: 102351180 | E76: 691003769 | F76: Jihočeský kraj | G76: ZŠ | H76: 2.st | I76: 27 | J76: 27 | K76: 0 | L76: 0 | M76: 27 | N76: 27 | O76: 3 | P76: 3 | Q76: 32992 | R76: 1202558.4 | S76: 28200 | T76: 357352.9412 | U76: 1118752.941 | V76: -83805.45882 | W76: -7.490971039
A77: 7 | B77: CZ042 | C77: Ústecký | D77: 181023857 | E77: 600023222 | F77: Ústecký kraj | G77: ZŠ | H77: 2.st | I77: 27 | J77: 27 | K77: 1 | L77: 1 | M77: 26 | N77: 26 | O77: 3 | P77: 3 | Q77: 33601 | R77: 1224756.45 | S77: 28200 | T77: 357352.9412 | U77: 1118752.941 | V77: -106003.5088 | W77: -9.475149063
A78: 2 | B78: CZ020 | C78: Středočeský | D78: 002174341 | E78: 600045510 | F78: Obec Stříbrná Skalice | G78: ZŠ | H78: 2.st | I78: 28 | J78: 0 | K78: 0 | L78: 0 | M78: 4 | N78: 0 | O78: 3 | P78: 0 | Q78: 32958.13953 | R78: 1245817.674 | S78: 28200 | T78: 370588.2353 | U78: 1160188.235 | V78: -85629.43912 | W78: -7.380650529
A79: 2 | B79: CZ041 | C79: Karlovarský | D79: 102428522 | E79: 600073246 | F79: Město Chodov | G79: ZŠ | H79: 2.st | I79: 28 | J79: 28 | K79: 1 | L79: 1 | M79: 26 | N79: 26 | O79: 3 | P79: 3 | Q79: 32511.01322 | R79: 1228916.3 | S79: 28200 | T79: 370588.2353 | U79: 1160188.235 | V79: -68728.06427 | W79: -5.923871849
A80: 2 | B80: CZ051 | C80: Liberecký | D80: 102241341 | E80: 600080366 | F80: Město Hrádek nad Nisou | G80: ZŠ | H80: 2.st | I80: 28 | J80: 28 | K80: 1 | L80: 1 | M80: 19 | N80: 19 | O80: 2 | P80: 2 | Q80: 32725.18874 | R80: 1237012.134 | S80: 28200 | T80: 370588.2353 | U80: 1160188.235 | V80: -76823.89902 | W80: -6.621675405
A81: 2 | B81: CZ052 | C81: Královéhradecký | D81: 102390681 | E81: 650064062 | F81: Obec Lhoty u Potštejna | G81: ZŠ | H81: 2.st | I81: 28 | J81: 0 | K81: 0 | L81: 0 | M81: 4 | N81: 0 | O81: 4 | P81: 0 | Q81: 30597.1 | R81: 1156570.38 | S81: 28200 | T81: 370588.2353 | U81: 1160188.235 | V81: 3617.855294 | W81: 0.3118334753
A82: 2 | B82: CZ063 | C82: Vysočina | D82: 102655456 | E82: 600122077 | F82: Obec Tasov | G82: ZŠ | H82: 2.st | I82: 28 | J82: 0 | K82: 0 | L82: 0 | M82: 0 | N82: 0 | O82: 3 | P82: 0 | Q82: 31391 | R82: 1186579.8 | S82: 28200 | T82: 370588.2353 | U82: 1160188.235 | V82: -26391.56471 | W82: -2.274765758
A83: 2 | B83: CZ020 | C83: Středočeský | D83: 102274819 | E83: 600047601 | F83: Obec Vysoká | G83: ZŠ | H83: 2.st | I83: 29 | J83: 0 | K83: 0 | L83: 0 | M83: 3 | N83: 0 | O83: 4 | P83: 0 | Q83: 32958.13953 | R83: 1290311.163 | S83: 28200 | T83: 383823.5294 | U83: 1201623.529 | V83: -88687.63338 | W83: -7.380650529
A84: 2 | B84: CZ053 | C84: Pardubický | D84: 060159138 | E84: 600096645 | F84: Statutární město Pardubice | G84: ZŠ | H84: 2.st | I84: 29 | J84: 29 | K84: 5 | L84: 5 | M84: 24 | N84: 24 | O84: 3 | P84: 3 | Q84: 32698 | R84: 1280126.7 | S84: 28200 | T84: 383823.5294 | U84: 1201623.529 | V84: -78503.17059 | W84: -6.533091993
A85: 2 | B85: CZ071 | C85: Olomoucký | D85: 102320195 | E85: 650028309 | F85: Obec Bouzov | G85: ZŠ | H85: 2.st | I85: 29 | J85: 0 | K85: 0 | L85: 0 | M85: 5 | N85: 0 | O85: 4 | P85: 0 | Q85: 32841 | R85: 1285725.15 | S85: 28200 | T85: 383823.5294 | U85: 1201623.529 | V85: -84101.62059 | W85: -6.998999148
A86: 2 | B86: CZ071 | C86: Olomoucký | D86: 102591318 | E86: 600120431 | F86: Obec Bohuslavice | G86: ZŠ | H86: 2.st | I86: 29 | J86: 0 | K86: 0 | L86: 0 | M86: 1 | N86: 0 | O86: 4 | P86: 0 | Q86: 32841 | R86: 1285725.15 | S86: 28200 | T86: 383823.5294 | U86: 1201623.529 | V86: -84101.62059 | W86: -6.998999148
A87: 2 | B87: CZ072 | C87: Zlínský | D87: 102519731 | E87: 600118665 | F87: Obec Rajnochovice | G87: ZŠ | H87: 2.st | I87: 29 | J87: 0 | K87: 0 | L87: 0 | M87: 2 | N87: 0 | O87: 4 | P87: 0 | Q87: 32544 | R87: 1274097.6 | S87: 28200 | T87: 383823.5294 | U87: 1201623.529 | V87: -72474.07059 | W87: -6.031345826
A88: 2 | B88: CZ080 | C88: Moravskoslezský | D88: 102008353 | E88: 600131831 | F88: Obec Holčovice | G88: ZŠ | H88: 2.st | I88: 29 | J88: 0 | K88: 0 | L88: 0 | M88: 6 | N88: 0 | O88: 4 | P88: 0 | Q88: 35051.65877 | R88: 1372272.441 | S88: 28200 | T88: 383823.5294 | U88: 1201623.529 | V88: -170648.9113 | W88: -14.20152878
A89: 7 | B89: CZ010 | C89: Praha | D89: 060461969 | E89: 600021092 | F89: Hlavní město Praha | G89: ZŠ | H89: 2.st | I89: 29 | J89: 29 | K89: 0 | L89: 0 | M89: 29 | N89: 29 | O89: 3 | P89: 3 | Q89: 29215.87609 | R89: 1143801.549 | S89: 28200 | T89: 383823.5294 | U89: 1201623.529 | V89: 57821.98053 | W89: 4.81198804
A90: 2 | B90: CZ031 | C90: Jihočeský | D90: 060062011 | E90: 600064646 | F90: Obec Sudoměřice u Bechyně | G90: ZŠ | H90: 2.st | I90: 30 | J90: 0 | K90: 1 | L90: 0 | M90: 1 | N90: 0 | O90: 4 | P90: 0 | Q90: 32992 | R90: 1336176 | S90: 28200 | T90: 397058.8235 | U90: 1243058.824 | V90: -93117.17647 | W90: -7.490971039
A91: 2 | B91: CZ031 | C91: Jihočeský | D91: 107721091 | E91: 650040953 | F91: Město Deštná | G91: ZŠ | H91: 2.st | I91: 30 | J91: 0 | K91: 0 | L91: 0 | M91: 0 | N91: 0 | O91: 3 | P91: 0 | Q91: 32992 | R91: 1336176 | S91: 28200 | T91: 397058.8235 | U91: 1243058.824 | V91: -93117.17647 | W91: -7.490971039
A92: 2 | B92: CZ053 | C92: Pardubický | D92: 060157283 | E92: 600096254 | F92: Obec Hlavečník | G92: ZŠ | H92: 2.st | I92: 30 | J92: 0 | K92: 0 | L92: 0 | M92: 1 | N92: 0 | O92: 4 | P92: 0 | Q92: 32698 | R92: 1324269 | S92: 28200 | T92: 397058.8235 | U92: 1243058.824 | V92: -81210.17647 | W92: -6.533091993
A93: 2 | B93: CZ072 | C93: Zlínský | D93: 102319367 | E93: 600114481 | F93: Obec Trnava | G93: ZŠ | H93: 2.st | I93: 30 | J93: 0 | K93: 0 | L93: 0 | M93: 0 | N93: 0 | O93: 4 | P93: 0 | Q93: 32544 | R93: 1318032 | S93: 28200 | T93: 397058.8235 | U93: 1243058.824 | V93: -74973.17647 | W93: -6.031345826
A94: 7 | B94: CZ010 | C94: Praha | D94: 047607882 | E94: 600021378 | F94: Hlavní město Praha | G94: ZŠ | H94: 2.st | I94: 30 | J94: 30 | K94: 1 | L94: 1 | M94: 29 | N94: 29 | O94: 4 | P94: 4 | Q94: 29215.87609 | R94: 1183242.982 | S94: 28200 | T94: 397058.8235 | U94: 1243058.824 | V94: 59815.84192 | W94: 4.81198804
A95: 2 | B95: CZ031 | C95: Jihočeský | D95: 107720400 | E95: 650025121 | F95: Obec Chrášťany | G95: ZŠ | H95: 2.st | I95: 31 | J95: 0 | K95: 0 | L95: 0 | M95: 0 | N95: 0 | O95: 4 | P95: 0 | Q95: 32992 | R95: 1380715.2 | S95: 28200 | T95: 410294.1176 | U95: 1284494.118 | V95: -96221.08235 | W95: -7.490971039
A96: 2 | B96: CZ032 | C96: Plzeňský | D96: 102164452 | E96: 600068722 | F96: Městys Kolinec | G96: ZŠ | H96: 2.st | I96: 31 | J96: 0 | K96: 0 | L96: 0 | M96: 0 | N96: 0 | O96: 4 | P96: 0 | Q96: 33145 | R96: 1387118.25 | S96: 28200 | T96: 410294.1176 | U96: 1284494.118 | V96: -102624.1324 | W96: -7.989459114
A97: 2 | B97: CZ052 | C97: Královéhradecký | D97: 102254605 | E97: 600093867 | F97: Obec Machov | G97: ZŠ | H97: 2.st | I97: 31 | J97: 0 | K97: 0 | L97: 0 | M97: 8 | N97: 0 | O97: 4 | P97: 0 | Q97: 30597.1 | R97: 1280488.635 | S97: 28200 | T97: 410294.1176 | U97: 1284494.118 | V97: 4005.482647 | W97: 0.3118334753
A98: 2 | B98: CZ064 | C98: Jihomoravský | D98: 102807345 | E98: 600126013 | F98: Obec Bohdalice - Pavlovice | G98: ZŠ | H98: 2.st | I98: 31 | J98: 0 | K98: 1 | L98: 0 | M98: 3 | N98: 0 | O98: 4 | P98: 0 | Q98: 32063 | R98: 1341836.55 | S98: 28200 | T98: 410294.1176 | U98: 1284494.118 | V98: -57342.43235 | W98: -4.464203578
A99: 2 | B99: CZ080 | C99: Moravskoslezský | D99: 102432406 | E99: 600143244 | F99: Obec Mladecko | G99: ZŠ | H99: 2.st | I99: 31 | J99: 0 | K99: 0 | L99: 0 | M99: 7 | N99: 0 | O99: 4 | P99: 0 | Q99: 35051.65877 | R99: 1466911.919 | S99: 28200 | T99: 410294.1176 | U99: 1284494.118 | V99: -182417.8018 | W99: -14.20152878
A100: 7 | B100: CZ010 | C100: Praha | D100: 151025169 | E100: 600021262 | F100: Hlavní město Praha | G100: ZŠ | H100: 2.st | I100: 31 | J100: 31 | K100: 2 | L100: 2 | M100: 29 | N100: 29 | O100: 3 | P100: 3 | Q100: 29215.87609 | R100: 1222684.414 | S100: 28200 | T100: 410294.1176 | U100: 1284494.118 | V100: 61809.70332 | W100: 4.81198804
A101: 7 | B101: CZ051 | C101: Liberecký | D101: 110021410 | E101: 600023397 | F101: Liberecký kraj | G101: ZŠ | H101: 2.st | I101: 31 | J101: 31 | K101: 2 | L101: 2 | M101: 29 | N101: 29 | O101: 3 | P101: 3 | Q101: 32725.18874 | R101: 1369549.149 | S101: 28200 | T101: 410294.1176 | U101: 1284494.118 | V101: -85055.03106 | W101: -6.621675405
A102: 2 | B102: CZ020 | C102: Středočeský | D102: 102374881 | E102: 691001511 | F102: Obec Přerov nad Labem | G102: ZŠ | H102: 2.st | I102: 32 | J102: 0 | K102: 2 | L102: 0 | M102: 5 | N102: 0 | O102: 3 | P102: 0 | Q102: 32958.13953 | R102: 1423791.628 | S102: 28200 | T102: 423529.4118 | U102: 1325929.412 | V102: -97862.21614 | W102: -7.380650529
A103: 2 | B103: CZ032 | C103: Plzeňský | D103: 102164347 | E103: 691003793 | F103: Město Hartmanice | G103: ZŠ | H103: 2.st | I103: 32 | J103: 0 | K103: 0 | L103: 0 | M103: 0 | N103: 0 | O103: 4 | P103: 0 | Q103: 33145 | R103: 1431864 | S103: 28200 | T103: 423529.4118 | U103: 1325929.412 | V103: -105934.5882 | W103: -7.989459114
A104: 2 | B104: CZ042 | C104: Ústecký | D104: 061357472 | E104: 600082954 | F104: Městys Panenský Týnec | G104: ZŠ | H104: 2.st | I104: 32 | J104: 0 | K104: 0 | L104: 0 | M104: 4 | N104: 0 | O104: 4 | P104: 0 | Q104: 33601 | R104: 1451563.2 | S104: 28200 | T104: 423529.4118 | U104: 1325929.412 | V104: -125633.7882 | W104: -9.475149063
A105: 2 | B105: CZ052 | C105: Královéhradecký | D105: 102390746 | E105: 650060997 | F105: Obec Voděrady | G105: ZŠ | H105: 2.st | I105: 32 | J105: 0 | K105: 0 | L105: 0 | M105: 7 | N105: 0 | O105: 4 | P105: 0 | Q105: 30597.1 | R105: 1321794.72 | S105: 28200 | T105: 423529.4118 | U105: 1325929.412 | V105: 4134.691765 | W105: 0.3118334753
A106: 2 | B106: CZ063 | C106: Vysočina | D106: 107721597 | E106: 600061507 | F106: Obec Senožaty | G106: ZŠ | H106: 2.st | I106: 32 | J106: 0 | K106: 0 | L106: 0 | M106: 1 | N106: 0 | O106: 4 | P106: 0 | Q106: 31391 | R106: 1356091.2 | S106: 28200 | T106: 423529.4118 | U106: 1325929.412 | V106: -30161.78824 | W106: -2.274765758
A107: 7 | B107: CZ010 | C107: Praha | D107: 102037914 | E107: 600020789 | F107: Hlavní město Praha | G107: ZŠ | H107: 2.st | I107: 32 | J107: 32 | K107: 0 | L107: 0 | M107: 32 | N107: 32 | O107: 3 | P107: 3 | Q107: 29215.87609 | R107: 1262125.847 | S107: 28200 | T107: 423529.4118 | U107: 1325929.412 | V107: 63803.56472 | W107: 4.81198804
A108: 7 | B108: CZ042 | C108: Ústecký | D108: 102577340 | E108: 600023222 | F108: Ústecký kraj | G108: ZŠ | H108: 2.st | I108: 32 | J108: 32 | K108: 4 | L108: 4 | M108: 28 | N108: 28 | O108: 4 | P108: 4 | Q108: 33601 | R108: 1451563.2 | S108: 28200 | T108: 423529.4118 | U108: 1325929.412 | V108: -125633.7882 | W108: -9.475149063
A109: 2 | B109: CZ020 | C109: Středočeský | D109: 102002410 | E109: 600042057 | F109: Obec Miličín | G109: ZŠ | H109: 2.st | I109: 33 | J109: 0 | K109: 1 | L109: 0 | M109: 1 | N109: 0 | O109: 4 | P109: 0 | Q109: 32958.13953 | R109: 1468285.116 | S109: 28200 | T109: 436764.7059 | U109: 1367364.706 | V109: -100920.4104 | W109: -7.380650529
A110: 2 | B110: CZ020 | C110: Středočeský | D110: 102226598 | E110: 600046389 | F110: Městys Kácov | G110: ZŠ | H110: 2.st | I110: 33 | J110: 0 | K110: 1 | L110: 0 | M110: 4 | N110: 0 | O110: 4 | P110: 0 | Q110: 32958.13953 | R110: 1468285.116 | S110: 28200 | T110: 436764.7059 | U110: 1367364.706 | V110: -100920.4104 | W110: -7.380650529
A111: 2 | B111: CZ020 | C111: Středočeský | D111: 102602379 | E111: 600055868 | F111: Obec Slabce | G111: ZŠ | H111: 2.st | I111: 33 | J111: 0 | K111: 0 | L111: 0 | M111: 2 | N111: 0 | O111: 4 | P111: 0 | Q111: 32958.13953 | R111: 1468285.116 | S111: 28200 | T111: 436764.7059 | U111: 1367364.706 | V111: -100920.4104 | W111: -7.380650529
A112: 2 | B112: CZ020 | C112: Středočeský | D112: 114001448 | E112: 600054454 | F112: Obec Nalžovice | G112: ZŠ | H112: 2.st | I112: 33 | J112: 0 | K112: 0 | L112: 0 | M112: 1 | N112: 0 | O112: 4 | P112: 0 | Q112: 32958.13953 | R112: 1468285.116 | S112: 28200 | T112: 436764.7059 | U112: 1367364.706 | V112: -100920.4104 | W112: -7.380650529
A113: 2 | B113: CZ032 | C113: Plzeňský | D113: 102328315 | E113: 650033370 | F113: Obec Kozojedy | G113: ZŠ | H113: 2.st | I113: 33 | J113: 0 | K113: 0 | L113: 0 | M113: 0 | N113: 0 | O113: 4 | P113: 0 | Q113: 33145 | R113: 1476609.75 | S113: 28200 | T113: 436764.7059 | U113: 1367364.706 | V113: -109245.0441 | W113: -7.989459114
A114: 2 | B114: CZ032 | C114: Plzeňský | D114: 102528527 | E114: 600073939 | F114: Obec Černošín | G114: ZŠ | H114: 2.st | I114: 33 | J114: 0 | K114: 0 | L114: 0 | M114: 0 | N114: 0 | O114: 4 | P114: 0 | Q114: 33145 | R114: 1476609.75 | S114: 28200 | T114: 436764.7059 | U114: 1367364.706 | V114: -109245.0441 | W114: -7.989459114
A115: 2 | B115: CZ042 | C115: Ústecký | D115: 061357324 | E115: 600082911 | F115: Obec Krásný Dvůr | G115: ZŠ | H115: 2.st | I115: 33 | J115: 0 | K115: 0 | L115: 0 | M115: 3 | N115: 0 | O115: 4 | P115: 0 | Q115: 33601 | R115: 1496924.55 | S115: 28200 | T115: 436764.7059 | U115: 1367364.706 | V115: -129559.8441 | W115: -9.475149063
A116: 2 | B116: CZ042 | C116: Ústecký | D116: 116600471 | E116: 600083179 | F116: Město Podbořany | G116: ZŠ | H116: 2.st | I116: 33 | J116: 33 | K116: 5 | L116: 5 | M116: 28 | N116: 28 | O116: 3 | P116: 3 | Q116: 33601 | R116: 1496924.55 | S116: 28200 | T116: 436764.7059 | U116: 1367364.706 | V116: -129559.8441 | W116: -9.475149063
A117: 2 | B117: CZ052 | C117: Královéhradecký | D117: 102254575 | E117: 650058828 | F117: Obec Stárkov | G117: ZŠ | H117: 2.st | I117: 33 | J117: 0 | K117: 0 | L117: 0 | M117: 7 | N117: 0 | O117: 4 | P117: 0 | Q117: 30597.1 | R117: 1363100.805 | S117: 28200 | T117: 436764.7059 | U117: 1367364.706 | V117: 4263.900882 | W117: 0.3118334753
A118: 2 | B118: CZ052 | C118: Královéhradecký | D118: 102390649 | E118: 650047087 | F118: Obec Deštné v Orlických horách | G118: ZŠ | H118: 2.st | I118: 33 | J118: 0 | K118: 0 | L118: 0 | M118: 4 | N118: 0 | O118: 4 | P118: 0 | Q118: 30597.1 | R118: 1363100.805 | S118: 28200 | T118: 436764.7059 | U118: 1367364.706 | V118: 4263.900882 | W118: 0.3118334753
A119: 2 | B119: CZ053 | C119: Pardubický | D119: 102142165 | E119: 650041330 | F119: Obec Bojanov | G119: ZŠ | H119: 2.st | I119: 33 | J119: 0 | K119: 0 | L119: 0 | M119: 9 | N119: 0 | O119: 4 | P119: 0 | Q119: 32698 | R119: 1456695.9 | S119: 28200 | T119: 436764.7059 | U119: 1367364.706 | V119: -89331.19412 | W119: -6.533091993
A120: 2 | B120: CZ063 | C120: Vysočina | D120: 107721619 | E120: 600061523 | F120: Obec Želiv | G120: ZŠ | H120: 2.st | I120: 33 | J120: 0 | K120: 0 | L120: 0 | M120: 0 | N120: 0 | O120: 4 | P120: 0 | Q120: 31391 | R120: 1398469.05 | S120: 28200 | T120: 436764.7059 | U120: 1367364.706 | V120: -31104.34412 | W120: -2.274765758
A121: 2 | B121: CZ064 | C121: Jihomoravský | D121: 102255806 | E121: 600112551 | F121: Obec Vlasatice | G121: ZŠ | H121: 2.st | I121: 33 | J121: 0 | K121: 0 | L121: 0 | M121: 0 | N121: 0 | O121: 4 | P121: 0 | Q121: 32063 | R121: 1428406.65 | S121: 28200 | T121: 436764.7059 | U121: 1367364.706 | V121: -61041.94412 | W121: -4.464203578
A122: 2 | B122: CZ064 | C122: Jihomoravský | D122: 102391831 | E122: 600115496 | F122: Obec Žeravice | G122: ZŠ | H122: 2.st | I122: 33 | J122: 0 | K122: 1 | L122: 0 | M122: 1 | N122: 0 | O122: 4 | P122: 0 | Q122: 32063 | R122: 1428406.65 | S122: 28200 | T122: 436764.7059 | U122: 1367364.706 | V122: -61041.94412 | W122: -4.464203578
A123: 2 | B123: CZ071 | C123: Olomoucký | D123: 102591377 | E123: 600120473 | F123: Obec Horní Štěpánov | G123: ZŠ | H123: 2.st | I123: 33 | J123: 0 | K123: 0 | L123: 0 | M123: 0 | N123: 0 | O123: 4 | P123: 0 | Q123: 32841 | R123: 1463066.55 | S123: 28200 | T123: 436764.7059 | U123: 1367364.706 | V123: -95701.84412 | W123: -6.998999148
A124: 2 | B124: CZ080 | C124: Moravskoslezský | D124: 102092061 | E124: 600133982 | F124: Obec Morávka | G124: ZŠ | H124: 2.st | I124: 33 | J124: 0 | K124: 0 | L124: 0 | M124: 2 | N124: 0 | O124: 4 | P124: 0 | Q124: 35051.65877 | R124: 1561551.398 | S124: 28200 | T124: 436764.7059 | U124: 1367364.706 | V124: -194186.6922 | W124: -14.20152878
A125: 2 | B125: CZ080 | C125: Moravskoslezský | D125: 102168008 | E125: 600136515 | F125: Obec Horní Suchá | G125: ZŠ | H125: 2.st | I125: 33 | J125: 0 | K125: 1 | L125: 0 | M125: 2 | N125: 0 | O125: 4 | P125: 0 | Q125: 35051.65877 | R125: 1561551.398 | S125: 28200 | T125: 436764.7059 | U125: 1367364.706 | V125: -194186.6922 | W125: -14.20152878
A126: 7 | B126: CZ010 | C126: Praha | D126: 110032675 | E126: 600021327 | F126: Hlavní město Praha | G126: ZŠ | H126: 2.st | I126: 33 | J126: 33 | K126: 0 | L126: 0 | M126: 33 | N126: 33 | O126: 3 | P126: 3 | Q126: 29215.87609 | R126: 1301567.28 | S126: 28200 | T126: 436764.7059 | U126: 1367364.706 | V126: 65797.42611 | W126: 4.81198804
A127: 7 | B127: CZ042 | C127: Ústecký | D127: 102577421 | E127: 600023231 | F127: Ústecký kraj | G127: ZŠ | H127: 2.st | I127: 33 | J127: 33 | K127: 2 | L127: 2 | M127: 30 | N127: 30 | O127: 3 | P127: 3 | Q127: 33601 | R127: 1496924.55 | S127: 28200 | T127: 436764.7059 | U127: 1367364.706 | V127: -129559.8441 | W127: -9.475149063
A128: 7 | B128: CZ064 | C128: Jihomoravský | D128: 151030103 | E128: 600025004 | F128: Jihomoravský kraj | G128: ZŠ | H128: 2.st | I128: 33 | J128: 33 | K128: 32 | L128: 32 | M128: 1 | N128: 1 | O128: 4 | P128: 4 | Q128: 32063 | R128: 1428406.65 | S128: 28200 | T128: 436764.7059 | U128: 1367364.706 | V128: -61041.94412 | W128: -4.464203578
A129: 7 | B129: CZ071 | C129: Olomoucký | D129: 108056848 | E129: 600026604 | F129: Olomoucký kraj | G129: ZŠ | H129: 2.st | I129: 33 | J129: 33 | K129: 13 | L129: 13 | M129: 20 | N129: 20 | O129: 4 | P129: 4 | Q129: 32841 | R129: 1463066.55 | S129: 28200 | T129: 436764.7059 | U129: 1367364.706 | V129: -95701.84412 | W129: -6.998999148
A130: 2 | B130: CZ031 | C130: Jihočeský | D130: 107722011 | E130: 650051238 | F130: Městys Strunkovice nad Blanicí | G130: ZŠ | H130: 2.st | I130: 34 | J130: 0 | K130: 0 | L130: 0 | M130: 0 | N130: 0 | O130: 4 | P130: 0 | Q130: 32992 | R130: 1514332.8 | S130: 28200 | T130: 450000 | U130: 1408800 | V130: -105532.8 | W130: -7.490971039
A131: 2 | B131: CZ031 | C131: Jihočeský | D131: 107722437 | E131: 650050738 | F131: Obec Záboří | G131: ZŠ | H131: 2.st | I131: 34 | J131: 0 | K131: 0 | L131: 0 | M131: 1 | N131: 0 | O131: 4 | P131: 0 | Q131: 32992 | R131: 1514332.8 | S131: 28200 | T131: 450000 | U131: 1408800 | V131: -105532.8 | W131: -7.490971039
A132: 2 | B132: CZ051 | C132: Liberecký | D132: 102442908 | E132: 600099199 | F132: Obec Poniklá | G132: ZŠ | H132: 2.st | I132: 34 | J132: 0 | K132: 1 | L132: 0 | M132: 0 | N132: 0 | O132: 4 | P132: 0 | Q132: 32725.18874 | R132: 1502086.163 | S132: 28200 | T132: 450000 | U132: 1408800 | V132: -93286.1631 | W132: -6.621675405
A133: 2 | B133: CZ063 | C133: Vysočina | D133: 102943206 | E133: 600130240 | F133: Obec Sněžné | G133: ZŠ | H133: 2.st | I133: 34 | J133: 0 | K133: 0 | L133: 0 | M133: 2 | N133: 0 | O133: 4 | P133: 0 | Q133: 31391 | R133: 1440846.9 | S133: 28200 | T133: 450000 | U133: 1408800 | V133: -32046.9 | W133: -2.274765758
A134: 2 | B134: CZ064 | C134: Jihomoravský | D134: 102255202 | E134: 600112349 | F134: Obec Dolní Věstonice | G134: ZŠ | H134: 2.st | I134: 34 | J134: 0 | K134: 0 | L134: 0 | M134: 0 | N134: 0 | O134: 4 | P134: 0 | Q134: 32063 | R134: 1471691.7 | S134: 28200 | T134: 450000 | U134: 1408800 | V134: -62891.7 | W134: -4.464203578
A135: 2 | B135: CZ064 | C135: Jihomoravský | D135: 102855838 | E135: 600127681 | F135: Městys Vémyslice | G135: ZŠ | H135: 2.st | I135: 34 | J135: 0 | K135: 1 | L135: 0 | M135: 0 | N135: 0 | O135: 4 | P135: 0 | Q135: 32063 | R135: 1471691.7 | S135: 28200 | T135: 450000 | U135: 1408800 | V135: -62891.7 | W135: -4.464203578
A136: 7 | B136: CZ053 | C136: Pardubický | D136: 102654123 | E136: 600024717 | F136: Pardubický kraj | G136: ZŠ | H136: 2.st | I136: 34 | J136: 34 | K136: 0 | L136: 0 | M136: 34 | N136: 34 | O136: 4 | P136: 4 | Q136: 32698 | R136: 1500838.2 | S136: 28200 | T136: 450000 | U136: 1408800 | V136: -92038.2 | W136: -6.533091993
A137: 7 | B137: CZ080 | C137: Moravskoslezský | D137: 102113467 | E137: 600026485 | F137: Moravskoslezský kraj | G137: ZŠ | H137: 2.st | I137: 34 | J137: 34 | K137: 1 | L137: 1 | M137: 32 | N137: 32 | O137: 4 | P137: 4 | Q137: 35051.65877 | R137: 1608871.137 | S137: 28200 | T137: 450000 | U137: 1408800 | V137: -200071.1374 | W137: -14.20152878
A138: 2 | B138: CZ020 | C138: Středočeský | D138: 102002169 | E138: 600041948 | F138: Městys Vrchotovy Janovice | G138: ZŠ | H138: 2.st | I138: 35 | J138: 0 | K138: 0 | L138: 0 | M138: 3 | N138: 0 | O138: 4 | P138: 0 | Q138: 32958.13953 | R138: 1557272.093 | S138: 28200 | T138: 463235.2941 | U138: 1450235.294 | V138: -107036.7989 | W138: -7.380650529
A139: 2 | B139: CZ020 | C139: Středočeský | D139: 102226997 | E139: 600046486 | F139: Obec Žleby | G139: ZŠ | H139: 2.st | I139: 35 | J139: 0 | K139: 1 | L139: 0 | M139: 0 | N139: 0 | O139: 4 | P139: 0 | Q139: 32958.13953 | R139: 1557272.093 | S139: 28200 | T139: 463235.2941 | U139: 1450235.294 | V139: -107036.7989 | W139: -7.380650529
A140: 2 | B140: CZ051 | C140: Liberecký | D140: 102177252 | E140: 600078451 | F140: Město Lučany nad Nisou | G140: ZŠ | H140: 2.st | I140: 35 | J140: 0 | K140: 0 | L140: 0 | M140: 8 | N140: 0 | O140: 4 | P140: 0 | Q140: 32725.18874 | R140: 1546265.168 | S140: 28200 | T140: 463235.2941 | U140: 1450235.294 | V140: -96029.87378 | W140: -6.621675405
A141: 2 | B141: CZ053 | C141: Pardubický | D141: 002506840 | E141: 650051742 | F141: Obec Chornice | G141: ZŠ | H141: 2.st | I141: 35 | J141: 0 | K141: 0 | L141: 0 | M141: 0 | N141: 0 | O141: 4 | P141: 0 | Q141: 32698 | R141: 1544980.5 | S141: 28200 | T141: 463235.2941 | U141: 1450235.294 | V141: -94745.20588 | W141: -6.533091993
A142: 2 | B142: CZ064 | C142: Jihomoravský | D142: 102391386 | E142: 600115526 | F142: Obec Ježov | G142: ZŠ | H142: 2.st | I142: 35 | J142: 0 | K142: 0 | L142: 0 | M142: 1 | N142: 0 | O142: 4 | P142: 0 | Q142: 32063 | R142: 1514976.75 | S142: 28200 | T142: 463235.2941 | U142: 1450235.294 | V142: -64741.45588 | W142: -4.464203578
A143: 2 | B143: CZ072 | C143: Zlínský | D143: 060990422 | E143: 600149773 | F143: Obec Růžďka | G143: ZŠ | H143: 2.st | I143: 35 | J143: 0 | K143: 0 | L143: 0 | M143: 1 | N143: 0 | O143: 3 | P143: 0 | Q143: 32544 | R143: 1537704 | S143: 28200 | T143: 463235.2941 | U143: 1450235.294 | V143: -87468.70588 | W143: -6.031345826
A144: 7 | B144: CZ052 | C144: Královéhradecký | D144: 102266107 | E144: 600024199 | F144: Královéhradecký kraj | G144: ZŠ | H144: 2.st | I144: 35 | J144: 35 | K144: 0 | L144: 0 | M144: 35 | N144: 35 | O144: 4 | P144: 4 | Q144: 30597.1 | R144: 1445712.975 | S144: 28200 | T144: 463235.2941 | U144: 1450235.294 | V144: 4522.319118 | W144: 0.3118334753
A145: 2 | B145: CZ010 | C145: Praha | D145: 044851987 | E145: 600038246 | F145: Městská část Praha 5 | G145: ZŠ | H145: 2.st | I145: 36 | J145: 4 | K145: 0 | L145: 0 | M145: 17 | N145: 3 | O145: 4 | P145: 1 | Q145: 29215.87609 | R145: 1419891.578 | S145: 28200 | T145: 476470.5882 | U145: 1491670.588 | V145: 71779.01031 | W145: 4.81198804
A146: 2 | B146: CZ020 | C146: Středočeský | D146: 102602042 | E146: 600055752 | F146: Obec Čistá | G146: ZŠ | H146: 2.st | I146: 36 | J146: 0 | K146: 0 | L146: 0 | M146: 2 | N146: 0 | O146: 4 | P146: 0 | Q146: 32958.13953 | R146: 1601765.581 | S146: 28200 | T146: 476470.5882 | U146: 1491670.588 | V146: -110094.9932 | W146: -7.380650529
A147: 2 | B147: CZ032 | C147: Plzeňský | D147: 102164134 | E147: 650014545 | F147: Město Měčín | G147: ZŠ | H147: 2.st | I147: 36 | J147: 0 | K147: 0 | L147: 0 | M147: 4 | N147: 0 | O147: 3 | P147: 0 | Q147: 33145 | R147: 1610847 | S147: 28200 | T147: 476470.5882 | U147: 1491670.588 | V147: -119176.4118 | W147: -7.989459114
A148: 2 | B148: CZ053 | C148: Pardubický | D148: 002518155 | E148: 600100618 | F148: Obec Radiměř | G148: ZŠ | H148: 2.st | I148: 36 | J148: 0 | K148: 0 | L148: 0 | M148: 1 | N148: 0 | O148: 4 | P148: 0 | Q148: 32698 | R148: 1589122.8 | S148: 28200 | T148: 476470.5882 | U148: 1491670.588 | V148: -97452.21176 | W148: -6.533091993
A149: 2 | B149: CZ064 | C149: Jihomoravský | D149: 102855625 | E149: 600127575 | F149: Obec Jaroslavice | G149: ZŠ | H149: 2.st | I149: 36 | J149: 0 | K149: 0 | L149: 0 | M149: 2 | N149: 0 | O149: 4 | P149: 0 | Q149: 32063 | R149: 1558261.8 | S149: 28200 | T149: 476470.5882 | U149: 1491670.588 | V149: -66591.21176 | W149: -4.464203578
A150: 7 | B150: CZ032 | C150: Plzeňský | D150: 102004463 | E150: 600022765 | F150: Plzeňský kraj | G150: ZŠ | H150: 2.st | I150: 36 | J150: 36 | K150: 0 | L150: 0 | M150: 36 | N150: 36 | O150: 5 | P150: 5 | Q150: 33145 | R150: 1610847 | S150: 28200 | T150: 476470.5882 | U150: 1491670.588 | V150: -119176.4118 | W150: -7.989459114
A151: 7 | B151: CZ064 | C151: Jihomoravský | D151: 102391904 | E151: 600025519 | F151: Jihomoravský kraj | G151: ZŠ | H151: 2.st | I151: 36 | J151: 36 | K151: 3 | L151: 3 | M151: 28 | N151: 28 | O151: 4 | P151: 4 | Q151: 32063 | R151: 1558261.8 | S151: 28200 | T151: 476470.5882 | U151: 1491670.588 | V151: -66591.21176 | W151: -4.464203578
A152: 2 | B152: CZ032 | C152: Plzeňský | D152: 102004439 | E152: 600065758 | F152: Město Domažlice | G152: ZŠ | H152: 2.st | I152: 37 | J152: 37 | K152: 0 | L152: 0 | M152: 37 | N152: 37 | O152: 4 | P152: 4 | Q152: 33145 | R152: 1655592.75 | S152: 28200 | T152: 489705.8824 | U152: 1533105.882 | V152: -122486.8676 | W152: -7.989459114
A153: 2 | B153: CZ032 | C153: Plzeňský | D153: 102464227 | E153: 600073874 | F153: Městys Stráž | G153: ZŠ | H153: 2.st | I153: 37 | J153: 0 | K153: 1 | L153: 0 | M153: 2 | N153: 0 | O153: 4 | P153: 0 | Q153: 33145 | R153: 1655592.75 | S153: 28200 | T153: 489705.8824 | U153: 1533105.882 | V153: -122486.8676 | W153: -7.989459114
A154: 2 | B154: CZ063 | C154: Vysočina | D154: 102943214 | E154: 600130258 | F154: Městys Strážek | G154: ZŠ | H154: 2.st | I154: 37 | J154: 0 | K154: 0 | L154: 0 | M154: 2 | N154: 0 | O154: 4 | P154: 0 | Q154: 31391 | R154: 1567980.45 | S154: 28200 | T154: 489705.8824 | U154: 1533105.882 | V154: -34874.56765 | W154: -2.274765758
A155: 2 | B155: CZ063 | C155: Vysočina | D155: 150013078 | E155: 650013051 | F155: Obec Hořepník | G155: ZŠ | H155: 2.st | I155: 37 | J155: 0 | K155: 0 | L155: 0 | M155: 0 | N155: 0 | O155: 4 | P155: 0 | Q155: 31391 | R155: 1567980.45 | S155: 28200 | T155: 489705.8824 | U155: 1533105.882 | V155: -34874.56765 | W155: -2.274765758
A156: 2 | B156: CZ064 | C156: Jihomoravský | D156: 102191433 | E156: 600111199 | F156: Obec Želešice | G156: ZŠ | H156: 2.st | I156: 37 | J156: 0 | K156: 0 | L156: 0 | M156: 0 | N156: 0 | O156: 4 | P156: 0 | Q156: 32063 | R156: 1601546.85 | S156: 28200 | T156: 489705.8824 | U156: 1533105.882 | V156: -68440.96765 | W156: -4.464203578
A157: 7 | B157: CZ064 | C157: Jihomoravský | D157: 108028411 | E157: 600025004 | F157: Jihomoravský kraj | G157: ZŠ | H157: 2.st | I157: 37 | J157: 37 | K157: 3 | L157: 3 | M157: 27 | N157: 27 | O157: 3 | P157: 3 | Q157: 32063 | R157: 1601546.85 | S157: 28200 | T157: 489705.8824 | U157: 1533105.882 | V157: -68440.96765 | W157: -4.464203578
A158: 2 | B158: CZ031 | C158: Jihočeský | D158: 000583367 | E158: 600063046 | F158: Obec Stachy | G158: ZŠ | H158: 2.st | I158: 38 | J158: 0 | K158: 0 | L158: 0 | M158: 1 | N158: 0 | O158: 4 | P158: 0 | Q158: 32992 | R158: 1692489.6 | S158: 28200 | T158: 502941.1765 | U158: 1574541.176 | V158: -117948.4235 | W158: -7.490971039
A159: 2 | B159: CZ031 | C159: Jihočeský | D159: 000583588 | E159: 600059383 | F159: Obec Brloh | G159: ZŠ | H159: 2.st | I159: 38 | J159: 0 | K159: 0 | L159: 0 | M159: 4 | N159: 0 | O159: 4 | P159: 0 | Q159: 32992 | R159: 1692489.6 | S159: 28200 | T159: 502941.1765 | U159: 1574541.176 | V159: -117948.4235 | W159: -7.490971039
A160: 2 | B160: CZ053 | C160: Pardubický | D160: 002506637 | E160: 600100464 | F160: Obec Trstěnice | G160: ZŠ | H160: 2.st | I160: 38 | J160: 0 | K160: 0 | L160: 0 | M160: 2 | N160: 0 | O160: 4 | P160: 0 | Q160: 32698 | R160: 1677407.4 | S160: 28200 | T160: 502941.1765 | U160: 1574541.176 | V160: -102866.2235 | W160: -6.533091993
A161: 2 | B161: CZ053 | C161: Pardubický | D161: 002518074 | E161: 650057988 | F161: Obec Opatov | G161: ZŠ | H161: 2.st | I161: 38 | J161: 0 | K161: 0 | L161: 0 | M161: 1 | N161: 0 | O161: 4 | P161: 0 | Q161: 32698 | R161: 1677407.4 | S161: 28200 | T161: 502941.1765 | U161: 1574541.176 | V161: -102866.2235 | W161: -6.533091993
A162: 2 | B162: CZ063 | C162: Vysočina | D162: 047438371 | E162: 600121704 | F162: Obec Rouchovany | G162: ZŠ | H162: 2.st | I162: 38 | J162: 0 | K162: 0 | L162: 0 | M162: 0 | N162: 0 | O162: 4 | P162: 0 | Q162: 31391 | R162: 1610358.3 | S162: 28200 | T162: 502941.1765 | U162: 1574541.176 | V162: -35817.12353 | W162: -2.274765758
A163: 2 | B163: CZ063 | C163: Vysočina | D163: 107721503 | E163: 600061418 | F163: Městys Nová Cerekev | G163: ZŠ | H163: 2.st | I163: 38 | J163: 0 | K163: 0 | L163: 0 | M163: 0 | N163: 0 | O163: 4 | P163: 0 | Q163: 31391 | R163: 1610358.3 | S163: 28200 | T163: 502941.1765 | U163: 1574541.176 | V163: -35817.12353 | W163: -2.274765758
A164: 2 | B164: CZ063 | C164: Vysočina | D164: 150014147 | E164: 650014138 | F164: Obec Zhoř | G164: ZŠ | H164: 2.st | I164: 38 | J164: 0 | K164: 0 | L164: 0 | M164: 2 | N164: 0 | O164: 4 | P164: 0 | Q164: 31391 | R164: 1610358.3 | S164: 28200 | T164: 502941.1765 | U164: 1574541.176 | V164: -35817.12353 | W164: -2.274765758
A165: 2 | B165: CZ071 | C165: Olomoucký | D165: 047184370 | E165: 600146383 | F165: Město Potštát | G165: ZŠ | H165: 2.st | I165: 38 | J165: 0 | K165: 0 | L165: 0 | M165: 1 | N165: 0 | O165: 4 | P165: 0 | Q165: 32841 | R165: 1684743.3 | S165: 28200 | T165: 502941.1765 | U165: 1574541.176 | V165: -110202.1235 | W165: -6.998999148
A166: 2 | B166: CZ080 | C166: Moravskoslezský | D166: 102156646 | E166: 600136345 | F166: Město Bohumín | G166: ZŠ | H166: 2.st | I166: 38 | J166: 16 | K166: 0 | L166: 0 | M166: 16 | N166: 16 | O166: 4 | P166: 2 | Q166: 35051.65877 | R166: 1798150.095 | S166: 28200 | T166: 502941.1765 | U166: 1574541.176 | V166: -223608.9183 | W166: -14.20152878
A167: 7 | B167: CZ064 | C167: Jihomoravský | D167: 102007853 | E167: 600024831 | F167: Jihomoravský kraj | G167: ZŠ | H167: 2.st | I167: 38 | J167: 38 | K167: 2 | L167: 2 | M167: 34 | N167: 34 | O167: 4 | P167: 4 | Q167: 32063 | R167: 1644831.9 | S167: 28200 | T167: 502941.1765 | U167: 1574541.176 | V167: -70290.72353 | W167: -4.464203578
A168: 7 | B168: CZ072 | C168: Zlínský | D168: 060371668 | E168: 600025730 | F168: Zlínský kraj | G168: ZŠ | H168: 2.st | I168: 38 | J168: 38 | K168: 1 | L168: 1 | M168: 37 | N168: 37 | O168: 4 | P168: 4 | Q168: 32544 | R168: 1669507.2 | S168: 28200 | T168: 502941.1765 | U168: 1574541.176 | V168: -94966.02353 | W168: -6.031345826
A169: 7 | B169: CZ080 | C169: Moravskoslezský | D169: 000601985 | E169: 600026817 | F169: Moravskoslezský kraj | G169: ZŠ | H169: 2.st | I169: 38 | J169: 38 | K169: 22 | L169: 22 | M169: 13 | N169: 13 | O169: 6 | P169: 6 | Q169: 35051.65877 | R169: 1798150.095 | S169: 28200 | T169: 502941.1765 | U169: 1574541.176 | V169: -223608.9183 | W169: -14.20152878
A170: 2 | B170: CZ020 | C170: Středočeský | D170: 102438331 | E170: 600052231 | F170: Městys Škvorec | G170: ZŠ | H170: 2.st | I170: 39 | J170: 0 | K170: 0 | L170: 0 | M170: 2 | N170: 0 | O170: 3 | P170: 0 | Q170: 32958.13953 | R170: 1735246.047 | S170: 28200 | T170: 516176.4706 | U170: 1615976.471 | V170: -119269.5759 | W170: -7.380650529
A171: 2 | B171: CZ031 | C171: Jihočeský | D171: 107721236 | E171: 650055853 | F171: Obec Staré Hobzí | G171: ZŠ | H171: 2.st | I171: 39 | J171: 0 | K171: 0 | L171: 0 | M171: 2 | N171: 0 | O171: 3 | P171: 0 | Q171: 32992 | R171: 1737028.8 | S171: 28200 | T171: 516176.4706 | U171: 1615976.471 | V171: -121052.3294 | W171: -7.490971039
A172: 2 | B172: CZ031 | C172: Jihočeský | D172: 107722267 | E172: 650039564 | F172: Obec Bělčice | G172: ZŠ | H172: 2.st | I172: 39 | J172: 0 | K172: 0 | L172: 0 | M172: 2 | N172: 0 | O172: 4 | P172: 0 | Q172: 32992 | R172: 1737028.8 | S172: 28200 | T172: 516176.4706 | U172: 1615976.471 | V172: -121052.3294 | W172: -7.490971039
A173: 2 | B173: CZ032 | C173: Plzeňský | D173: 102276064 | E173: 650047605 | F173: Městys Žinkovy | G173: ZŠ | H173: 2.st | I173: 39 | J173: 0 | K173: 1 | L173: 0 | M173: 4 | N173: 0 | O173: 4 | P173: 0 | Q173: 33145 | R173: 1745084.25 | S173: 28200 | T173: 516176.4706 | U173: 1615976.471 | V173: -129107.7794 | W173: -7.989459114
A174: 2 | B174: CZ052 | C174: Královéhradecký | D174: 102390657 | E174: 600097471 | F174: Obec Dobré | G174: ZŠ | H174: 2.st | I174: 39 | J174: 0 | K174: 0 | L174: 0 | M174: 4 | N174: 0 | O174: 4 | P174: 0 | Q174: 30597.1 | R174: 1610937.315 | S174: 28200 | T174: 516176.4706 | U174: 1615976.471 | V174: 5039.155588 | W174: 0.3118334753
A175: 2 | B175: CZ064 | C175: Jihomoravský | D175: 102255491 | E175: 600112446 | F175: Obec Moravský Žižkov | G175: ZŠ | H175: 2.st | I175: 39 | J175: 0 | K175: 0 | L175: 0 | M175: 1 | N175: 0 | O175: 4 | P175: 0 | Q175: 32063 | R175: 1688116.95 | S175: 28200 | T175: 516176.4706 | U175: 1615976.471 | V175: -72140.47941 | W175: -4.464203578
A176: 2 | B176: CZ071 | C176: Olomoucký | D176: 102668922 | E176: 600148271 | F176: Obec Hrabišín | G176: ZŠ | H176: 2.st | I176: 39 | J176: 0 | K176: 0 | L176: 0 | M176: 7 | N176: 0 | O176: 4 | P176: 0 | Q176: 32841 | R176: 1729078.65 | S176: 28200 | T176: 516176.4706 | U176: 1615976.471 | V176: -113102.1794 | W176: -6.998999148
A177: 2 | B177: CZ072 | C177: Zlínský | D177: 102519676 | E177: 600118631 | F177: Městys Litenčice | G177: ZŠ | H177: 2.st | I177: 39 | J177: 0 | K177: 2 | L177: 0 | M177: 1 | N177: 0 | O177: 4 | P177: 0 | Q177: 32544 | R177: 1713441.6 | S177: 28200 | T177: 516176.4706 | U177: 1615976.471 | V177: -97465.12941 | W177: -6.031345826
A178: 7 | B178: CZ032 | C178: Plzeňský | D178: 049777726 | E178: 600022935 | F178: Plzeňský kraj | G178: ZŠ | H178: 2.st | I178: 39 | J178: 39 | K178: 1 | L178: 1 | M178: 38 | N178: 38 | O178: 4 | P178: 4 | Q178: 33145 | R178: 1745084.25 | S178: 28200 | T178: 516176.4706 | U178: 1615976.471 | V178: -129107.7794 | W178: -7.989459114
A179: 7 | B179: CZ053 | C179: Pardubický | D179: 102654158 | E179: 600024733 | F179: Pardubický kraj | G179: ZŠ | H179: 2.st | I179: 39 | J179: 39 | K179: 1 | L179: 1 | M179: 30 | N179: 30 | O179: 4 | P179: 4 | Q179: 32698 | R179: 1721549.7 | S179: 28200 | T179: 516176.4706 | U179: 1615976.471 | V179: -105573.2294 | W179: -6.533091993
A180: 7 | B180: CZ064 | C180: Jihomoravský | D180: 110022050 | E180: 600025501 | F180: Jihomoravský kraj | G180: ZŠ | H180: 2.st | I180: 39 | J180: 39 | K180: 20 | L180: 20 | M180: 13 | N180: 13 | O180: 5 | P180: 5 | Q180: 32063 | R180: 1688116.95 | S180: 28200 | T180: 516176.4706 | U180: 1615976.471 | V180: -72140.47941 | W180: -4.464203578
A181: 2 | B181: CZ020 | C181: Středočeský | D181: 114001421 | E181: 600054446 | F181: Obec Hvožďany | G181: ZŠ | H181: 2.st | I181: 40 | J181: 0 | K181: 0 | L181: 0 | M181: 0 | N181: 0 | O181: 4 | P181: 0 | Q181: 32958.13953 | R181: 1779739.535 | S181: 28200 | T181: 529411.7647 | U181: 1657411.765 | V181: -122327.7702 | W181: -7.380650529
A182: 2 | B182: CZ020 | C182: Středočeský | D182: 114001570 | E182: 600054811 | F182: Obec Klučenice | G182: ZŠ | H182: 2.st | I182: 40 | J182: 0 | K182: 0 | L182: 0 | M182: 3 | N182: 0 | O182: 4 | P182: 0 | Q182: 32958.13953 | R182: 1779739.535 | S182: 28200 | T182: 529411.7647 | U182: 1657411.765 | V182: -122327.7702 | W182: -7.380650529
A183: 2 | B183: CZ020 | C183: Středočeský | D183: 151023913 | E183: 600053083 | F183: Město Dobřichovice | G183: ZŠ | H183: 2.st | I183: 40 | J183: 3 | K183: 0 | L183: 0 | M183: 3 | N183: 3 | O183: 4 | P183: 2 | Q183: 32958.13953 | R183: 1779739.535 | S183: 28200 | T183: 529411.7647 | U183: 1657411.765 | V183: -122327.7702 | W183: -7.380650529
A184: 2 | B184: CZ041 | C184: Karlovarský | D184: 102088403 | E184: 600067408 | F184: Město Jáchymov | G184: ZŠ | H184: 2.st | I184: 40 | J184: 0 | K184: 0 | L184: 0 | M184: 7 | N184: 0 | O184: 4 | P184: 0 | Q184: 32511.01322 | R184: 1755594.714 | S184: 28200 | T184: 529411.7647 | U184: 1657411.765 | V184: -98182.94895 | W184: -5.923871849
A185: 2 | B185: CZ052 | C185: Královéhradecký | D185: 049290266 | E185: 600101975 | F185: Obec Horní Maršov | G185: ZŠ | H185: 2.st | I185: 40 | J185: 0 | K185: 0 | L185: 0 | M185: 2 | N185: 0 | O185: 4 | P185: 0 | Q185: 30597.1 | R185: 1652243.4 | S185: 28200 | T185: 529411.7647 | U185: 1657411.765 | V185: 5168.364706 | W185: 0.3118334753
A186: 2 | B186: CZ053 | C186: Pardubický | D186: 102654093 | E186: 600104842 | F186: Obec Výprachtice | G186: ZŠ | H186: 2.st | I186: 40 | J186: 0 | K186: 0 | L186: 0 | M186: 1 | N186: 0 | O186: 4 | P186: 0 | Q186: 32698 | R186: 1765692 | S186: 28200 | T186: 529411.7647 | U186: 1657411.765 | V186: -108280.2353 | W186: -6.533091993
A187: 2 | B187: CZ063 | C187: Vysočina | D187: 102655677 | E187: 600122204 | F187: Obec Kněžice | G187: ZŠ | H187: 2.st | I187: 40 | J187: 0 | K187: 0 | L187: 0 | M187: 5 | N187: 0 | O187: 3 | P187: 0 | Q187: 31391 | R187: 1695114 | S187: 28200 | T187: 529411.7647 | U187: 1657411.765 | V187: -37702.23529 | W187: -2.274765758
A188: 7 | B188: CZ032 | C188: Plzeňský | D188: 102464332 | E188: 600023109 | F188: Plzeňský kraj | G188: ZŠ | H188: 2.st | I188: 40 | J188: 40 | K188: 1 | L188: 1 | M188: 39 | N188: 39 | O188: 4 | P188: 4 | Q188: 33145 | R188: 1789830 | S188: 28200 | T188: 529411.7647 | U188: 1657411.765 | V188: -132418.2353 | W188: -7.989459114
A189: 7 | B189: CZ064 | C189: Jihomoravský | D189: 044993668 | E189: 600025098 | F189: Jihomoravský kraj | G189: ZŠ | H189: 2.st | I189: 40 | J189: 40 | K189: 0 | L189: 0 | M189: 35 | N189: 35 | O189: 4 | P189: 4 | Q189: 32063 | R189: 1731402 | S189: 28200 | T189: 529411.7647 | U189: 1657411.765 | V189: -73990.23529 | W189: -4.464203578
A190: 2 | B190: CZ032 | C190: Plzeňský | D190: 102164223 | E190: 650032110 | F190: Obec Velhartice | G190: ZŠ | H190: 2.st | I190: 41 | J190: 0 | K190: 0 | L190: 0 | M190: 0 | N190: 0 | O190: 4 | P190: 0 | Q190: 33145 | R190: 1834575.75 | S190: 28200 | T190: 542647.0588 | U190: 1698847.059 | V190: -135728.6912 | W190: -7.989459114
A191: 2 | B191: CZ032 | C191: Plzeňský | D191: 102328480 | E191: 650032063 | F191: Obec Pernarec | G191: ZŠ | H191: 2.st | I191: 41 | J191: 0 | K191: 0 | L191: 0 | M191: 5 | N191: 0 | O191: 4 | P191: 0 | Q191: 33145 | R191: 1834575.75 | S191: 28200 | T191: 542647.0588 | U191: 1698847.059 | V191: -135728.6912 | W191: -7.989459114
A192: 2 | B192: CZ042 | C192: Ústecký | D192: 102129592 | E192: 600077501 | F192: Obec Kovářská | G192: ZŠ | H192: 2.st | I192: 41 | J192: 0 | K192: 0 | L192: 0 | M192: 0 | N192: 0 | O192: 4 | P192: 0 | Q192: 33601 | R192: 1859815.35 | S192: 28200 | T192: 542647.0588 | U192: 1698847.059 | V192: -160968.2912 | W192: -9.475149063
A193: 2 | B193: CZ071 | C193: Olomoucký | D193: 102320713 | E193: 650037430 | F193: Obec Těšetice | G193: ZŠ | H193: 2.st | I193: 41 | J193: 0 | K193: 0 | L193: 0 | M193: 3 | N193: 0 | O193: 4 | P193: 0 | Q193: 32841 | R193: 1817749.35 | S193: 28200 | T193: 542647.0588 | U193: 1698847.059 | V193: -118902.2912 | W193: -6.998999148
A194: 7 | B194: CZ071 | C194: Olomoucký | D194: 102680931 | E194: 600027295 | F194: Olomoucký kraj | G194: ZŠ | H194: 2.st | I194: 41 | J194: 41 | K194: 0 | L194: 0 | M194: 41 | N194: 41 | O194: 4 | P194: 4 | Q194: 32841 | R194: 1817749.35 | S194: 28200 | T194: 542647.0588 | U194: 1698847.059 | V194: -118902.2912 | W194: -6.998999148
A195: 2 | B195: CZ020 | C195: Středočeský | D195: 102002703 | E195: 600042189 | F195: Městys Zdislavice | G195: ZŠ | H195: 2.st | I195: 42 | J195: 0 | K195: 0 | L195: 0 | M195: 6 | N195: 0 | O195: 4 | P195: 0 | Q195: 32958.13953 | R195: 1868726.512 | S195: 28200 | T195: 555882.3529 | U195: 1740282.353 | V195: -128444.1587 | W195: -7.380650529
A196: 2 | B196: CZ020 | C196: Středočeský | D196: 114001472 | E196: 600054462 | F196: Obec Jesenice | G196: ZŠ | H196: 2.st | I196: 42 | J196: 0 | K196: 0 | L196: 0 | M196: 1 | N196: 0 | O196: 4 | P196: 0 | Q196: 32958.13953 | R196: 1868726.512 | S196: 28200 | T196: 555882.3529 | U196: 1740282.353 | V196: -128444.1587 | W196: -7.380650529
A197: 2 | B197: CZ020 | C197: Středočeský | D197: 114001596 | E197: 600054497 | F197: Obec Krásná Hora nad Vltavou | G197: ZŠ | H197: 2.st | I197: 42 | J197: 0 | K197: 0 | L197: 0 | M197: 1 | N197: 0 | O197: 4 | P197: 0 | Q197: 32958.13953 | R197: 1868726.512 | S197: 28200 | T197: 555882.3529 | U197: 1740282.353 | V197: -128444.1587 | W197: -7.380650529
A198: 2 | B198: CZ031 | C198: Jihočeský | D198: 107722127 | E198: 650041038 | F198: Obec Šumavské Hoštice | G198: ZŠ | H198: 2.st | I198: 42 | J198: 0 | K198: 0 | L198: 0 | M198: 1 | N198: 0 | O198: 4 | P198: 0 | Q198: 32992 | R198: 1870646.4 | S198: 28200 | T198: 555882.3529 | U198: 1740282.353 | V198: -130364.0471 | W198: -7.490971039
A199: 2 | B199: CZ031 | C199: Jihočeský | D199: 107722305 | E199: 600063810 | F199: Městys Čestice | G199: ZŠ | H199: 2.st | I199: 42 | J199: 0 | K199: 0 | L199: 0 | M199: 0 | N199: 0 | O199: 4 | P199: 0 | Q199: 32992 | R199: 1870646.4 | S199: 28200 | T199: 555882.3529 | U199: 1740282.353 | V199: -130364.0471 | W199: -7.490971039
A200: 2 | B200: CZ031 | C200: Jihočeský | D200: 107722836 | E200: 600064930 | F200: Obec Tučapy | G200: ZŠ | H200: 2.st | I200: 42 | J200: 0 | K200: 0 | L200: 0 | M200: 0 | N200: 0 | O200: 4 | P200: 0 | Q200: 32992 | R200: 1870646.4 | S200: 28200 | T200: 555882.3529 | U200: 1740282.353 | V200: -130364.0471 | W200: -7.490971039
... 2158 more rows

Sheet soustava
A1: Systém financování
A3: oborový normativ, doplňková částka
C5: Oborový normativ | D5: Doplňková částka
A6: ZŠ s pouze 1.stupněm | B6: 1.stupeň | C6: 23800 | D6: 550000
A7: ZŠ úplná (1. i 2.stupeň) | C7: 20700 | D7: 550000
B8: 2.stupeň | C8: 28200 | D8: 900000
